College_Name,Check_Number,Payee,Date,Amount,Funding_Source,Purpose
J. F. Drake State CC & TC,10015043,ACT Inc ,10/6/2022,104.5,Unrestricted Shared Services,Testing Expense
J. F. Drake State CC & TC,10015044,Bates Sidney,10/6/2022,2540,Unrestricted Shared Services,Other Professional Fees - PS
J. F. Drake State CC & TC,10015045,Big City Supplies Inc ,10/6/2022,2132.5,Unrestricted Shared Services,Other Contractual Services - PS
J. F. Drake State CC & TC,10015046,Conditioned Air Solutions LLC ,10/6/2022,3460,Unrestricted Shared Services,Maintenance & Repairs  - OOS
J. F. Drake State CC & TC,10015047,Dynamic Security Inc ,10/6/2022,2413.28,Unrestricted Shared Services,Other Contractual Services - PS
J. F. Drake State CC & TC,10015048,FedEx ,10/6/2022,62.23,Unrestricted Shared Services,Freight - OOS
J. F. Drake State CC & TC,10015049,Internal Revenue Service ,10/6/2022,4360,Unrestricted Shared Services,Bank Card Fees - PS
J. F. Drake State CC & TC,10015050,LogoBranders Inc ,10/6/2022,886.18,Unrestricted Shared Services,Advertising & Promotions - OOS
J. F. Drake State CC & TC,10015051,Loomis ,10/6/2022,288.84,Unrestricted Shared Services,Other Contractual Services - PS
J. F. Drake State CC & TC,10015052,Nola Van Peursem Architects PC ,10/6/2022,155931.54,Unrestricted Shared Services,Engineering & Architectural Svc -PS
J. F. Drake State CC & TC,10015053,Southern Assoc of Colleges & Schools ,10/6/2022,500,Unrestricted Shared Services,Accreditation Expense - PS
J. F. Drake State CC & TC,10015054,Trav-Ad Signs ,10/6/2022,570,Unrestricted Shared Services,Printing and Binding - OOS
J. F. Drake State CC & TC,10015054,Trav-Ad Signs ,10/6/2022,1649,Unrestricted Shared Services,Materials and Supplies - MS
J. F. Drake State CC & TC,10015055,Wells Printing Company Inc ,10/6/2022,442,Unrestricted Shared Services,Printing and Binding - OOS
J. F. Drake State CC & TC,10015056,Xerox Corporation ,10/6/2022,13.13,Unrestricted Shared Services,Culinary Consumables
J. F. Drake State CC & TC,10015056,Xerox Corporation ,10/6/2022,48.1,Unrestricted Shared Services,Maintenance & Repairs  - OOS
J. F. Drake State CC & TC,10015061,Brown Rochelle,10/10/2022,129.99,Unrestricted Shared Services,Student 3rd Party Reimbursement-AR
J. F. Drake State CC & TC,10015062,Carney Rose,10/10/2022,161.95,Unrestricted Shared Services,Student 3rd Party Reimbursement-AR
J. F. Drake State CC & TC,10015063,Crutcher Marcus,10/10/2022,260,Unrestricted Shared Services,Other Contractual Services - PS
J. F. Drake State CC & TC,10015064,Cutts James,10/10/2022,498.14,Unrestricted Shared Services,Student 3rd Party Reimbursement-AR
J. F. Drake State CC & TC,10015065,McDaniel Darvin,10/12/2022,315,Unrestricted Shared Services,Culinary Consumables
J. F. Drake State CC & TC,10015066,McDaniel Darvin,10/12/2022,1000,Unrestricted Shared Services,Culinary Consumables
J. F. Drake State CC & TC,10015067,Alabama Media ,10/13/2022,1353.1,Unrestricted Shared Services,Advertising & Promotions - OOS
J. F. Drake State CC & TC,10015068,Bradford Scholarship Foundation Inc ,10/13/2022,420,Unrestricted Shared Services,Advertising & Promotions - OOS
J. F. Drake State CC & TC,10015069,Dynamic Security Inc ,10/13/2022,2909.92,Unrestricted Shared Services,Other Contractual Services - PS
J. F. Drake State CC & TC,10015070,Farrell Corporation ,10/13/2022,495.9,Unrestricted Shared Services,Materials and Supplies - MS
J. F. Drake State CC & TC,10015071,FedEx ,10/13/2022,35.79,Unrestricted Shared Services,Freight - OOS
J. F. Drake State CC & TC,10015072,Huntsville Utilities ,10/13/2022,266.07,Unrestricted Shared Services,Gas & Heating Fuel - UC
J. F. Drake State CC & TC,10015072,Huntsville Utilities ,10/13/2022,983.8,Unrestricted Shared Services,Water & Sewer - UC
J. F. Drake State CC & TC,10015072,Huntsville Utilities ,10/13/2022,29022.11,Unrestricted Shared Services,Electricity - UC
J. F. Drake State CC & TC,10015073,Kingsbury Marina,10/13/2022,10,Unrestricted Shared Services,Other Travel Expenses - IS
J. F. Drake State CC & TC,10015074,Parchment LLC ,10/13/2022,145,Unrestricted Shared Services,Transcript Expense
J. F. Drake State CC & TC,10015075,State of Alabama ,10/13/2022,11535,Unrestricted Shared Services,Other Contractual Services - PS
J. F. Drake State CC & TC,10015076,United Parcel Service Inc (UPS) ,10/13/2022,8.14,Unrestricted Shared Services,Freight - OOS
J. F. Drake State CC & TC,10015077,Wells Printing Company Inc ,10/13/2022,1209.78,Unrestricted Shared Services,Advertising & Promotions - OOS
J. F. Drake State CC & TC,10015078,AACC ,10/20/2022,75,Unrestricted Shared Services,Memberships - PS
J. F. Drake State CC & TC,10015079,Accreditation Commission For Ed In Nursing Inc. (ACEN) ,10/20/2022,2875,Unrestricted Shared Services,Accreditation Expense - PS
J. F. Drake State CC & TC,10015080,Alabama Community College System President's Association ,10/20/2022,750,Unrestricted Shared Services,Memberships - PS
J. F. Drake State CC & TC,10015081,Aquiline Drones Corporation ,10/20/2022,2000,Unrestricted Shared Services,Other Professional Fees - PS
J. F. Drake State CC & TC,10015082,Better Business Bureau of North Alabama Inc ,10/20/2022,535,Unrestricted Shared Services,Memberships - PS
J. F. Drake State CC & TC,10015083,Chamber of Commerce Huntsville/Madison County ,10/20/2022,1800,Unrestricted Shared Services,Advertising & Promotions - OOS
J. F. Drake State CC & TC,10015084,Dynamic Security Inc ,10/20/2022,5819.84,Unrestricted Shared Services,Other Contractual Services - PS
J. F. Drake State CC & TC,10015085,Huntsville Hospital Foundation ,10/20/2022,1155,Unrestricted Shared Services,Registration Fees- IS
J. F. Drake State CC & TC,10015086,MillerKnoll Inc ,10/20/2022,1929.08,Unrestricted Shared Services,Equipment - non capitalized - MS
J. F. Drake State CC & TC,10015087,Penn National Insurance ,10/20/2022,653,Unrestricted Shared Services,Insurance and Bonding - PS
J. F. Drake State CC & TC,10015088,RP Media ,10/20/2022,6400.35,Unrestricted Shared Services,Advertising & Promotions - OOS
J. F. Drake State CC & TC,10015089,Safety Kleen Systems Inc ,10/20/2022,676.5,Unrestricted Shared Services,Waste Disposal - UC
J. F. Drake State CC & TC,10015090,Schindler Elevator Corporation ,10/20/2022,1593.41,Unrestricted Shared Services,Other Contractual Services - PS
J. F. Drake State CC & TC,10015091,Speakin' Out News ,10/20/2022,4000,Unrestricted Shared Services,Advertising & Promotions - OOS
J. F. Drake State CC & TC,10015092,Waste Management ,10/20/2022,2093.76,Unrestricted Shared Services,Waste Disposal - UC
J. F. Drake State CC & TC,10015093,Xerox Corporation ,10/20/2022,1276.22,Unrestricted Shared Services,Other Contractual Services - PS
J. F. Drake State CC & TC,10015094,Tate Sharde,10/24/2022,30,Unrestricted Shared Services,Participant Costs-Stipends
J. F. Drake State CC & TC,10015095,Alabama Lawnmaster Inc ,10/27/2022,3404.5,Unrestricted Shared Services,Other Contractual Services - PS
J. F. Drake State CC & TC,10015096,Alabama Veterans Affairs Association ,10/27/2022,50,Unrestricted Shared Services,Advertising & Promotions - OOS
J. F. Drake State CC & TC,10015097,Cook's Pest Control ,10/27/2022,331,Unrestricted Shared Services,Other Contractual Services - PS
J. F. Drake State CC & TC,10015098,Dynamic Security Inc ,10/27/2022,2825.98,Unrestricted Shared Services,Other Contractual Services - PS
J. F. Drake State CC & TC,10015099,FedEx ,10/27/2022,8.97,Unrestricted Shared Services,Freight - OOS
J. F. Drake State CC & TC,10015100,Hand Arendall Harrison Sale LLC ,10/27/2022,381.07,Unrestricted Shared Services,Legal Services - PS
J. F. Drake State CC & TC,10015101,In10sity Interactive LLC ,10/27/2022,299,Unrestricted Shared Services,Other Contractual Services - PS
J. F. Drake State CC & TC,10015102,Madison Turf Keeper ,10/27/2022,450,Unrestricted Shared Services,Other Contractual Services - PS
J. F. Drake State CC & TC,10015103,Pioneer Management Consulting LLC ,10/27/2022,1250,Unrestricted Shared Services,Other Contractual Services - PS
J. F. Drake State CC & TC,10015104,Sims Patricia,10/27/2022,170,Unrestricted Shared Services,Overnight (non tax per diem)- IS
J. F. Drake State CC & TC,10015104,Sims Patricia,10/27/2022,749.24,Unrestricted Shared Services,Other Travel Expenses - OS
J. F. Drake State CC & TC,10015105,State of Alabama ,10/27/2022,53049,Unrestricted Shared Services,Insurance and Bonding - PS
J. F. Drake State CC & TC,10015106,State of Alabama ,10/27/2022,293640.4,Unrestricted Shared Services,Institutional Use - OOS
J. F. Drake State CC & TC,10015107,The Alabama Board of Electrical Contractors ,10/27/2022,250,Unrestricted Shared Services,Memberships - PS
J. F. Drake State CC & TC,10015117,Alabama Lawnmaster Inc ,11/3/2022,1500,Unrestricted Shared Services,Other Contractual Services - PS
J. F. Drake State CC & TC,10015118,Bates Sidney,11/3/2022,3360,Unrestricted Shared Services,Other Professional Fees - PS
J. F. Drake State CC & TC,10015119,Castle Branch Inc. ,11/3/2022,375.75,Unrestricted Shared Services,Other - AP
J. F. Drake State CC & TC,10015120,Dynamic Security Inc ,11/3/2022,5819.84,Unrestricted Shared Services,Other Contractual Services - PS
J. F. Drake State CC & TC,10015121,McDaniel Darvin,11/3/2022,1100,Unrestricted Admin Cost Allowance,Culinary Consumables
J. F. Drake State CC & TC,10015122,Southern Association of Colleges with Associate Degrees ,11/3/2022,35,Unrestricted Shared Services,Registration Fees- IS
J. F. Drake State CC & TC,10015123,Walker Rachel,11/3/2022,3500,Unrestricted Shared Services,Instructional Salaries(Temp/PT)-SW
J. F. Drake State CC & TC,10015124,ACT Inc ,11/8/2022,63,Unrestricted Shared Services,Testing Expense
J. F. Drake State CC & TC,10015125,Alabama Media ,11/8/2022,341.98,Unrestricted Shared Services,Advertising & Promotions - OOS
J. F. Drake State CC & TC,10015126,Ascend Learning Holdings LLC ,11/8/2022,26921.61,Unrestricted Shared Services,Other - AP
J. F. Drake State CC & TC,10015127,CDW LLC ,11/8/2022,78.18,Unrestricted Shared Services,Materials and Supplies - MS
J. F. Drake State CC & TC,10015128,Chamber of Commerce Huntsville/Madison County ,11/8/2022,500,Unrestricted Shared Services,Advertising & Promotions - OOS
J. F. Drake State CC & TC,10015129,Koorsen Fire & Security ,11/8/2022,256.35,Unrestricted Shared Services,Other Contractual Services - PS
J. F. Drake State CC & TC,10015130,Pioneer Management Consulting LLC ,11/8/2022,1250,Unrestricted Shared Services,Other Contractual Services - PS
J. F. Drake State CC & TC,10015131,Sims Patricia,11/8/2022,10,Unrestricted Shared Services,Other Travel Expenses - IS
J. F. Drake State CC & TC,10015131,Sims Patricia,11/8/2022,170,Unrestricted Shared Services,Overnight (non tax per diem)- IS
J. F. Drake State CC & TC,10015132,Uline Inc ,11/8/2022,764.7,Unrestricted Shared Services,Materials and Supplies - MS
J. F. Drake State CC & TC,10015133,Xerox Corporation ,11/8/2022,20.57,Unrestricted Shared Services,Technology - non capitalized - MS
J. F. Drake State CC & TC,10015133,Xerox Corporation ,11/8/2022,34.47,Unrestricted Shared Services,Maintenance & Repairs  - OOS
J. F. Drake State CC & TC,10015134,Xerox Corporation ,11/8/2022,11579.34,Unrestricted Shared Services,Other Contractual Services - PS
J. F. Drake State CC & TC,10015135,ACT Inc ,11/9/2022,31.5,Unrestricted Shared Services,Testing Expense
J. F. Drake State CC & TC,10015136,Alabama Lawnmaster Inc ,11/9/2022,3404.5,Unrestricted Shared Services,Other Contractual Services - PS
J. F. Drake State CC & TC,10015137,Huntsville Business Journal ,11/9/2022,800,Unrestricted Shared Services,Advertising & Promotions - OOS
J. F. Drake State CC & TC,10015138,Koorsen Fire & Security ,11/9/2022,981.22,Unrestricted Shared Services,Other Contractual Services - PS
J. F. Drake State CC & TC,10015139,Madison Chamber of Commerce ,11/9/2022,624,Unrestricted Shared Services,Memberships - PS
J. F. Drake State CC & TC,10015140,Safety Kleen Systems Inc ,11/9/2022,214.99,Unrestricted Shared Services,Waste Disposal - UC
J. F. Drake State CC & TC,10015142,Alabama Community College Association ,11/16/2022,125,Unrestricted Shared Services,Advertising & Promotions - OOS
J. F. Drake State CC & TC,10015143,Ascend Learning Holdings LLC ,11/16/2022,12508.27,Unrestricted Shared Services,Other - AP
J. F. Drake State CC & TC,10015144,Chamber of Commerce Huntsville/Madison County ,11/16/2022,1800,Unrestricted Shared Services,Advertising & Promotions - OOS
J. F. Drake State CC & TC,10015145,Council for Opportunity in Education ,11/16/2022,3300,Unrestricted Shared Services,Memberships - PS
J. F. Drake State CC & TC,10015146,Dynamic Security Inc ,11/16/2022,5477.09,Unrestricted Shared Services,Other Contractual Services - PS
J. F. Drake State CC & TC,10015147,FedEx ,11/16/2022,10.17,Unrestricted Shared Services,Freight - OOS
J. F. Drake State CC & TC,10015148,Hand Arendall Harrison Sale LLC ,11/16/2022,1027.23,Unrestricted Shared Services,Legal Services - PS
J. F. Drake State CC & TC,10015149,Huntsville Utilities ,11/16/2022,421.73,Unrestricted Shared Services,Gas & Heating Fuel - UC
J. F. Drake State CC & TC,10015149,Huntsville Utilities ,11/16/2022,1014.76,Unrestricted Shared Services,Water & Sewer - UC
J. F. Drake State CC & TC,10015149,Huntsville Utilities ,11/16/2022,23026.02,Unrestricted Shared Services,Electricity - UC
J. F. Drake State CC & TC,10015150,Lincoln Electric Company ,11/16/2022,4288.47,Unrestricted Shared Services,Materials and Supplies - MS
J. F. Drake State CC & TC,10015151,Pioneer Management Consulting LLC ,11/16/2022,495,Unrestricted Shared Services,Other Contractual Services - PS
J. F. Drake State CC & TC,10015152,Red Sage Communications Inc ,11/16/2022,8750,Unrestricted Shared Services,Other Contractual Services - PS
J. F. Drake State CC & TC,10015153,RP Media ,11/16/2022,7325.35,Unrestricted Shared Services,Advertising & Promotions - OOS
J. F. Drake State CC & TC,10015154,Sims Patricia,11/16/2022,400,Unrestricted Shared Services,Overnight (non tax per diem)- IS
J. F. Drake State CC & TC,10015155,Uline Inc ,11/16/2022,513.9,Unrestricted Shared Services,Materials and Supplies - MS
J. F. Drake State CC & TC,10015158,Accreditation Commission For Ed In Nursing Inc. (ACEN) ,11/22/2022,1600,Unrestricted Shared Services,Accreditation Expense - PS
J. F. Drake State CC & TC,10015159,Castle Branch Inc. ,11/22/2022,122.25,Unrestricted Shared Services,Other - AP
J. F. Drake State CC & TC,10015160,CDW LLC ,11/22/2022,17203,Unrestricted Shared Services,Taxes & Licenses - OOS
J. F. Drake State CC & TC,10015161,HESI - ELSEVIER ,11/22/2022,960,Unrestricted Shared Services,Other - AP
J. F. Drake State CC & TC,10015162,Kings III of America LLC ,11/22/2022,270,Unrestricted Shared Services,Maintenance & Repairs  - OOS
J. F. Drake State CC & TC,10015163,Kingsbury Marina,11/22/2022,10,Unrestricted Shared Services,Other Travel Expenses - IS
J. F. Drake State CC & TC,10015164,LogoBranders Inc ,11/22/2022,2640.15,Unrestricted Shared Services,Advertising & Promotions - OOS
J. F. Drake State CC & TC,10015165,MSC Industrial Supply ,11/22/2022,1857.14,Unrestricted Shared Services,Materials and Supplies - MS
J. F. Drake State CC & TC,10015166,Red Sage Communications Inc ,11/22/2022,15000,Unrestricted Shared Services,Other Contractual Services - PS
J. F. Drake State CC & TC,10015167,Richardson & Deemer Insurance Inc ,11/22/2022,14813.5,Unrestricted Shared Services,Insurance and Bonding - PS
J. F. Drake State CC & TC,10015168,Southern Assoc of Colleges & Schools ,11/22/2022,3500,Unrestricted Shared Services,Accreditation Expense - PS
J. F. Drake State CC & TC,10015169,The Webster Tree Company Inc. ,11/22/2022,14150,Unrestricted Shared Services,Other Contractual Services - PS
J. F. Drake State CC & TC,10015170,Uline Inc ,11/22/2022,111.97,Unrestricted Shared Services,Materials and Supplies - MS
J. F. Drake State CC & TC,10015171,United Parcel Service Inc (UPS) ,11/22/2022,14.07,Unrestricted Shared Services,Freight - OOS
J. F. Drake State CC & TC,10015172,Waste Management ,11/22/2022,1073.05,Unrestricted Shared Services,Waste Disposal - UC
J. F. Drake State CC & TC,10015174,Cook's Pest Control ,11/28/2022,364,Unrestricted Shared Services,Other Contractual Services - PS
J. F. Drake State CC & TC,10015175,HOAR Program Management LLC ,11/28/2022,44359.43,Unexpended Plant Shared Services,Engineering & Architectural Svc -PS
J. F. Drake State CC & TC,10015176,McDaniel Darvin,11/28/2022,1800,Unrestricted Shared Services,Culinary Consumables
J. F. Drake State CC & TC,10015177,Sterling Seacrest Pritchard Inc ,11/28/2022,7149.22,Unrestricted Shared Services,Insurance and Bonding - PS
J. F. Drake State CC & TC,10015187,Armstrong Relocation Company Huntsville LLC ,12/1/2022,8085,Unexpended Plant Shared Services,Other Contractual Services - PS
J. F. Drake State CC & TC,10015188,Chamber of Commerce Huntsville/Madison County ,12/1/2022,1001.6,Unrestricted Shared Services,Memberships - PS
J. F. Drake State CC & TC,10015189,Dynamic Security Inc ,12/1/2022,4868.64,Unrestricted Shared Services,Other Contractual Services - PS
J. F. Drake State CC & TC,10015190,Lowe's Company ,12/1/2022,575.62,Unrestricted Shared Services,Maintenance & Repairs  - OOS
J. F. Drake State CC & TC,10015191,Sam's Club ,12/1/2022,83.68,Unrestricted Admin Cost Allowance,Materials and Supplies - MS
J. F. Drake State CC & TC,10015191,Sam's Club ,12/1/2022,263.83,Unrestricted Shared Services,Culinary Consumables
J. F. Drake State CC & TC,10015192,The College Board ,12/1/2022,1348.9,Unrestricted Shared Services,Testing Expense
J. F. Drake State CC & TC,10015193,Trav-Ad Signs ,12/1/2022,187,Unrestricted Shared Services,Printing and Binding - OOS
J. F. Drake State CC & TC,10015194,Bates Sidney,12/2/2022,3560,Unrestricted Shared Services,Other Professional Fees - PS
J. F. Drake State CC & TC,10015197,Alabama Flag & Banner Inc ,12/8/2022,109.5,Unrestricted Shared Services,Maintenance & Repairs  - OOS
J. F. Drake State CC & TC,10015198,Alabama Lawnmaster Inc ,12/8/2022,225.15,Unrestricted Shared Services,Maintenance & Repairs  - OOS
J. F. Drake State CC & TC,10015198,Alabama Lawnmaster Inc ,12/8/2022,3404.5,Unrestricted Shared Services,Other Contractual Services - PS
J. F. Drake State CC & TC,10015199,City Centre' LLC ,12/8/2022,5830.4,Unrestricted Shared Services,Accreditation Expense - PS
J. F. Drake State CC & TC,10015200,Constant Contact Inc. ,12/8/2022,864.5,Unrestricted Shared Services,Advertising & Promotions - OOS
J. F. Drake State CC & TC,10015201,Dynamic Security Inc ,12/8/2022,2350.33,Unrestricted Shared Services,Other Contractual Services - PS
J. F. Drake State CC & TC,10015202,Farmers Insurance ,12/8/2022,13,Unrestricted Shared Services,Insurance and Bonding - PS
J. F. Drake State CC & TC,10015203,Farrell Corporation ,12/8/2022,350,Unrestricted Shared Services,Materials and Supplies - MS
J. F. Drake State CC & TC,10015204,HESI - ELSEVIER ,12/8/2022,459,Unrestricted Shared Services,Other - AP
J. F. Drake State CC & TC,10015205,Howard Technology Solutions ,12/8/2022,1069,Unrestricted Shared Services,Technology - non capitalized - MS
J. F. Drake State CC & TC,10015206,Huntsville Business Journal ,12/8/2022,800,Unrestricted Shared Services,Advertising & Promotions - OOS
J. F. Drake State CC & TC,10015207,LogoBranders Inc ,12/8/2022,1782.27,Unrestricted Shared Services,Materials and Supplies - MS
J. F. Drake State CC & TC,10015208,Sims Patricia,12/8/2022,10,Unrestricted Shared Services,Other Travel Expenses - IS
J. F. Drake State CC & TC,10015209,The Elegant Office Inc ,12/8/2022,2099.34,Unrestricted Shared Services,Materials and Supplies - MS
J. F. Drake State CC & TC,10015210,Transportation South Inc. ,12/8/2022,77578.67,CRRSAA - HBCU and Strengthening II,Transportation Equip > $25 000 - CE
J. F. Drake State CC & TC,10015211,Uline Inc ,12/8/2022,3068.44,Unrestricted Shared Services,Materials and Supplies - MS
J. F. Drake State CC & TC,10015212,Waste Management ,12/8/2022,804.07,Unrestricted Shared Services,Waste Disposal - UC
J. F. Drake State CC & TC,10015213,Xerox Corporation ,12/8/2022,27.53,Unrestricted Shared Services,Maintenance & Repairs  - OOS
J. F. Drake State CC & TC,10015213,Xerox Corporation ,12/8/2022,34.34,Unrestricted Shared Services,Technology - non capitalized - MS
J. F. Drake State CC & TC,10015217,Alabama Labor Law Poster ,12/15/2022,192,Unrestricted Shared Services,Materials and Supplies - MS
J. F. Drake State CC & TC,10015218,Alabama Media ,12/15/2022,377.31,Unrestricted Shared Services,Advertising & Promotions - OOS
J. F. Drake State CC & TC,10015219,Armstrong Relocation Company Huntsville LLC ,12/15/2022,851.25,Unrestricted Shared Services,Materials and Supplies - MS
J. F. Drake State CC & TC,10015219,Armstrong Relocation Company Huntsville LLC ,12/15/2022,25029,Unexpended Plant Shared Services,Other Contractual Services - PS
J. F. Drake State CC & TC,10015220,Decatur Container Sales & Rental ,12/15/2022,10700,Unrestricted Shared Services,Furniture and Equip $5K - $25K - CE
J. F. Drake State CC & TC,10015221,Dynamic Security Inc ,12/15/2022,2350.32,Unrestricted Shared Services,Other Contractual Services - PS
J. F. Drake State CC & TC,10015222,Ecampus.com ,12/15/2022,211.75,Unrestricted Shared Services,Bond Surety Fee Payable - AP
J. F. Drake State CC & TC,10015223,Huntsville Utilities ,12/15/2022,1181.89,Unrestricted Shared Services,Water & Sewer - UC
J. F. Drake State CC & TC,10015223,Huntsville Utilities ,12/15/2022,1346.72,Unrestricted Shared Services,Gas & Heating Fuel - UC
J. F. Drake State CC & TC,10015223,Huntsville Utilities ,12/15/2022,23211.54,Unrestricted Shared Services,Electricity - UC
J. F. Drake State CC & TC,10015224,Mark Moore Creates LLC ,12/15/2022,1100,Unrestricted Shared Services,Other Professional Fees - PS
J. F. Drake State CC & TC,10015225,National Space Club Huntsville ,12/15/2022,1200,Unrestricted Shared Services,Advertising & Promotions - OOS
J. F. Drake State CC & TC,10015226,Nevins LLC ,12/15/2022,7206,Unrestricted Shared Services,Equipment - non capitalized - MS
J. F. Drake State CC & TC,10015226,Nevins LLC ,12/15/2022,20053.8,Unrestricted Shared Services,Furniture and Equip $5K - $25K - CE
J. F. Drake State CC & TC,10015227,Parchment LLC ,12/15/2022,265,Unrestricted Shared Services,Transcript Expense
J. F. Drake State CC & TC,10015228,Red Sage Communications Inc ,12/15/2022,900,Unrestricted Shared Services,Computer Software(non capital) - MS
J. F. Drake State CC & TC,10015229,RP Media ,12/15/2022,10086.35,Unrestricted Shared Services,Advertising & Promotions - OOS
J. F. Drake State CC & TC,10015230,Uline Inc ,12/15/2022,305.76,Unrestricted Shared Services,Materials and Supplies - MS
J. F. Drake State CC & TC,10015231,Wells Printing Company Inc ,12/15/2022,985.9,Unrestricted Shared Services,Materials and Supplies - MS
J. F. Drake State CC & TC,10015231,Wells Printing Company Inc ,12/15/2022,1119,Unrestricted Shared Services,Printing and Binding - OOS
J. F. Drake State CC & TC,10015232,Bates Sidney,12/19/2022,1860,Unrestricted Shared Services,Other Professional Fees - PS
J. F. Drake State CC & TC,10015233,Chamber of Commerce Huntsville/Madison County ,12/19/2022,825,Unrestricted Shared Services,Advertising & Promotions - OOS
J. F. Drake State CC & TC,10015234,Gary Hammon ,12/19/2022,4620,Unrestricted Shared Services,Other Contractual Services - PS
J. F. Drake State CC & TC,10015235,Krueger International Inc ,12/19/2022,1320.04,Unrestricted Shared Services,Equipment - non capitalized - MS
J. F. Drake State CC & TC,10015236,Sims Patricia,12/19/2022,36.5,Unrestricted Shared Services,Other Travel Expenses - IS
J. F. Drake State CC & TC,10015246,Armstrong Relocation Company Huntsville LLC ,1/5/2023,585,Unexpended Plant Shared Services,Short-Term Building Rentals - OOS
J. F. Drake State CC & TC,10015246,Armstrong Relocation Company Huntsville LLC ,1/5/2023,14490,Unexpended Plant Shared Services,Other Contractual Services - PS
J. F. Drake State CC & TC,10015247,Brand Street LLC ,1/5/2023,803.93,Unrestricted Shared Services,Materials and Supplies - MS
J. F. Drake State CC & TC,10015248,Castle Branch Inc. ,1/5/2023,1961.5,Unrestricted Shared Services,Other - AP
J. F. Drake State CC & TC,10015249,Cook's Pest Control ,1/5/2023,364,Unrestricted Shared Services,Other Contractual Services - PS
J. F. Drake State CC & TC,10015250,Dynamic Security Inc ,1/5/2023,7218.96,Unrestricted Shared Services,Other Contractual Services - PS
J. F. Drake State CC & TC,10015251,Ecampus.com ,1/5/2023,4816.31,Unrestricted Shared Services,Bond Surety Fee Payable - AP
J. F. Drake State CC & TC,10015252,Farmers Insurance ,1/5/2023,42,Unrestricted Shared Services,Insurance and Bonding - PS
J. F. Drake State CC & TC,10015253,Hand Arendall Harrison Sale LLC ,1/5/2023,112.5,Unrestricted Shared Services,Legal Services - PS
J. F. Drake State CC & TC,10015254,Lowe's Company ,1/5/2023,7.55,Unrestricted Shared Services,Maintenance & Repairs  - OOS
J. F. Drake State CC & TC,10015254,Lowe's Company ,1/5/2023,113.05,Unrestricted Shared Services,Materials and Supplies - MS
J. F. Drake State CC & TC,10015256,Schindler Elevator Corporation ,1/5/2023,1648.7,Unrestricted Shared Services,Other Contractual Services - PS
J. F. Drake State CC & TC,10015257,TerraCycle Regulated Waste LLC ,1/5/2023,698.5,Unrestricted Shared Services,Waste Disposal - UC
J. F. Drake State CC & TC,10015258,United Parcel Service Inc (UPS) ,1/5/2023,27.99,Unrestricted Shared Services,Freight - OOS
J. F. Drake State CC & TC,10015259,Waste Management ,1/5/2023,1046.88,Unrestricted Shared Services,Waste Disposal - UC
J. F. Drake State CC & TC,10015260,Werle Enterprises LLC ,1/5/2023,371.68,Unrestricted Shared Services,Materials and Supplies - MS
J. F. Drake State CC & TC,10015261,Xerox Corporation ,1/5/2023,15.91,Unrestricted Shared Services,Technology - non capitalized - MS
J. F. Drake State CC & TC,10015261,Xerox Corporation ,1/5/2023,20.47,Unrestricted Shared Services,Maintenance & Repairs  - OOS
J. F. Drake State CC & TC,10015262,Xerox Corporation ,1/5/2023,2743.88,Unrestricted Shared Services,Other Contractual Services - PS
J. F. Drake State CC & TC,10015264,ACT Inc ,1/10/2023,42,Unrestricted Shared Services,Testing Expense
J. F. Drake State CC & TC,10015265,Alabama Community College System ,1/10/2023,43584,Unrestricted Shared Services,Bond Reserve Fee Expense - OOS
J. F. Drake State CC & TC,10015266,Armstrong Relocation Company Huntsville LLC ,1/10/2023,2750,Unexpended Plant Shared Services,Short-Term Building Rentals - OOS
J. F. Drake State CC & TC,10015267,Huntsville Business Journal ,1/10/2023,800,Unrestricted Shared Services,Advertising & Promotions - OOS
J. F. Drake State CC & TC,10015268,Huntsville Utilities ,1/10/2023,1412.74,Unrestricted Shared Services,Water & Sewer - UC
J. F. Drake State CC & TC,10015268,Huntsville Utilities ,1/10/2023,3414.36,Unrestricted Shared Services,Gas & Heating Fuel - UC
J. F. Drake State CC & TC,10015268,Huntsville Utilities ,1/10/2023,23200.86,Unrestricted Shared Services,Electricity - UC
J. F. Drake State CC & TC,10015269,PODS Enterprises Inc ,1/10/2023,1566.3,Unexpended Plant Shared Services,Short-Term Equipment Rentals - OOS
J. F. Drake State CC & TC,10015270,Red Sage Communications Inc ,1/10/2023,15985,Unrestricted Shared Services,Other Contractual Services - PS
J. F. Drake State CC & TC,10015271,RP Media ,1/10/2023,7127.35,Unrestricted Shared Services,Advertising & Promotions - OOS
J. F. Drake State CC & TC,10015272,Safety Kleen Systems Inc ,1/10/2023,677.49,Unrestricted Shared Services,Waste Disposal - UC
J. F. Drake State CC & TC,10015273,Wells Printing Company Inc ,1/10/2023,5834,Unrestricted Shared Services,Printing and Binding - OOS
J. F. Drake State CC & TC,10015274,Dynamic Security Inc ,1/13/2023,2658.22,Unrestricted Shared Services,Other Contractual Services - PS
J. F. Drake State CC & TC,10015275,Grammarly Inc ,1/13/2023,7500,Unrestricted Shared Services,Computer Software(non capital) - MS
J. F. Drake State CC & TC,10015276,Kimball International Brands Inc. ,1/13/2023,10613.12,Unrestricted Shared Services,Furniture and Equip $5K - $25K - CE
J. F. Drake State CC & TC,10015276,Kimball International Brands Inc. ,1/13/2023,21879,Unrestricted Shared Services,Equipment - non capitalized - MS
J. F. Drake State CC & TC,10015277,State of Alabama ,1/13/2023,24.25,Unrestricted Shared Services,Taxes & Licenses - OOS
J. F. Drake State CC & TC,10015278,Xerox Corporation ,1/13/2023,1467.66,Unrestricted Shared Services,Other Contractual Services - PS
J. F. Drake State CC & TC,10015279,Alabama Lawnmaster Inc ,1/19/2023,3404.5,Unrestricted Shared Services,Other Contractual Services - PS
J. F. Drake State CC & TC,10015280,HOAR Program Management LLC ,1/19/2023,73428.77,Unexpended Plant Shared Services,Engineering & Architectural Svc -PS
J. F. Drake State CC & TC,10015281,National Office Furniture Inc ,1/19/2023,11029.5,Unexpended Plant Shared Services,Equipment - non capitalized - MS
J. F. Drake State CC & TC,10015282,Pioneer Management Consulting LLC ,1/19/2023,2500,Unrestricted Shared Services,Other Contractual Services - PS
J. F. Drake State CC & TC,10015283,PODS Enterprises Inc ,1/19/2023,1176.9,Unexpended Plant Shared Services,Short-Term Equipment Rentals - OOS
J. F. Drake State CC & TC,10015284,Rosetta James Foundation ,1/19/2023,1000,Unrestricted Shared Services,Advertising & Promotions - OOS
J. F. Drake State CC & TC,10015285,Waste Management ,1/19/2023,1046.88,Unrestricted Shared Services,Waste Disposal - UC
J. F. Drake State CC & TC,10015289,56 Capitals LLC ,1/24/2023,8000,Unrestricted Shared Services,Other Professional Fees - PS
J. F. Drake State CC & TC,10015290,Ascend Learning Holdings LLC ,1/24/2023,60906.49,Unrestricted Shared Services,Other - AP
J. F. Drake State CC & TC,10015291,Castle Branch Inc. ,1/24/2023,1245.25,Unrestricted Shared Services,Other - AP
J. F. Drake State CC & TC,10015292,Cook's Pest Control ,1/24/2023,364,Unrestricted Shared Services,Other Contractual Services - PS
J. F. Drake State CC & TC,10015293,Delta Theta Lambda Ed Foundation ,1/24/2023,500,Unrestricted Shared Services,Advertising & Promotions - OOS
J. F. Drake State CC & TC,10015294,Howard Technology Solutions ,1/24/2023,1200,Unrestricted Shared Services,Computer Software(non capital) - MS
J. F. Drake State CC & TC,10015295,Huntsville Business Journal ,1/24/2023,800,Unrestricted Shared Services,Advertising & Promotions - OOS
J. F. Drake State CC & TC,10015297,Wells Printing Company Inc ,1/24/2023,71.96,Unrestricted Shared Services,Materials and Supplies - MS
J. F. Drake State CC & TC,10015298,Werle Enterprises LLC ,1/24/2023,75.81,Unrestricted Shared Services,Materials and Supplies - MS
J. F. Drake State CC & TC,10015333,Alabama A & M University Foundation ,2/1/2023,1350,Unrestricted Shared Services,Advertising & Promotions - OOS
J. F. Drake State CC & TC,10015334,Castle Branch Inc. ,2/1/2023,332.25,Unrestricted Shared Services,Other - AP
J. F. Drake State CC & TC,10015335,CDW LLC ,2/1/2023,178.99,Unrestricted Shared Services,Materials and Supplies - MS
J. F. Drake State CC & TC,10015336,Dynamic Security Inc ,2/1/2023,4700.64,Unrestricted Shared Services,Other Contractual Services - PS
J. F. Drake State CC & TC,10015337,Ecampus.com ,2/1/2023,91478.62,Unrestricted Shared Services,Bond Surety Fee Payable - AP
J. F. Drake State CC & TC,10015338,Hand Arendall Harrison Sale LLC ,2/1/2023,1710,Unrestricted Shared Services,Legal Services - PS
J. F. Drake State CC & TC,10015339,HOAR Program Management LLC ,2/1/2023,42407.27,Unexpended Plant Shared Services,Engineering & Architectural Svc -PS
J. F. Drake State CC & TC,10015340,Kings III of America LLC ,2/1/2023,270,Unrestricted Shared Services,Maintenance & Repairs  - OOS
J. F. Drake State CC & TC,10015341,Lowe's Company ,2/1/2023,70.4,Unrestricted Shared Services,Maintenance & Repairs  - OOS
J. F. Drake State CC & TC,10015342,Xerox Corporation ,2/1/2023,20.92,Unrestricted Shared Services,Technology - non capitalized - MS
J. F. Drake State CC & TC,10015342,Xerox Corporation ,2/1/2023,24.14,Unrestricted Shared Services,Maintenance & Repairs  - OOS
J. F. Drake State CC & TC,10015343,Xerox Corporation ,2/1/2023,1441.31,Unrestricted Shared Services,Taxes & Licenses - OOS
J. F. Drake State CC & TC,10015347,ACT Inc ,2/7/2023,162,Unrestricted Shared Services,Testing Expense
J. F. Drake State CC & TC,10015348,Alabama Lawnmaster Inc ,2/7/2023,3404.5,Unrestricted Shared Services,Other Contractual Services - PS
J. F. Drake State CC & TC,10015349,Armstrong Relocation Company Huntsville LLC ,2/7/2023,292.5,Unexpended Plant Shared Services,Short-Term Building Rentals - OOS
J. F. Drake State CC & TC,10015350,Bates Sidney,2/7/2023,3240,Unrestricted Shared Services,Other Professional Fees - PS
J. F. Drake State CC & TC,10015351,Love Stephanie,2/7/2023,650,Unrestricted Shared Services,Other Contractual Services - PS
J. F. Drake State CC & TC,10015352,Mark Moore Creates LLC ,2/7/2023,75,Unrestricted Shared Services,Other Professional Fees - PS
J. F. Drake State CC & TC,10015353,State of Alabama ,2/7/2023,950,Unrestricted Shared Services,Other - AP
J. F. Drake State CC & TC,10015354,Xerox Corporation ,2/7/2023,11579.34,Unrestricted Shared Services,Other Contractual Services - PS
J. F. Drake State CC & TC,10015355,Currie Systems Inc. ,2/9/2023,157.2,Unrestricted Shared Services,Printing and Binding - OOS
J. F. Drake State CC & TC,10015356,Dynamic Security Inc ,2/9/2023,2490.22,Unrestricted Shared Services,Other Contractual Services - PS
J. F. Drake State CC & TC,10015357,Ellucian Company LP ,2/9/2023,78191,Unrestricted Shared Services,Computer Software(non capital) - MS
J. F. Drake State CC & TC,10015358,HOAR Program Management LLC ,2/9/2023,80425.41,Unexpended Plant Shared Services,Engineering & Architectural Svc -PS
J. F. Drake State CC & TC,10015359,Miller Stephanie,2/9/2023,3500,Unrestricted Shared Services,Other Professional Fees - PS
J. F. Drake State CC & TC,10015360,Oak Hall Industries LP ,2/9/2023,2794.35,Unrestricted Shared Services,Graduation Expense
J. F. Drake State CC & TC,10015361,Huntsville Utilities ,2/16/2023,1374.84,Unrestricted Shared Services,Water & Sewer - UC
J. F. Drake State CC & TC,10015361,Huntsville Utilities ,2/16/2023,3794.96,Unrestricted Shared Services,Gas & Heating Fuel - UC
J. F. Drake State CC & TC,10015361,Huntsville Utilities ,2/16/2023,27310.09,Unrestricted Shared Services,Electricity - UC
J. F. Drake State CC & TC,10015363,Sign-1-1 Emergency Sign Makers ,2/21/2023,1836,Unrestricted Shared Services,Other Contractual Services - PS
J. F. Drake State CC & TC,10015364,56 Capitals LLC ,2/22/2023,2000,Unrestricted Shared Services,Other Professional Fees - PS
J. F. Drake State CC & TC,10015365,Alabama Media ,2/22/2023,756.95,Unrestricted Shared Services,Advertising & Promotions - OOS
J. F. Drake State CC & TC,10015366,Chamber of Commerce Huntsville/Madison County ,2/22/2023,1500,Unrestricted Shared Services,Advertising & Promotions - OOS
J. F. Drake State CC & TC,10015367,Cobbs Allen & Hall Inc. ,2/22/2023,4326.66,Unrestricted Shared Services,Insurance and Bonding - PS
J. F. Drake State CC & TC,10015368,Cool Stuff by Austin ,2/22/2023,200,Unrestricted Shared Services,Other Professional Fees - PS
J. F. Drake State CC & TC,10015369,Dynamic Security Inc ,2/22/2023,5861.81,Unrestricted Shared Services,Other Contractual Services - PS
J. F. Drake State CC & TC,10015370,Farrell Corporation ,2/22/2023,3153.37,Unrestricted Shared Services,Materials and Supplies - MS
J. F. Drake State CC & TC,10015371,FedEx ,2/22/2023,56.8,Unrestricted Shared Services,Freight - OOS
J. F. Drake State CC & TC,10015372,Hand Arendall Harrison Sale LLC ,2/22/2023,22.5,Unrestricted Shared Services,Legal Services - PS
J. F. Drake State CC & TC,10015373,Huntsville Business Journal ,2/22/2023,800,Unrestricted Shared Services,Advertising & Promotions - OOS
J. F. Drake State CC & TC,10015374,Nola Van Peursem Architects PC ,2/22/2023,637737.07,Unexpended Plant Shared Services,Other Professional Fees - PS
J. F. Drake State CC & TC,10015375,PODS Enterprises Inc ,2/22/2023,1176.9,Unexpended Plant Shared Services,Short-Term Equipment Rentals - OOS
J. F. Drake State CC & TC,10015376,RP Media ,2/22/2023,7877.35,Unrestricted Shared Services,Advertising & Promotions - OOS
J. F. Drake State CC & TC,10015377,Thompson Abigail,2/22/2023,102.84,Unrestricted Shared Services,Student 3rd Party Reimbursement-AR
J. F. Drake State CC & TC,10015378,Trav-Ad Signs ,2/22/2023,90,Unrestricted Shared Services,Materials and Supplies - MS
J. F. Drake State CC & TC,10015379,Waste Management ,2/22/2023,1046.88,Unrestricted Shared Services,Waste Disposal - UC
J. F. Drake State CC & TC,10015380,Wells Printing Company Inc ,2/22/2023,98,Unrestricted Shared Services,Printing and Binding - OOS
J. F. Drake State CC & TC,10015381,Werle Enterprises LLC ,2/22/2023,26.81,Unrestricted Shared Services,Materials and Supplies - MS
J. F. Drake State CC & TC,10015382,Xerox Corporation ,2/22/2023,1476.66,Unrestricted Shared Services,Other Contractual Services - PS
J. F. Drake State CC & TC,10015392,Cook's Pest Control ,3/1/2023,364,Unrestricted Shared Services,Other Contractual Services - PS
J. F. Drake State CC & TC,10015393,Dynamic Security Inc ,3/1/2023,2770.02,Unrestricted Shared Services,Other Contractual Services - PS
J. F. Drake State CC & TC,10015394,FedEx ,3/1/2023,11.02,Unrestricted Shared Services,Freight - OOS
J. F. Drake State CC & TC,10015395,Heartland Campus Solutions Ecsi ,3/1/2023,2537.3,Unrestricted Shared Services,Other Contractual Services - PS
J. F. Drake State CC & TC,10015396,Huntsville Committee of 100 ,3/1/2023,1400,Unrestricted Shared Services,Memberships - PS
J. F. Drake State CC & TC,10015397,Huntsville Metro Black Chamber of Commerce ,3/1/2023,450,Unrestricted Shared Services,Memberships - PS
J. F. Drake State CC & TC,10015398,Huntsville Rotary Club Foundation ,3/1/2023,1360,Unrestricted Shared Services,Memberships - PS
J. F. Drake State CC & TC,10015399,Keiani Taylor ,3/1/2023,150,Unrestricted Shared Services,Honorariums - PS
J. F. Drake State CC & TC,10015400,LogoBranders Inc ,3/1/2023,2892.01,Unrestricted Shared Services,Advertising & Promotions - OOS
J. F. Drake State CC & TC,10015401,Lowe's Company ,3/1/2023,1372.47,Unrestricted Shared Services,Maintenance & Repairs  - OOS
J. F. Drake State CC & TC,10015402,Mitchell Repair Information Company LLC ,3/1/2023,1159,Unrestricted Shared Services,Computer Software(non capital) - MS
J. F. Drake State CC & TC,10015403,Pioneer Management Consulting LLC ,3/1/2023,1250,Unrestricted Shared Services,Other Contractual Services - PS
J. F. Drake State CC & TC,10015404,Red Sage Communications Inc ,3/1/2023,61555.54,Unrestricted Shared Services,Other Contractual Services - PS
J. F. Drake State CC & TC,10015405,Richardson & Deemer Insurance Inc ,3/1/2023,1369.97,Unrestricted Shared Services,Insurance and Bonding - PS
J. F. Drake State CC & TC,10015406,The Webster Tree Company Inc. ,3/1/2023,6000,Unrestricted Shared Services,Other Contractual Services - PS
J. F. Drake State CC & TC,10015407,Training for Business & Industry Network ,3/1/2023,300,Unrestricted Shared Services,Memberships - PS
J. F. Drake State CC & TC,10015408,ACT Inc ,3/7/2023,42.5,Unrestricted Shared Services,Testing Expense
J. F. Drake State CC & TC,10015409,Bates Sidney,3/7/2023,3200,Unrestricted Shared Services,Other Professional Fees - PS
J. F. Drake State CC & TC,10015410,Bhate Environmental Associates Inc ,3/7/2023,3850,Unexpended Plant Shared Services,Other Professional Fees - PS
J. F. Drake State CC & TC,10015411,Castle Branch Inc. ,3/7/2023,349.5,Unrestricted Shared Services,Other - AP
J. F. Drake State CC & TC,10015412,Dynamic Security Inc ,3/7/2023,2965.89,Unrestricted Shared Services,Other Contractual Services - PS
J. F. Drake State CC & TC,10015413,Office Depot ,3/7/2023,109.53,Unrestricted Shared Services,Materials and Supplies - MS
J. F. Drake State CC & TC,10015414,Redstone Federal Credit Union ,3/7/2023,500,Unrestricted Shared Services,Short-Term Building Rentals - OOS
J. F. Drake State CC & TC,10015415,Xerox Corporation ,3/7/2023,12.32,Unrestricted Shared Services,Technology - non capitalized - MS
J. F. Drake State CC & TC,10015415,Xerox Corporation ,3/7/2023,45.66,Unrestricted Shared Services,Maintenance & Repairs  - OOS
J. F. Drake State CC & TC,10015427,North Alabama Engraving Stamp Company ,3/13/2023,44.3,Unrestricted Shared Services,Materials and Supplies - MS
J. F. Drake State CC & TC,10015428,Alabama Lawnmaster Inc ,3/14/2023,3404.5,Unrestricted Shared Services,Other Contractual Services - PS
J. F. Drake State CC & TC,10015429,Connecting The Dots Foundation Inc ,3/14/2023,250,Unrestricted Shared Services,Advertising & Promotions - OOS
J. F. Drake State CC & TC,10015430,Cool Stuff by Austin ,3/14/2023,600,Unrestricted Shared Services,Other Professional Fees - PS
J. F. Drake State CC & TC,10015431,Driskill ChrisAnn,3/14/2023,10,Unrestricted Shared Services,Other Travel Expenses - IS
J. F. Drake State CC & TC,10015432,Dynamic Security Inc ,3/14/2023,2756.03,Unrestricted Shared Services,Other Contractual Services - PS
J. F. Drake State CC & TC,10015433,HOAR Program Management LLC ,3/14/2023,53969.31,Unexpended Plant Shared Services,Engineering & Architectural Svc -PS
J. F. Drake State CC & TC,10015434,Huntsville Beautification Board ,3/14/2023,50,Unrestricted Shared Services,Grants  Awards and Prizes - OOS
J. F. Drake State CC & TC,10015435,Huntsville Utilities ,3/14/2023,753.4,Unrestricted Shared Services,Water & Sewer - UC
J. F. Drake State CC & TC,10015435,Huntsville Utilities ,3/14/2023,3501.76,Unrestricted Shared Services,Gas & Heating Fuel - UC
J. F. Drake State CC & TC,10015435,Huntsville Utilities ,3/14/2023,24350.23,Unrestricted Shared Services,Electricity - UC
J. F. Drake State CC & TC,10015436,Koorsen Fire & Security ,3/14/2023,345,Unrestricted Shared Services,Other Contractual Services - PS
J. F. Drake State CC & TC,10015437,Love Stephanie,3/14/2023,650,Unrestricted Shared Services,Other Contractual Services - PS
J. F. Drake State CC & TC,10015438,New Media Arts Center Inc ,3/14/2023,350,Unrestricted Shared Services,Advertising & Promotions - OOS
J. F. Drake State CC & TC,10015439,Red Sage Communications Inc ,3/14/2023,3095.4,Unrestricted Shared Services,Other Contractual Services - PS
J. F. Drake State CC & TC,10015440,RP Media ,3/14/2023,5357.35,Unrestricted Shared Services,Advertising & Promotions - OOS
J. F. Drake State CC & TC,10015441,Sign-1-1 Emergency Sign Makers ,3/14/2023,7344,Unrestricted Shared Services,Other Contractual Services - PS
J. F. Drake State CC & TC,10015442,Sims Patricia,3/14/2023,20,Unrestricted Shared Services,Other Travel Expenses - IS
J. F. Drake State CC & TC,10015442,Sims Patricia,3/14/2023,340,Unrestricted Shared Services,Overnight (non tax per diem)- IS
J. F. Drake State CC & TC,10015443,Walker Rachel,3/14/2023,3500,Unrestricted Shared Services,Other Professional Fees - PS
J. F. Drake State CC & TC,10015444,Castle Branch Inc. ,3/22/2023,38,Unrestricted Shared Services,Other - AP
J. F. Drake State CC & TC,10015445,Cook's Pest Control ,3/22/2023,364,Unrestricted Shared Services,Other Contractual Services - PS
J. F. Drake State CC & TC,10015446,Cool Stuff by Austin ,3/22/2023,50,Unrestricted Shared Services,Other Professional Fees - PS
J. F. Drake State CC & TC,10015447,Dynamic Security Inc ,3/22/2023,2742.04,Unrestricted Shared Services,Other Contractual Services - PS
J. F. Drake State CC & TC,10015448,Mauldin & Jenkins LLC ,3/22/2023,44900,Unrestricted Shared Services,Accounting & Auditing Services - PS
J. F. Drake State CC & TC,10015449,National Center for Construction Education and Research ,3/22/2023,60.75,Unrestricted Shared Services,Testing Expense
J. F. Drake State CC & TC,10015450,New Life Outreach International ,3/22/2023,1150,Unrestricted Shared Services,Other Contractual Services - PS
J. F. Drake State CC & TC,10015451,Office Depot ,3/22/2023,134.76,Unrestricted Shared Services,Materials and Supplies - MS
J. F. Drake State CC & TC,10015452,Waste Management ,3/22/2023,1046.88,Unrestricted Shared Services,Waste Disposal - UC
J. F. Drake State CC & TC,10015453,Xerox Corporation ,3/22/2023,1467.66,Unrestricted Shared Services,Other Contractual Services - PS
J. F. Drake State CC & TC,10015454,Mark Moore Creates LLC ,3/24/2023,300,Unrestricted Shared Services,Other Professional Fees - PS
J. F. Drake State CC & TC,10015455,56 Capitals LLC ,3/29/2023,2000,Unrestricted Shared Services,Other Professional Fees - PS
J. F. Drake State CC & TC,10015456,ACCS President's Association ,3/29/2023,300,Unrestricted Shared Services,Registration Fees- IS
J. F. Drake State CC & TC,10015457,ACCS Public Relations Association ,3/29/2023,150,Unrestricted Shared Services,Memberships - PS
J. F. Drake State CC & TC,10015458,Chamber of Commerce Huntsville/Madison County ,3/29/2023,1000,Unrestricted Shared Services,Advertising & Promotions - OOS
J. F. Drake State CC & TC,10015459,Cool Stuff by Austin ,3/29/2023,2800,Unrestricted Shared Services,Other Professional Fees - PS
J. F. Drake State CC & TC,10015460,Dynamic Security Inc ,3/29/2023,2336.33,Unrestricted Shared Services,Other Contractual Services - PS
J. F. Drake State CC & TC,10015461,Hand Arendall Harrison Sale LLC ,3/29/2023,382.5,Unrestricted Shared Services,Legal Services - PS
J. F. Drake State CC & TC,10015462,Huntsville Business Journal ,3/29/2023,800,Unrestricted Shared Services,Advertising & Promotions - OOS
J. F. Drake State CC & TC,10015463,Lowe's Company ,3/29/2023,414.93,Unrestricted Shared Services,Maintenance & Repairs  - OOS
J. F. Drake State CC & TC,10015464,Paths for Success Foundation ,3/29/2023,1800,Unrestricted Shared Services,Participant Costs-Other
J. F. Drake State CC & TC,10015465,Safety Kleen Systems Inc ,3/29/2023,435,Unrestricted Shared Services,Waste Disposal - UC
J. F. Drake State CC & TC,10015466,Thomas Electric Inc ,3/29/2023,3752,Unexpended Plant Shared Services,Other Contractual Services - PS
J. F. Drake State CC & TC,10015467,ACCS Public Relations Association ,3/31/2023,50,Unrestricted Shared Services,Registration Fees- IS
J. F. Drake State CC & TC,10015468,Alabama A & M University ,3/31/2023,1250,Unrestricted Shared Services,Short-Term Building Rentals - OOS
J. F. Drake State CC & TC,10015469,Burritt Museum Association ,3/31/2023,2750,Unrestricted Shared Services,Advertising & Promotions - OOS
J. F. Drake State CC & TC,10015471,Dynamic Security Inc ,3/31/2023,3831.75,Unrestricted Shared Services,Other Contractual Services - PS
J. F. Drake State CC & TC,10015482,ACT Inc ,4/5/2023,151,Unrestricted Shared Services,Testing Expense
J. F. Drake State CC & TC,10015483,Alabama Media ,4/5/2023,750,Unrestricted Shared Services,Advertising & Promotions - OOS
J. F. Drake State CC & TC,10015484,Armstrong Relocation Company Huntsville LLC ,4/5/2023,292.5,Unexpended Plant Shared Services,Short-Term Building Rentals - OOS
J. F. Drake State CC & TC,10015485,Bates Sidney,4/5/2023,3320,Unrestricted Shared Services,Other Professional Fees - PS
J. F. Drake State CC & TC,10015486,Dynamic Security Inc ,4/5/2023,3301.2,Unrestricted Shared Services,Other Contractual Services - PS
J. F. Drake State CC & TC,10015487,National Center for Construction Education and Research ,4/5/2023,186.75,Unrestricted Shared Services,Testing Expense
J. F. Drake State CC & TC,10015488,Nola Van Peursem Architects PC ,4/5/2023,88676.04,Unexpended Plant Shared Services,Other Professional Fees - PS
J. F. Drake State CC & TC,10015489,Southern Assoc of Colleges & Schools ,4/5/2023,500,Unrestricted Shared Services,Accreditation Expense - PS
J. F. Drake State CC & TC,10015490,Wells Printing Company Inc ,4/5/2023,1424,Unrestricted Shared Services,Graduation Expense
J. F. Drake State CC & TC,10015490,Wells Printing Company Inc ,4/5/2023,3522,Unrestricted Shared Services,Advertising & Promotions - OOS
J. F. Drake State CC & TC,10015491,Xerox Corporation ,4/5/2023,14.22,Unrestricted Shared Services,Technology - non capitalized - MS
J. F. Drake State CC & TC,10015491,Xerox Corporation ,4/5/2023,26.29,Unrestricted Shared Services,Maintenance & Repairs  - OOS
J. F. Drake State CC & TC,10015492,Alabama A & M University ,4/12/2023,2500,Unrestricted Shared Services,Short-Term Building Rentals - OOS
J. F. Drake State CC & TC,10015493,Aramark Services Inc ,4/12/2023,784.52,Unrestricted Shared Services,Culinary Consumables
J. F. Drake State CC & TC,10015494,Crown Trophy ,4/12/2023,398.05,Unrestricted Shared Services,Grants  Awards and Prizes - OOS
J. F. Drake State CC & TC,10015495,Driskill ChrisAnn,4/12/2023,69.5,Unrestricted Shared Services,Conus (meals) - OS
J. F. Drake State CC & TC,10015495,Driskill ChrisAnn,4/12/2023,104,Unrestricted Shared Services,Other Travel Expenses - OS
J. F. Drake State CC & TC,10015495,Driskill ChrisAnn,4/12/2023,848.34,Unrestricted Shared Services,Lodging - OS
J. F. Drake State CC & TC,10015496,FedEx ,4/12/2023,9.03,Unrestricted Shared Services,Freight - OOS
J. F. Drake State CC & TC,10015497,Henderson Carolyn,4/12/2023,109.25,Unrestricted Shared Services,Conus (meals) - OS
J. F. Drake State CC & TC,10015497,Henderson Carolyn,4/12/2023,149.72,Unrestricted Shared Services,Other Travel Expenses - OS
J. F. Drake State CC & TC,10015498,HOAR Program Management LLC ,4/12/2023,52899.79,Unexpended Plant Shared Services,Engineering & Architectural Svc -PS
J. F. Drake State CC & TC,10015499,Huntsville Utilities ,4/12/2023,667.81,Unrestricted Shared Services,Water & Sewer - UC
J. F. Drake State CC & TC,10015499,Huntsville Utilities ,4/12/2023,1181.64,Unrestricted Shared Services,Gas & Heating Fuel - UC
J. F. Drake State CC & TC,10015499,Huntsville Utilities ,4/12/2023,19434.91,Unrestricted Shared Services,Electricity - UC
J. F. Drake State CC & TC,10015500,LogoBranders Inc ,4/12/2023,334.44,Unrestricted Shared Services,Materials and Supplies - MS
J. F. Drake State CC & TC,10015500,LogoBranders Inc ,4/12/2023,976.3,Unrestricted Shared Services,Printing and Binding - OOS
J. F. Drake State CC & TC,10015500,LogoBranders Inc ,4/12/2023,15561.38,Unrestricted Shared Services,Advertising & Promotions - OOS
J. F. Drake State CC & TC,10015501,Madison County Service Center ,4/12/2023,1244.2,Unrestricted Shared Services,Taxes & Licenses - OOS
J. F. Drake State CC & TC,10015502,Oak Hall Industries LP ,4/12/2023,66.28,Unrestricted Shared Services,Graduation Expense
J. F. Drake State CC & TC,10015503,Office Depot ,4/12/2023,134.1,Unrestricted Shared Services,Materials and Supplies - MS
J. F. Drake State CC & TC,10015504,PODS Enterprises Inc ,4/12/2023,1176.9,Unexpended Plant Shared Services,Short-Term Equipment Rentals - OOS
J. F. Drake State CC & TC,10015505,Red Sage Communications Inc ,4/12/2023,9389.25,Unrestricted Shared Services,Other Contractual Services - PS
J. F. Drake State CC & TC,10015506,RP Media ,4/12/2023,3917.35,Unrestricted Shared Services,Advertising & Promotions - OOS
J. F. Drake State CC & TC,10015507,Safety Kleen Systems Inc ,4/12/2023,689.44,Unrestricted Shared Services,Waste Disposal - UC
J. F. Drake State CC & TC,10015508,Tate Sharde,4/12/2023,140,Unrestricted Shared Services,Other Contractual Services - PS
J. F. Drake State CC & TC,10015509,Teacher's Retirement Systems of Alabama ,4/12/2023,1400,Unrestricted Shared Services,Miscellaneous Revenue - VIF
J. F. Drake State CC & TC,10015510,Tri- State Metals Co Inc ,4/12/2023,499.92,Unrestricted Shared Services,Materials and Supplies - MS
J. F. Drake State CC & TC,10015511,Baugher Christian,4/17/2023,120,Unrestricted Shared Services,Participant Costs-Stipends
J. F. Drake State CC & TC,10015512,Chandler Shania,4/17/2023,120,Unrestricted Shared Services,Participant Costs-Stipends
J. F. Drake State CC & TC,10015513,Coolie Roneshae,4/17/2023,120,Unrestricted Shared Services,Participant Costs-Stipends
J. F. Drake State CC & TC,10015514,Duncan Macy,4/17/2023,120,Unrestricted Shared Services,Participant Costs-Stipends
J. F. Drake State CC & TC,10015515,Durant Tim,4/17/2023,120,Unrestricted Shared Services,Participant Costs-Stipends
J. F. Drake State CC & TC,10015516,Edwards Runzell,4/17/2023,120,Unrestricted Shared Services,Participant Costs-Stipends
J. F. Drake State CC & TC,10015517,Forgey Walker,4/17/2023,120,Unrestricted Shared Services,Participant Costs-Stipends
J. F. Drake State CC & TC,10015518,Garza Enrique,4/17/2023,120,Unrestricted Shared Services,Participant Costs-Stipends
J. F. Drake State CC & TC,10015519,Gensler Johnathan,4/17/2023,120,Unrestricted Shared Services,Participant Costs-Stipends
J. F. Drake State CC & TC,10015520,Hickman William,4/17/2023,120,Unrestricted Shared Services,Participant Costs-Stipends
J. F. Drake State CC & TC,10015521,Holte Lillian,4/17/2023,120,Unrestricted Shared Services,Participant Costs-Stipends
J. F. Drake State CC & TC,10015522,Humphrey Tamera,4/17/2023,120,Unrestricted Shared Services,Participant Costs-Stipends
J. F. Drake State CC & TC,10015523,Humphrey Tiera,4/17/2023,120,Unrestricted Shared Services,Participant Costs-Stipends
J. F. Drake State CC & TC,10015524,Johnson Jazmonique,4/17/2023,120,Unrestricted Shared Services,Participant Costs-Stipends
J. F. Drake State CC & TC,10015525,Kouraogo Nabonsbamba Ibrahim,4/17/2023,120,Unrestricted Shared Services,Participant Costs-Stipends
J. F. Drake State CC & TC,10015526,Leslie Jayvion,4/17/2023,120,Unrestricted Shared Services,Participant Costs-Stipends
J. F. Drake State CC & TC,10015527,Lolley Jon,4/17/2023,120,Unrestricted Shared Services,Participant Costs-Stipends
J. F. Drake State CC & TC,10015528,Lopez Adrian,4/17/2023,120,Unrestricted Shared Services,Participant Costs-Stipends
J. F. Drake State CC & TC,10015529,Mitchell Sanchasaty,4/17/2023,120,Unrestricted Shared Services,Participant Costs-Stipends
J. F. Drake State CC & TC,10015530,Oliver Gregory,4/17/2023,120,Unrestricted Shared Services,Participant Costs-Stipends
J. F. Drake State CC & TC,10015531,Powell Noah,4/17/2023,120,Unrestricted Shared Services,Participant Costs-Stipends
J. F. Drake State CC & TC,10015532,Robinson Regina,4/17/2023,120,Unrestricted Shared Services,Participant Costs-Stipends
J. F. Drake State CC & TC,10015534,Tinker Jesse,4/17/2023,120,Unrestricted Shared Services,Participant Costs-Stipends
J. F. Drake State CC & TC,10015535,Williams Jasmine,4/17/2023,120,Unrestricted Shared Services,Participant Costs-Stipends
J. F. Drake State CC & TC,10015536,Yell Stephanie,4/17/2023,120,Unrestricted Shared Services,Participant Costs-Stipends
J. F. Drake State CC & TC,10015537,56 Capitals LLC ,4/19/2023,2000,Unrestricted Shared Services,Other Professional Fees - PS
J. F. Drake State CC & TC,10015538,Aramark Services Inc ,4/19/2023,489.97,Unrestricted Shared Services,Graduation Expense
J. F. Drake State CC & TC,10015538,Aramark Services Inc ,4/19/2023,648.71,Unrestricted Shared Services,Culinary Consumables
J. F. Drake State CC & TC,10015539,Castle Branch Inc. ,4/19/2023,189.5,Unrestricted Shared Services,Other - AP
J. F. Drake State CC & TC,10015540,Cool Stuff by Austin ,4/19/2023,600,Unrestricted Shared Services,Other Professional Fees - PS
J. F. Drake State CC & TC,10015541,Downtown Huntsville Inc ,4/19/2023,1000,Unrestricted Shared Services,Advertising & Promotions - OOS
J. F. Drake State CC & TC,10015542,Dynamic Security Inc ,4/19/2023,7329.45,Unrestricted Shared Services,Other Contractual Services - PS
J. F. Drake State CC & TC,10015543,Love Stephanie,4/19/2023,650,Unrestricted Shared Services,Other Contractual Services - PS
J. F. Drake State CC & TC,10015544,Mullins Special Occasions ,4/19/2023,711,Unrestricted Shared Services,Short-Term Equipment Rentals - OOS
J. F. Drake State CC & TC,10015545,Oak Hall Industries LP ,4/19/2023,1032.5,Unrestricted Shared Services,Graduation Expense
J. F. Drake State CC & TC,10015546,Office Depot ,4/19/2023,64.8,Unrestricted Shared Services,Materials and Supplies - MS
J. F. Drake State CC & TC,10015547,Parchment LLC ,4/19/2023,84.2,Unrestricted Shared Services,Transcript Expense
J. F. Drake State CC & TC,10015548,Pioneer Management Consulting LLC ,4/19/2023,1250,Unrestricted Shared Services,Other Contractual Services - PS
J. F. Drake State CC & TC,10015549,PODS Enterprises Inc ,4/19/2023,1176.9,Unexpended Plant Shared Services,Short-Term Equipment Rentals - OOS
J. F. Drake State CC & TC,10015550,President's Round Table ,4/19/2023,600,Unrestricted Shared Services,Memberships - PS
J. F. Drake State CC & TC,10015551,Raymond Alice,4/19/2023,106,Unrestricted Shared Services,Other Travel Expenses - OS
J. F. Drake State CC & TC,10015551,Raymond Alice,4/19/2023,140.25,Unrestricted Shared Services,Conus (meals) - OS
J. F. Drake State CC & TC,10015551,Raymond Alice,4/19/2023,992.28,Unrestricted Shared Services,Lodging - OS
J. F. Drake State CC & TC,10015552,Relyco Sales Inc ,4/19/2023,681.4,Unrestricted Shared Services,Materials and Supplies - MS
J. F. Drake State CC & TC,10015553,Tate Sharde,4/19/2023,70,Unrestricted Shared Services,Other Contractual Services - PS
J. F. Drake State CC & TC,10015554,The Valley Weekly ,4/19/2023,4680,Unrestricted Shared Services,Advertising & Promotions - OOS
J. F. Drake State CC & TC,10015555,The Webster Tree Company Inc. ,4/19/2023,3100,Unrestricted Shared Services,Other Contractual Services - PS
J. F. Drake State CC & TC,10015556,Village of Promise ,4/19/2023,1200,Unrestricted Shared Services,Advertising & Promotions - OOS
J. F. Drake State CC & TC,10015557,Waste Management ,4/19/2023,1046.88,Unrestricted Shared Services,Waste Disposal - UC
J. F. Drake State CC & TC,10015558,Xerox Corporation ,4/19/2023,1467.66,Unrestricted Shared Services,Other Contractual Services - PS
J. F. Drake State CC & TC,10015559,Alabama A & M University ,4/25/2023,1250,Unrestricted Shared Services,Short-Term Building Rentals - OOS
J. F. Drake State CC & TC,10015560,Aramark Services Inc ,4/25/2023,2582.43,Unrestricted Shared Services,Graduation Expense
J. F. Drake State CC & TC,10015561,Baker Elijah,4/25/2023,300,Unrestricted Shared Services,Overnight (non tax per diem)- IS
J. F. Drake State CC & TC,10015562,Chamber of Commerce Huntsville/Madison County ,4/25/2023,475,Unrestricted Shared Services,Advertising & Promotions - OOS
J. F. Drake State CC & TC,10015563,Cook's Pest Control ,4/25/2023,364,Unrestricted Shared Services,Other Contractual Services - PS
J. F. Drake State CC & TC,10015564,Hand Arendall Harrison Sale LLC ,4/25/2023,112.5,Unrestricted Shared Services,Legal Services - PS
J. F. Drake State CC & TC,10015565,Huntsville Progressive Alumni Chapter Inc ,4/25/2023,120,Unrestricted Shared Services,Registration Fees- IS
J. F. Drake State CC & TC,10015566,OMI Inc. ,4/25/2023,835,Unexpended Plant Shared Services,Other Professional Fees - PS
J. F. Drake State CC & TC,10015567,Safety Kleen Systems Inc ,4/25/2023,210.69,Unrestricted Shared Services,Waste Disposal - UC
J. F. Drake State CC & TC,10015568,Sam's Club ,4/25/2023,214.24,Unrestricted Shared Services,Culinary Consumables
J. F. Drake State CC & TC,10015569,Sign-1-1 Emergency Sign Makers ,4/25/2023,1086.67,Unrestricted Shared Services,Other Contractual Services - PS
J. F. Drake State CC & TC,10015570,Sims Patricia,4/25/2023,314,Unrestricted Shared Services,Other Travel Expenses - OS
J. F. Drake State CC & TC,10015570,Sims Patricia,4/25/2023,340,Unrestricted Shared Services,Overnight (non tax per diem)- IS
J. F. Drake State CC & TC,10015570,Sims Patricia,4/25/2023,401,Unrestricted Shared Services,Conus (meals) - OS
J. F. Drake State CC & TC,10015580,ACT Inc ,5/3/2023,53.5,Unrestricted Shared Services,Testing Expense
J. F. Drake State CC & TC,10015581,Bates Sidney,5/3/2023,3120,Unrestricted Shared Services,Other Professional Fees - PS
J. F. Drake State CC & TC,10015582,Dynamic Security Inc ,5/3/2023,3301.2,Unrestricted Shared Services,Other Contractual Services - PS
J. F. Drake State CC & TC,10015583,FedEx ,5/3/2023,9.03,Unrestricted Shared Services,Freight - OOS
J. F. Drake State CC & TC,10015584,HESI - ELSEVIER ,5/3/2023,459,Unrestricted Shared Services,Other - AP
J. F. Drake State CC & TC,10015585,Huntsville Business Journal ,5/3/2023,800,Unrestricted Shared Services,Advertising & Promotions - OOS
J. F. Drake State CC & TC,10015586,Kings III of America LLC ,5/3/2023,270,Unrestricted Shared Services,Maintenance & Repairs  - OOS
J. F. Drake State CC & TC,10015587,LogoBranders Inc ,5/3/2023,1307.39,Unrestricted Shared Services,Graduation Expense
J. F. Drake State CC & TC,10015588,Lowe's Company ,5/3/2023,273.78,Unrestricted Shared Services,Maintenance & Repairs  - OOS
J. F. Drake State CC & TC,10015589,New England Flag & Banner ,5/3/2023,940,Unrestricted Shared Services,Graduation Expense
J. F. Drake State CC & TC,10015590,Office Depot ,5/3/2023,190.25,Unrestricted Shared Services,Materials and Supplies - MS
J. F. Drake State CC & TC,10015591,Peeples-Rice Alethea,5/3/2023,318.03,Unrestricted Shared Services,Overnight (non tax per diem)- IS
J. F. Drake State CC & TC,10015592,Wells Printing Company Inc ,5/3/2023,909.04,Unrestricted Shared Services,Advertising & Promotions - OOS
J. F. Drake State CC & TC,10015593,Sallie Mae Disbursement ,5/5/2023,12381,Unrestricted Shared Services,Clearing Refunds - SP
J. F. Drake State CC & TC,10015594,Alabama Lawnmaster Inc ,5/9/2023,6809,Unrestricted Shared Services,Other Contractual Services - PS
J. F. Drake State CC & TC,10015595,Alabama Media ,5/9/2023,250,Unrestricted Shared Services,Advertising & Promotions - OOS
J. F. Drake State CC & TC,10015596,Armstrong Relocation Company Huntsville LLC ,5/9/2023,292.5,Unexpended Plant Shared Services,Short-Term Building Rentals - OOS
J. F. Drake State CC & TC,10015597,Bell Angela,5/9/2023,300,Unrestricted Shared Services,Overnight (non tax per diem)- IS
J. F. Drake State CC & TC,10015598,CAD/CAM Solutions Inc ,5/9/2023,1800,Unrestricted Shared Services,Computer Software(non capital) - MS
J. F. Drake State CC & TC,10015599,Dewberry Engineers Inc. ,5/9/2023,1500,Unexpended Plant Shared Services,Other Professional Fees - PS
J. F. Drake State CC & TC,10015600,Dynamic Security Inc ,5/9/2023,3301.2,Unrestricted Shared Services,Other Contractual Services - PS
J. F. Drake State CC & TC,10015601,Henderson Carolyn,5/9/2023,199,Unrestricted Shared Services,Other Travel Expenses - IS
J. F. Drake State CC & TC,10015602,Institute for Digital Enterprise Advancement ,5/9/2023,1350,Unrestricted Shared Services,Other Professional Fees - PS
J. F. Drake State CC & TC,10015603,MSC Industrial Supply ,5/9/2023,1142.65,Unrestricted Shared Services,Materials and Supplies - MS
J. F. Drake State CC & TC,10015604,Mullins Special Occasions ,5/9/2023,174,Unrestricted Shared Services,Short-Term Equipment Rentals - OOS
J. F. Drake State CC & TC,10015605,Parchment LLC ,5/9/2023,64.4,Unrestricted Shared Services,Transcript Expense
J. F. Drake State CC & TC,10015606,Sims Patricia,5/9/2023,74.25,Unrestricted Shared Services,Conus (meals) - OS
J. F. Drake State CC & TC,10015606,Sims Patricia,5/9/2023,83.86,Unrestricted Shared Services,Commercial Transportation - OS
J. F. Drake State CC & TC,10015607,Staples Business Advantage ,5/9/2023,480.74,Unrestricted Shared Services,Materials and Supplies - MS
J. F. Drake State CC & TC,10015608,Tate Sharde,5/9/2023,105,Unrestricted Shared Services,Other Contractual Services - PS
J. F. Drake State CC & TC,10015609,Wells Printing Company Inc ,5/9/2023,682,Unrestricted Shared Services,Printing and Binding - OOS
J. F. Drake State CC & TC,10015610,Xerox Corporation ,5/9/2023,28.25,Unrestricted Shared Services,Maintenance & Repairs  - OOS
J. F. Drake State CC & TC,10015610,Xerox Corporation ,5/9/2023,53.58,Unrestricted Shared Services,Technology - non capitalized - MS
J. F. Drake State CC & TC,10015611,Xerox Corporation ,5/9/2023,13316.25,Unrestricted Shared Services,Other Contractual Services - PS
J. F. Drake State CC & TC,10015612,Woody Anderson Ford ,5/15/2023,47685.5,Unrestricted Shared Services,Transportation Equip > $25 000 - CE
J. F. Drake State CC & TC,10015613,56 Capitals LLC ,5/17/2023,2000,Unrestricted Shared Services,Other Professional Fees - PS
J. F. Drake State CC & TC,10015614,Albert's Flowers ,5/17/2023,1100,Unrestricted Shared Services,Graduation Expense
J. F. Drake State CC & TC,10015615,CDW LLC ,5/17/2023,232.15,Unrestricted Shared Services,Materials and Supplies - MS
J. F. Drake State CC & TC,10015616,Dynamic Security Inc ,5/17/2023,3301.2,Unrestricted Shared Services,Other Contractual Services - PS
J. F. Drake State CC & TC,10015617,Huntsville Business Journal ,5/17/2023,800,Unrestricted Shared Services,Advertising & Promotions - OOS
J. F. Drake State CC & TC,10015618,Huntsville Utilities ,5/17/2023,807.17,Unrestricted Shared Services,Water & Sewer - UC
J. F. Drake State CC & TC,10015618,Huntsville Utilities ,5/17/2023,1398.33,Unrestricted Shared Services,Gas & Heating Fuel - UC
J. F. Drake State CC & TC,10015618,Huntsville Utilities ,5/17/2023,19630.74,Unrestricted Shared Services,Electricity - UC
J. F. Drake State CC & TC,10015619,LED Orange LLC ,5/17/2023,4000,Unrestricted Shared Services,Graduation Expense
J. F. Drake State CC & TC,10015620,Mullins Special Occasions ,5/17/2023,1001,Unrestricted Shared Services,Short-Term Equipment Rentals - OOS
J. F. Drake State CC & TC,10015621,Oak Hall Industries LP ,5/17/2023,1242.5,Unrestricted Shared Services,Graduation Expense
J. F. Drake State CC & TC,10015622,Pataky J,5/17/2023,5454.26,Unrestricted Shared Services,Graduation Expense
J. F. Drake State CC & TC,10015623,Pioneer Management Consulting LLC ,5/17/2023,1250,Unrestricted Shared Services,Other Contractual Services - PS
J. F. Drake State CC & TC,10015624,Red Sage Communications Inc ,5/17/2023,6067.2,Unrestricted Shared Services,Other Contractual Services - PS
J. F. Drake State CC & TC,10015625,RP Media ,5/17/2023,5927.35,Unrestricted Shared Services,Advertising & Promotions - OOS
J. F. Drake State CC & TC,10015626,Sims Patricia,5/17/2023,350.16,Unrestricted Shared Services,Other Travel Expenses - IS
J. F. Drake State CC & TC,10015627,Southern Assoc of Colleges & Schools ,5/17/2023,2872.95,Unrestricted Shared Services,Accreditation Expense - PS
J. F. Drake State CC & TC,10015628,Uline Inc ,5/17/2023,175.1,Unrestricted Shared Services,Materials and Supplies - MS
J. F. Drake State CC & TC,10015629,Waste Management ,5/17/2023,1046.88,Unrestricted Shared Services,Waste Disposal - UC
J. F. Drake State CC & TC,10015630,Wells Printing Company Inc ,5/17/2023,1909.5,Unrestricted Shared Services,Advertising & Promotions - OOS
J. F. Drake State CC & TC,10015631,Xerox Corporation ,5/17/2023,1467.66,Unrestricted Shared Services,Other Contractual Services - PS
J. F. Drake State CC & TC,10015632,ALLDATA LLC ,5/22/2023,975,Unrestricted Shared Services,Computer Software(non capital) - MS
J. F. Drake State CC & TC,10015633,Armstrong Relocation Company Huntsville LLC ,5/22/2023,292.5,Unexpended Plant Shared Services,Short-Term Building Rentals - OOS
J. F. Drake State CC & TC,10015634,Cool Stuff by Austin ,5/22/2023,600,Unrestricted Shared Services,Other Professional Fees - PS
J. F. Drake State CC & TC,10015635,Dynamic Security Inc ,5/22/2023,3301.2,Unrestricted Shared Services,Other Contractual Services - PS
J. F. Drake State CC & TC,10015636,OMI Inc. ,5/22/2023,2451.25,Unexpended Plant Shared Services,Other Professional Fees - PS
J. F. Drake State CC & TC,10015637,Pataky J,5/22/2023,785.38,Unrestricted Shared Services,Materials and Supplies - MS
J. F. Drake State CC & TC,10015637,Pataky J,5/22/2023,5007.9,Unrestricted Shared Services,Graduation Expense
J. F. Drake State CC & TC,10015638,PODS Enterprises Inc ,5/22/2023,1176.9,Unexpended Plant Shared Services,Short-Term Equipment Rentals - OOS
J. F. Drake State CC & TC,10015641,Bell Angela,5/24/2023,137.75,Unrestricted Shared Services,Conus (meals) - IS
J. F. Drake State CC & TC,10015642,CDW LLC ,5/24/2023,3571.1,Unrestricted Shared Services,Service Contracts on Equipment -OOS
J. F. Drake State CC & TC,10015643,Huntsville Business Journal ,5/24/2023,800,Unrestricted Shared Services,Advertising & Promotions - OOS
J. F. Drake State CC & TC,10015644,LogoBranders Inc ,5/24/2023,3178.8,Unrestricted Shared Services,Materials and Supplies - MS
J. F. Drake State CC & TC,10015645,Mullins Special Occasions ,5/24/2023,736,Unrestricted Shared Services,Short-Term Equipment Rentals - OOS
J. F. Drake State CC & TC,10015645,Mullins Special Occasions ,5/24/2023,1024,Unrestricted Shared Services,Graduation Expense
J. F. Drake State CC & TC,10015646,New Life Outreach International ,5/24/2023,1150,Unrestricted Shared Services,Other Contractual Services - PS
J. F. Drake State CC & TC,10015647,Sam's Club ,5/24/2023,54.93,Unrestricted Shared Services,Materials and Supplies - MS
J. F. Drake State CC & TC,10015647,Sam's Club ,5/24/2023,661.28,Unrestricted Shared Services,Culinary Consumables
J. F. Drake State CC & TC,10015648,Schindler Elevator Corporation ,5/24/2023,1648.7,Unrestricted Shared Services,Other Contractual Services - PS
J. F. Drake State CC & TC,10015649,Wells Printing Company Inc ,5/24/2023,3060,Unrestricted Shared Services,Graduation Expense
J. F. Drake State CC & TC,10015659,State of Alabama ,6/1/2023,500,Unrestricted Shared Services,Other - AP
J. F. Drake State CC & TC,10015660,ACT Inc ,6/1/2023,33,Unrestricted Shared Services,Testing Expense
J. F. Drake State CC & TC,10015661,Bhate Environmental Associates Inc ,6/1/2023,3800,Unexpended Plant Shared Services,Other Professional Fees - PS
J. F. Drake State CC & TC,10015662,Big City Supplies Inc ,6/1/2023,1548.8,Unrestricted Shared Services,Other Contractual Services - PS
J. F. Drake State CC & TC,10015663,Castle Branch Inc. ,6/1/2023,2556,Unrestricted Shared Services,Other - AP
J. F. Drake State CC & TC,10015664,Cook's Pest Control ,6/1/2023,2453,Unrestricted Shared Services,Other Contractual Services - PS
J. F. Drake State CC & TC,10015665,Cook's Pest Control ,6/1/2023,364,Unrestricted Shared Services,Other Contractual Services - PS
J. F. Drake State CC & TC,10015666,Cool Stuff by Austin ,6/1/2023,1600,Unrestricted Shared Services,Other Professional Fees - PS
J. F. Drake State CC & TC,10015667,Dynamic Security Inc ,6/1/2023,7388.4,Unrestricted Shared Services,Other Contractual Services - PS
J. F. Drake State CC & TC,10015668,Farrell Corporation ,6/1/2023,2832.35,Unrestricted Shared Services,Materials and Supplies - MS
J. F. Drake State CC & TC,10015669,Huntsville Golf Club LLC ,6/1/2023,32.14,Unrestricted Shared Services,Culinary Consumables
J. F. Drake State CC & TC,10015670,Lowe's Company ,6/1/2023,140.18,Unrestricted Shared Services,Maintenance & Repairs  - OOS
J. F. Drake State CC & TC,10015670,Lowe's Company ,6/1/2023,438.81,Unrestricted Shared Services,Graduation Expense
J. F. Drake State CC & TC,10015670,Lowe's Company ,6/1/2023,527.69,Unrestricted Shared Services,Materials and Supplies - MS
J. F. Drake State CC & TC,10015671,Richardson & Deemer Insurance Inc ,6/1/2023,918.27,Unrestricted Shared Services,Insurance and Bonding - PS
J. F. Drake State CC & TC,10015672,Sign-1-1 Emergency Sign Makers ,6/1/2023,4346.71,Unrestricted Shared Services,Other Contractual Services - PS
J. F. Drake State CC & TC,10015673,Wells Printing Company Inc ,6/1/2023,386.06,Unrestricted Shared Services,Advertising & Promotions - OOS
J. F. Drake State CC & TC,10015674,Alabama Lawnmaster Inc ,6/8/2023,3404.5,Unrestricted Shared Services,Other Contractual Services - PS
J. F. Drake State CC & TC,10015675,Alabama Media ,6/8/2023,150,Unrestricted Shared Services,Advertising & Promotions - OOS
J. F. Drake State CC & TC,10015676,Armstrong Relocation Company Huntsville LLC ,6/8/2023,292.5,Unexpended Plant Shared Services,Short-Term Building Rentals - OOS
J. F. Drake State CC & TC,10015676,Armstrong Relocation Company Huntsville LLC ,6/8/2023,320,Unexpended Plant Shared Services,Other Contractual Services - PS
J. F. Drake State CC & TC,10015677,Currie Systems Inc. ,6/8/2023,71,Unrestricted Shared Services,Advertising & Promotions - OOS
J. F. Drake State CC & TC,10015678,Dynamic Security Inc ,6/8/2023,4126.5,Unrestricted Shared Services,Other Contractual Services - PS
J. F. Drake State CC & TC,10015679,HOAR Program Management LLC ,6/8/2023,51744.04,Unexpended Plant Shared Services,Engineering & Architectural Svc -PS
J. F. Drake State CC & TC,10015680,LogoBranders Inc ,6/8/2023,1489.46,Unrestricted Shared Services,Advertising & Promotions - OOS
J. F. Drake State CC & TC,10015681,LSI Research Inc. ,6/8/2023,3240,Unexpended Plant Shared Services,Other Contractual Services - PS
J. F. Drake State CC & TC,10015682,MAK Engineering LLC ,6/8/2023,1250,Unexpended Plant Shared Services,Other Professional Fees - PS
J. F. Drake State CC & TC,10015683,Pataky J,6/8/2023,100.8,Unrestricted Shared Services,Graduation Expense
J. F. Drake State CC & TC,10015684,Tennessee Valley Fence Inc ,6/8/2023,3475.5,Unrestricted Shared Services,Maintenance & Repairs  - OOS
J. F. Drake State CC & TC,10015685,Duncan Macy,6/14/2023,300,Unrestricted Shared Services,Participant Costs-Stipends
J. F. Drake State CC & TC,10015686,Edwards Runzell,6/14/2023,300,Unrestricted Shared Services,Participant Costs-Stipends
J. F. Drake State CC & TC,10015687,Forgey Walker,6/14/2023,300,Unrestricted Shared Services,Participant Costs-Stipends
J. F. Drake State CC & TC,10015688,Hickman William,6/14/2023,300,Unrestricted Shared Services,Participant Costs-Stipends
J. F. Drake State CC & TC,10015689,Knopps Nathaniel,6/14/2023,300,Unrestricted Shared Services,Participant Costs-Stipends
J. F. Drake State CC & TC,10015690,Kouraogo Nabonsbamba Ibrahim,6/14/2023,300,Unrestricted Shared Services,Participant Costs-Stipends
J. F. Drake State CC & TC,10015691,Lolley Jon,6/14/2023,300,Unrestricted Shared Services,Participant Costs-Stipends
J. F. Drake State CC & TC,10015692,Mitchell Sanchasaty,6/14/2023,300,Unrestricted Shared Services,Participant Costs-Stipends
J. F. Drake State CC & TC,10015693,Tinker Jesse,6/14/2023,300,Unrestricted Shared Services,Participant Costs-Stipends
J. F. Drake State CC & TC,10015694,Williams Jasmine,6/14/2023,300,Unrestricted Shared Services,Participant Costs-Stipends
J. F. Drake State CC & TC,10015695,Dynamic Security Inc ,6/15/2023,4087.2,Unrestricted Shared Services,Other Contractual Services - PS
J. F. Drake State CC & TC,10015696,HOAR Program Management LLC ,6/15/2023,51955.85,Unexpended Plant Shared Services,Engineering & Architectural Svc -PS
J. F. Drake State CC & TC,10015697,Huntsville Utilities ,6/15/2023,150.01,Unrestricted Shared Services,Gas & Heating Fuel - UC
J. F. Drake State CC & TC,10015697,Huntsville Utilities ,6/15/2023,612.06,Unrestricted Shared Services,Water & Sewer - UC
J. F. Drake State CC & TC,10015697,Huntsville Utilities ,6/15/2023,17503.64,Unrestricted Shared Services,Electricity - UC
J. F. Drake State CC & TC,10015698,Madison Chamber of Commerce ,6/15/2023,595,Unrestricted Shared Services,Advertising & Promotions - OOS
J. F. Drake State CC & TC,10015699,Pioneer Management Consulting LLC ,6/15/2023,1250,Unrestricted Shared Services,Other Contractual Services - PS
J. F. Drake State CC & TC,10015700,Red Sage Communications Inc ,6/15/2023,2782.5,Unrestricted Shared Services,Other Contractual Services - PS
J. F. Drake State CC & TC,10015701,RP Media ,6/15/2023,10674.85,Unrestricted Shared Services,Advertising & Promotions - OOS
J. F. Drake State CC & TC,10015702,Safety Kleen Systems Inc ,6/15/2023,669.81,Unrestricted Shared Services,Waste Disposal - UC
J. F. Drake State CC & TC,10015703,Sims Patricia,6/15/2023,10,Unrestricted Shared Services,Registration Fees- IS
J. F. Drake State CC & TC,10015704,Southern Association of Colleges with Associate Degrees ,6/15/2023,150,Unrestricted Shared Services,Memberships - PS
J. F. Drake State CC & TC,10015705,State of Alabama ,6/15/2023,12445,Unrestricted Shared Services,Other Contractual Services - PS
J. F. Drake State CC & TC,10015706,The Pitney Bowes Bank Inc ,6/15/2023,245.67,Unrestricted Shared Services,Service Contracts on Equipment -OOS
J. F. Drake State CC & TC,10015707,Trav-Ad Signs ,6/15/2023,1136.04,Unrestricted Shared Services,Printing and Binding - OOS
J. F. Drake State CC & TC,10015708,Xerox Corporation ,6/15/2023,22.78,Unrestricted Shared Services,Maintenance & Repairs  - OOS
J. F. Drake State CC & TC,10015708,Xerox Corporation ,6/15/2023,24.18,Unrestricted Shared Services,Technology - non capitalized - MS
J. F. Drake State CC & TC,10015709,Xerox Corporation ,6/15/2023,1467.66,Unrestricted Shared Services,Other Contractual Services - PS
J. F. Drake State CC & TC,10015723,Ascend Learning Holdings LLC ,6/21/2023,35498.27,Unrestricted Shared Services,Other - AP
J. F. Drake State CC & TC,10015724,Cool Stuff by Austin ,6/21/2023,400,Unrestricted Shared Services,Other Professional Fees - PS
J. F. Drake State CC & TC,10015725,Drake State Technical College Foundation Inc ,6/21/2023,625,Other Auxiliary- Fund Raising,Grants  Awards and Prizes - OOS
J. F. Drake State CC & TC,10015727,PODS Enterprises Inc ,6/21/2023,1176.9,Unexpended Plant Shared Services,Short-Term Equipment Rentals - OOS
J. F. Drake State CC & TC,10015728,Southern Assoc of Colleges & Schools ,6/21/2023,7049,Unrestricted Shared Services,Memberships - PS
J. F. Drake State CC & TC,10015729,Taylor Clift ,6/21/2023,620,Other Auxiliary- Fund Raising,Short-Term Equipment Rentals - OOS
J. F. Drake State CC & TC,10015730,Waste Management ,6/21/2023,1046.88,Unrestricted Shared Services,Waste Disposal - UC
J. F. Drake State CC & TC,10015731,Ascend Learning Holdings LLC ,6/28/2023,27668.23,Unrestricted Shared Services,Other - AP
J. F. Drake State CC & TC,10015732,Castle Branch Inc. ,6/28/2023,696.5,Unrestricted Shared Services,Other - AP
J. F. Drake State CC & TC,10015733,Dynamic Security Inc ,6/28/2023,4087.2,Unrestricted Shared Services,Other Contractual Services - PS
J. F. Drake State CC & TC,10015734,LogoBranders Inc ,6/28/2023,1670.96,Unrestricted Shared Services,Advertising & Promotions - OOS
J. F. Drake State CC & TC,10015735,Mark Moore Creates LLC ,6/28/2023,1900,Unrestricted Shared Services,Other Professional Fees - PS
J. F. Drake State CC & TC,10015736,OMI Inc. ,6/28/2023,1962.25,Unexpended Plant Shared Services,Other Professional Fees - PS
J. F. Drake State CC & TC,10015737,PODS Enterprises Inc ,6/28/2023,714,Unexpended Plant Shared Services,Short-Term Equipment Rentals - OOS
J. F. Drake State CC & TC,10015738,Sims Patricia,6/28/2023,51.75,Unrestricted Shared Services,Conus (meals) - OS
J. F. Drake State CC & TC,10015738,Sims Patricia,6/28/2023,82.02,Unrestricted Shared Services,Other Travel Expenses - OS
J. F. Drake State CC & TC,10015739,The Webster Tree Company Inc. ,6/28/2023,1580,Unrestricted Shared Services,Other Contractual Services - PS
J. F. Drake State CC & TC,10015740,Trav-Ad Signs ,6/28/2023,250,Unrestricted Shared Services,Materials and Supplies - MS
J. F. Drake State CC & TC,10015741,Wells Printing Company Inc ,6/28/2023,647,Unrestricted Shared Services,Printing and Binding - OOS
J. F. Drake State CC & TC,10015742,Cook's Pest Control ,6/29/2023,364,Unrestricted Shared Services,Other Contractual Services - PS
J. F. Drake State CC & TC,10015743,Dynamic Security Inc ,6/29/2023,4106.85,Unrestricted Shared Services,Other Contractual Services - PS
J. F. Drake State CC & TC,10015744,Ecampus.com ,6/29/2023,48617.63,Unrestricted Shared Services,Bond Surety Fee Payable - AP
J. F. Drake State CC & TC,10015745,Hambrick Neoka,6/29/2023,99,Unrestricted Shared Services,Materials and Supplies - MS
J. F. Drake State CC & TC,10015745,Hambrick Neoka,6/29/2023,273.5,Unrestricted Shared Services,Conus (meals) - OS
J. F. Drake State CC & TC,10015745,Hambrick Neoka,6/29/2023,551.5,Unrestricted Shared Services,Other Travel Expenses - OS
J. F. Drake State CC & TC,10015746,Lowe's Company ,6/29/2023,822.02,Unrestricted Shared Services,Maintenance & Repairs  - OOS
J. F. Drake State CC & TC,10015747,Sims Patricia,6/29/2023,78,Unrestricted Shared Services,Conus (meals) - OS
J. F. Drake State CC & TC,10015747,Sims Patricia,6/29/2023,118.41,Unrestricted Shared Services,Other Travel Expenses - OS
J. F. Drake State CC & TC,10015748,South Hampton Nursing & Rehabilitation Center ,6/29/2023,1300,Refund Fund,Clearing Refunds - SP
J. F. Drake State CC & TC,10015749,Southern Assoc of Colleges & Schools ,6/29/2023,234.38,Unrestricted Shared Services,Accreditation Expense - PS
J. F. Drake State CC & TC,10015750,Wells Printing Company Inc ,6/29/2023,510,Unrestricted Shared Services,Printing and Binding - OOS
J. F. Drake State CC & TC,10015760,Alabama Deans of Student Affairs Association ,7/7/2023,550,Unrestricted Shared Services,Registration Fees- IS
J. F. Drake State CC & TC,10015761,Alabama Institute for Deaf and Blind ,7/7/2023,110,Unrestricted Shared Services,Graduation Expense
J. F. Drake State CC & TC,10015762,Alabama Lawnmaster Inc ,7/7/2023,2250,Unrestricted Shared Services,Other Contractual Services - PS
J. F. Drake State CC & TC,10015763,Alabama Media ,7/7/2023,150,Unrestricted Shared Services,Advertising & Promotions - OOS
J. F. Drake State CC & TC,10015764,Armstrong Relocation Company Huntsville LLC ,7/7/2023,357.5,Unexpended Plant Shared Services,Short-Term Building Rentals - OOS
J. F. Drake State CC & TC,10015764,Armstrong Relocation Company Huntsville LLC ,7/7/2023,3419.75,Unexpended Plant Shared Services,Other Contractual Services - PS
J. F. Drake State CC & TC,10015765,Bevel Joseph,7/7/2023,299,Unrestricted Shared Services,Conus (meals) - OS
J. F. Drake State CC & TC,10015766,Dynamic Security Inc ,7/7/2023,4332.83,Unrestricted Shared Services,Other Contractual Services - PS
J. F. Drake State CC & TC,10015767,Ecampus.com ,7/7/2023,8507.16,Unrestricted Shared Services,Bond Surety Fee Payable - AP
J. F. Drake State CC & TC,10015768,Howard Technology Solutions ,7/7/2023,500,Unrestricted Shared Services,Materials and Supplies - MS
J. F. Drake State CC & TC,10015769,Huntsville Business Journal ,7/7/2023,800,Unrestricted Shared Services,Advertising & Promotions - OOS
J. F. Drake State CC & TC,10015770,LogoBranders Inc ,7/7/2023,4379.31,Unrestricted Shared Services,Advertising & Promotions - OOS
J. F. Drake State CC & TC,10015771,New Life Outreach International ,7/7/2023,1150,Unrestricted Shared Services,Other Contractual Services - PS
J. F. Drake State CC & TC,10015772,North Alabama Engraving Stamp Company ,7/7/2023,116,Unrestricted Shared Services,Grants  Awards and Prizes - OOS
J. F. Drake State CC & TC,10015773,Parkway Scrubs Inc ,7/7/2023,299.85,Agency - Huntsville Hospital,Materials and Supplies - MS
J. F. Drake State CC & TC,10015775,Predator Software Inc. ,7/7/2023,90,Unrestricted Shared Services,Computer Software(non capital) - MS
J. F. Drake State CC & TC,10015776,Rafferty Kory,7/7/2023,275,Unrestricted Shared Services,Other Travel Expenses - OS
J. F. Drake State CC & TC,10015776,Rafferty Kory,7/7/2023,299,Unrestricted Shared Services,Conus (meals) - OS
J. F. Drake State CC & TC,10015777,RP Media ,7/7/2023,11969.35,Unrestricted Shared Services,Advertising & Promotions - OOS
J. F. Drake State CC & TC,10015778,Schindler Elevator Corporation ,7/7/2023,1648.7,Unrestricted Shared Services,Other Contractual Services - PS
J. F. Drake State CC & TC,10015779,Wilson Cleaners ,7/7/2023,318,Unrestricted Shared Services,Graduation Expense
J. F. Drake State CC & TC,10015780,Xerox Corporation ,7/7/2023,21.8,Unrestricted Shared Services,Technology - non capitalized - MS
J. F. Drake State CC & TC,10015780,Xerox Corporation ,7/7/2023,28.91,Unrestricted Shared Services,Maintenance & Repairs  - OOS
J. F. Drake State CC & TC,10015781,Little Bertha,7/11/2023,307.5,Unrestricted Shared Services,Conus (meals) - OS
J. F. Drake State CC & TC,10015782,LSI Research Inc. ,7/11/2023,3424,Unexpended Plant Shared Services,Other Contractual Services - PS
J. F. Drake State CC & TC,10015783,Nola Van Peursem Architects PC ,7/11/2023,68695.84,Unexpended Plant Shared Services,Other Professional Fees - PS
J. F. Drake State CC & TC,10015784,Peeples-Rice Alethea,7/11/2023,290,Unrestricted Shared Services,Other Travel Expenses - OS
J. F. Drake State CC & TC,10015784,Peeples-Rice Alethea,7/11/2023,381.5,Unrestricted Shared Services,Conus (meals) - OS
J. F. Drake State CC & TC,10015785,ACT Inc ,7/14/2023,63,Unrestricted Shared Services,Testing Expense
J. F. Drake State CC & TC,10015786,Alabama Lawnmaster Inc ,7/14/2023,3404.5,Unrestricted Shared Services,Other Contractual Services - PS
J. F. Drake State CC & TC,10015787,Chamber of Commerce Huntsville/Madison County ,7/14/2023,500,Unrestricted Shared Services,Advertising & Promotions - OOS
J. F. Drake State CC & TC,10015788,Dynamic Security Inc ,7/14/2023,4126.5,Unrestricted Shared Services,Other Contractual Services - PS
J. F. Drake State CC & TC,10015789,Henderson Carolyn,7/14/2023,170,Unrestricted Shared Services,Overnight (non tax per diem)- IS
J. F. Drake State CC & TC,10015790,Huntsville Utilities ,7/14/2023,64.39,Unrestricted Shared Services,Gas & Heating Fuel - UC
J. F. Drake State CC & TC,10015790,Huntsville Utilities ,7/14/2023,854.76,Unrestricted Shared Services,Water & Sewer - UC
J. F. Drake State CC & TC,10015790,Huntsville Utilities ,7/14/2023,19267.69,Unrestricted Shared Services,Electricity - UC
J. F. Drake State CC & TC,10015791,Mullins Special Occasions ,7/14/2023,25,Other Auxiliary- Fund Raising,Short-Term Equipment Rentals - OOS
J. F. Drake State CC & TC,10015791,Mullins Special Occasions ,7/14/2023,1235,Unrestricted Shared Services,Graduation Expense
J. F. Drake State CC & TC,10015792,Cool Stuff by Austin ,7/18/2023,800,Unrestricted Shared Services,Other Professional Fees - PS
J. F. Drake State CC & TC,10015793,Driskill ChrisAnn,7/18/2023,104.25,Unrestricted Shared Services,Overnight (non tax per diem)- IS
J. F. Drake State CC & TC,10015794,HOAR Program Management LLC ,7/18/2023,50514.06,Unexpended Plant Shared Services,Engineering & Architectural Svc -PS
J. F. Drake State CC & TC,10015795,Institute for Digital Enterprise Advancement ,7/18/2023,1350,Unrestricted Shared Services,Other Professional Fees - PS
J. F. Drake State CC & TC,10015796,Love Stephanie,7/18/2023,650,Unrestricted Shared Services,Other Professional Fees - PS
J. F. Drake State CC & TC,10015797,PODS Enterprises Inc ,7/18/2023,1176.9,Unexpended Plant Shared Services,Short-Term Equipment Rentals - OOS
J. F. Drake State CC & TC,10015798,Waste Management ,7/18/2023,1046.88,Unrestricted Shared Services,Waste Disposal - UC
J. F. Drake State CC & TC,10015799,BadgePass Inc ,7/24/2023,570,Unrestricted Shared Services,Service Contracts on Equipment -OOS
J. F. Drake State CC & TC,10015800,Castle Branch Inc. ,7/24/2023,32,Unrestricted Shared Services,Other - AP
J. F. Drake State CC & TC,10015801,Dynamic Security Inc ,7/24/2023,4087.2,Unrestricted Shared Services,Other Contractual Services - PS
J. F. Drake State CC & TC,10015802,Ecampus.com ,7/24/2023,461.44,Bookstore - Shared Services,Materials and Supplies - MS
J. F. Drake State CC & TC,10015803,Hambrick Neoka,7/24/2023,140,Unrestricted Shared Services,Other Travel Expenses - OS
J. F. Drake State CC & TC,10015803,Hambrick Neoka,7/24/2023,267.5,Unrestricted Shared Services,Conus (meals) - OS
J. F. Drake State CC & TC,10015804,Koorsen Fire & Security ,7/24/2023,959.94,Unrestricted Shared Services,Other Contractual Services - PS
J. F. Drake State CC & TC,10015805,LogoBranders Inc ,7/24/2023,657.12,Unrestricted Shared Services,Printing and Binding - OOS
J. F. Drake State CC & TC,10015806,Sims Patricia,7/24/2023,104.25,Unrestricted Shared Services,Conus (meals) - IS
J. F. Drake State CC & TC,10015807,Castle Branch Inc. ,7/27/2023,583.25,Unrestricted Shared Services,Other - AP
J. F. Drake State CC & TC,10015808,Dynamic Security Inc ,7/27/2023,4087.2,Unrestricted Shared Services,Other Contractual Services - PS
J. F. Drake State CC & TC,10015809,FedEx ,7/27/2023,17.48,Unrestricted Shared Services,Freight - OOS
J. F. Drake State CC & TC,10015810,Gulf States Distributors ,7/27/2023,1128.5,Unrestricted Shared Services,Materials and Supplies - MS
J. F. Drake State CC & TC,10015811,Howard Technology Solutions ,7/27/2023,687,Unrestricted Shared Services,Computer Software(non capital) - MS
J. F. Drake State CC & TC,10015812,Huntsville Business Journal ,7/27/2023,800,Unrestricted Shared Services,Advertising & Promotions - OOS
J. F. Drake State CC & TC,10015813,Koorsen Fire & Security ,7/27/2023,673.61,Unrestricted Shared Services,Other Contractual Services - PS
J. F. Drake State CC & TC,10015814,OMI Inc. ,7/27/2023,2016.25,Unexpended Plant Shared Services,Other Professional Fees - PS
J. F. Drake State CC & TC,10015815,Pataky J,7/27/2023,980,Unrestricted Shared Services,Materials and Supplies - MS
J. F. Drake State CC & TC,10015815,Pataky J,7/27/2023,985.03,Unrestricted Shared Services,Graduation Expense
J. F. Drake State CC & TC,10015816,Proctor.io Incorporated ,7/27/2023,7978.63,Unrestricted Shared Services,Computer Software(non capital) - MS
J. F. Drake State CC & TC,10015817,Regroup ,7/27/2023,8071,Unrestricted Shared Services,Other Contractual Services - PS
J. F. Drake State CC & TC,10015818,Thomas Electric Inc ,7/27/2023,4560,Renewal & Replacement Shared Svcs,Other Contractual Services - PS
J. F. Drake State CC & TC,10015819,Trav-Ad Signs ,7/27/2023,684.02,Unrestricted Shared Services,Printing and Binding - OOS
J. F. Drake State CC & TC,10015830,56 Capitals LLC ,8/1/2023,4000,Unrestricted Shared Services,Other Professional Fees - PS
J. F. Drake State CC & TC,10015831,ACT Inc ,8/1/2023,179.5,Unrestricted Shared Services,Testing Expense
J. F. Drake State CC & TC,10015832,City of Huntsville ,8/1/2023,1000,Unrestricted Shared Services,Advertising & Promotions - OOS
J. F. Drake State CC & TC,10015833,Cook's Pest Control ,8/1/2023,364,Unrestricted Shared Services,Other Contractual Services - PS
J. F. Drake State CC & TC,10015834,Farrell Corporation ,8/1/2023,1307,Unrestricted Shared Services,Materials and Supplies - MS
J. F. Drake State CC & TC,10015835,Huntsville Tractor & Equipment Inc ,8/1/2023,1076.01,Unrestricted Shared Services,Maintenance & Repairs  - OOS
J. F. Drake State CC & TC,10015837,Office Depot ,8/1/2023,88.18,Unrestricted Shared Services,Materials and Supplies - MS
J. F. Drake State CC & TC,10015838,PODS Enterprises Inc ,8/1/2023,453.24,Unexpended Plant Shared Services,Short-Term Equipment Rentals - OOS
J. F. Drake State CC & TC,10015839,Wells Printing Company Inc ,8/1/2023,213.78,Unrestricted Shared Services,Advertising & Promotions - OOS
J. F. Drake State CC & TC,10015840,Alabama Lawnmaster Inc ,8/3/2023,350,Unrestricted Shared Services,Other Contractual Services - PS
J. F. Drake State CC & TC,10015841,Alabama Media ,8/3/2023,150,Unrestricted Shared Services,Advertising & Promotions - OOS
J. F. Drake State CC & TC,10015842,Dynamic Security Inc ,8/3/2023,4087.2,Unrestricted Shared Services,Other Contractual Services - PS
J. F. Drake State CC & TC,10015843,Howard Technology Solutions ,8/3/2023,5250,Unrestricted Shared Services,Materials and Supplies - MS
J. F. Drake State CC & TC,10015844,Jackson Painting ,8/3/2023,4100,Renewal & Replacement Shared Svcs,Other Contractual Services - PS
J. F. Drake State CC & TC,10015845,Kings III of America LLC ,8/3/2023,270,Unrestricted Shared Services,Maintenance & Repairs  - OOS
J. F. Drake State CC & TC,10015846,Madison County Board of Education ,8/3/2023,600,Unrestricted Shared Services,Advertising & Promotions - OOS
J. F. Drake State CC & TC,10015847,Xerox Corporation ,8/3/2023,16.68,Unrestricted Shared Services,Technology - non capitalized - MS
J. F. Drake State CC & TC,10015848,Xerox Corporation ,8/3/2023,13316.25,Unrestricted Shared Services,Other Contractual Services - PS
J. F. Drake State CC & TC,10015849,ACCS Public Relations Association ,8/10/2023,150,Unrestricted Shared Services,Grants  Awards and Prizes - OOS
J. F. Drake State CC & TC,10015849,ACCS Public Relations Association ,8/10/2023,275,Unrestricted Shared Services,Registration Fees- IS
J. F. Drake State CC & TC,10015850,Alabama Lawnmaster Inc ,8/10/2023,3404.5,Unrestricted Shared Services,Other Contractual Services - PS
J. F. Drake State CC & TC,10015851,ALACRAO ,8/10/2023,204,Unrestricted Shared Services,Registration Fees- IS
J. F. Drake State CC & TC,10015852,Hand Arendall Harrison Sale LLC ,8/10/2023,202.5,Unrestricted Shared Services,Legal Services - PS
J. F. Drake State CC & TC,10015853,HOAR Program Management LLC ,8/10/2023,50514.06,Unexpended Plant Shared Services,Engineering & Architectural Svc -PS
J. F. Drake State CC & TC,10015854,Huntsville Golf Club LLC ,8/10/2023,1104.31,Unrestricted Shared Services,Memberships - PS
J. F. Drake State CC & TC,10015855,Huntsville Rotary Club Foundation ,8/10/2023,1520,Unrestricted Shared Services,Memberships - PS
J. F. Drake State CC & TC,10015856,Mullins Special Occasions ,8/10/2023,194,Unrestricted Shared Services,Short-Term Equipment Rentals - OOS
J. F. Drake State CC & TC,10015857,New Life Outreach International ,8/10/2023,1150,Unrestricted Shared Services,Other Contractual Services - PS
J. F. Drake State CC & TC,10015858,Office Depot ,8/10/2023,39.41,Unrestricted Shared Services,Materials and Supplies - MS
J. F. Drake State CC & TC,10015859,Parchment LLC ,8/10/2023,104.2,Unrestricted Shared Services,Transcript Expense
J. F. Drake State CC & TC,10015860,Red Sage Communications Inc ,8/10/2023,5433,Unrestricted Shared Services,Other Contractual Services - PS
J. F. Drake State CC & TC,10015861,Rocket City Construction Inc. ,8/10/2023,15000,Renewal & Replacement Shared Svcs,Other Contractual Services - PS
J. F. Drake State CC & TC,10015862,Xerox Corporation ,8/10/2023,27.3,Unrestricted Shared Services,Maintenance & Repairs  - OOS
J. F. Drake State CC & TC,10015863,Alabama Community College System ,8/17/2023,6631,Unrestricted Shared Services,Bond Reserve Fee Expense - OOS
J. F. Drake State CC & TC,10015863,Alabama Community College System ,8/17/2023,33155,Unrestricted Shared Services,Tuition - Waived - TF
J. F. Drake State CC & TC,10015863,Alabama Community College System ,8/17/2023,41566.83,Unrestricted Shared Services,Other Professional Fees - PS
J. F. Drake State CC & TC,10015864,City of Huntsville ,8/17/2023,45287.86,Unexpended Plant Shared Services,Other Contractual Services - PS
J. F. Drake State CC & TC,10015865,Cool Stuff by Austin ,8/17/2023,400,Unrestricted Shared Services,Other Professional Fees - PS
J. F. Drake State CC & TC,10015866,Dynamic Security Inc ,8/17/2023,7388.4,Unrestricted Shared Services,Other Contractual Services - PS
J. F. Drake State CC & TC,10015867,Gulf States Distributors ,8/17/2023,1220.67,Unrestricted Shared Services,Materials and Supplies - MS
J. F. Drake State CC & TC,10015868,Huntsville Utilities ,8/17/2023,146.84,Unrestricted Shared Services,Gas & Heating Fuel - UC
J. F. Drake State CC & TC,10015868,Huntsville Utilities ,8/17/2023,827.18,Unrestricted Shared Services,Water & Sewer - UC
J. F. Drake State CC & TC,10015868,Huntsville Utilities ,8/17/2023,19380.07,Unrestricted Shared Services,Electricity - UC
J. F. Drake State CC & TC,10015869,Mid America Roofing Inc ,8/17/2023,5944,Renewal & Replacement Shared Svcs,Maintenance & Repairs  - OOS
J. F. Drake State CC & TC,10015870,Rocket City Construction Inc. ,8/17/2023,30000,Renewal & Replacement Shared Svcs,Other Contractual Services - PS
J. F. Drake State CC & TC,10015871,RP Media ,8/17/2023,11564.35,Unrestricted Shared Services,Advertising & Promotions - OOS
J. F. Drake State CC & TC,10015872,Walker Rachel,8/17/2023,4900,Unrestricted Shared Services,Other Contractual Services - PS
J. F. Drake State CC & TC,10015873,Waste Management ,8/17/2023,1046.88,Unrestricted Shared Services,Waste Disposal - UC
J. F. Drake State CC & TC,10015874,Alabama Lawnmaster Inc ,8/22/2023,750,Unrestricted Shared Services,Other Contractual Services - PS
J. F. Drake State CC & TC,10015875,Leadership Greater Huntsville Inc. ,8/22/2023,375,Unrestricted Shared Services,Memberships - PS
J. F. Drake State CC & TC,10015876,Office Depot ,8/22/2023,82.62,Unrestricted Shared Services,Materials and Supplies - MS
J. F. Drake State CC & TC,10015877,PODS Enterprises Inc ,8/22/2023,1176.9,Unexpended Plant Shared Services,Short-Term Equipment Rentals - OOS
J. F. Drake State CC & TC,10015878,Sam's Club ,8/22/2023,11.94,Unrestricted Shared Services,Culinary Consumables
J. F. Drake State CC & TC,10015879,Sims Patricia,8/22/2023,89,Unrestricted Shared Services,Conus (meals) - OS
J. F. Drake State CC & TC,10015879,Sims Patricia,8/22/2023,300,Unrestricted Shared Services,Overnight (non tax per diem)- IS
J. F. Drake State CC & TC,10015879,Sims Patricia,8/22/2023,375.45,Unrestricted Shared Services,Other Travel Expenses - OS
J. F. Drake State CC & TC,10015888,Armstrong Relocation Company Huntsville LLC ,8/30/2023,1645,Unexpended Plant Shared Services,Short-Term Building Rentals - OOS
J. F. Drake State CC & TC,10015889,Ascend Learning Holdings LLC ,8/30/2023,61743.18,Unrestricted Shared Services,Other - AP
J. F. Drake State CC & TC,10015890,Castle Branch Inc. ,8/30/2023,1599.75,Unrestricted Shared Services,Other - AP
J. F. Drake State CC & TC,10015891,Cook's Pest Control ,8/30/2023,364,Unrestricted Shared Services,Other Contractual Services - PS
J. F. Drake State CC & TC,10015892,Cool Stuff by Austin ,8/30/2023,800,Unrestricted Shared Services,Other Professional Fees - PS
J. F. Drake State CC & TC,10015893,Dynamic Security Inc ,8/30/2023,3478.05,Unrestricted Shared Services,Other Contractual Services - PS
J. F. Drake State CC & TC,10015894,GlobalSign Inc. ,8/30/2023,316,Unrestricted Shared Services,Taxes & Licenses - OOS
J. F. Drake State CC & TC,10015895,Gulf States Distributors ,8/30/2023,574.56,Unrestricted Shared Services,Materials and Supplies - MS
J. F. Drake State CC & TC,10015896,Huntsville Business Journal ,8/30/2023,800,Unrestricted Shared Services,Advertising & Promotions - OOS
J. F. Drake State CC & TC,10015897,LogoBranders Inc ,8/30/2023,1040.41,Unrestricted Shared Services,Advertising & Promotions - OOS
J. F. Drake State CC & TC,10015898,Mark Moore Creates LLC ,8/30/2023,425,Unrestricted Shared Services,Other Professional Fees - PS
J. F. Drake State CC & TC,10015899,New Life Outreach International ,8/30/2023,1150,Unrestricted Shared Services,Other Contractual Services - PS
J. F. Drake State CC & TC,10015900,PODS Enterprises Inc ,8/30/2023,453.24,Unexpended Plant Shared Services,Short-Term Equipment Rentals - OOS
J. F. Drake State CC & TC,10015901,Speakin' Out News ,8/30/2023,4000,Unrestricted Shared Services,Advertising & Promotions - OOS
J. F. Drake State CC & TC,10015902,Wells Printing Company Inc ,8/30/2023,1561.11,Unrestricted Shared Services,Materials and Supplies - MS
J. F. Drake State CC & TC,10015903,ACCS President's Association ,9/1/2023,300,Unrestricted Shared Services,Overnight (non tax per diem)- IS
J. F. Drake State CC & TC,10015904,Alabama Community College System ,9/1/2023,4276,Unrestricted Shared Services,Bond Reserve Fee Expense - OOS
J. F. Drake State CC & TC,10015904,Alabama Community College System ,9/1/2023,21380,Unrestricted Shared Services,Tuition - Waived - TF
J. F. Drake State CC & TC,10015905,Chamber of Commerce Huntsville/Madison County ,9/1/2023,550,Unrestricted Shared Services,Advertising & Promotions - OOS
J. F. Drake State CC & TC,10015906,Dynamic Security Inc ,9/1/2023,3301.2,Unrestricted Shared Services,Other Contractual Services - PS
J. F. Drake State CC & TC,10015907,The College Board ,9/1/2023,410,Unrestricted Shared Services,Testing Expense
J. F. Drake State CC & TC,10015908,Trav-Ad Signs ,9/1/2023,904.02,Unrestricted Shared Services,Materials and Supplies - MS
J. F. Drake State CC & TC,10015953,North Alabama Engraving Stamp Company ,9/8/2023,111.15,Unrestricted Shared Services,Materials and Supplies - MS
J. F. Drake State CC & TC,10015954,Nurse Joel,9/8/2023,79.54,Unrestricted Shared Services,Student 3rd Party Reimbursement-AR
J. F. Drake State CC & TC,10015955,Riley Makahla,9/11/2023,360,Unrestricted Shared Services,Participant Costs-Stipends
J. F. Drake State CC & TC,10015956,Tolbert Eddie,9/11/2023,360,Unrestricted Shared Services,Participant Costs-Stipends
J. F. Drake State CC & TC,10015957,Alabama Lawnmaster Inc ,9/12/2023,3404.5,Unrestricted Shared Services,Other Contractual Services - PS
J. F. Drake State CC & TC,10015958,Alabama Media ,9/12/2023,150,Unrestricted Shared Services,Advertising & Promotions - OOS
J. F. Drake State CC & TC,10015959,Dynamic Security Inc ,9/12/2023,3890.7,Unrestricted Shared Services,Other Contractual Services - PS
J. F. Drake State CC & TC,10015960,Ecampus.com ,9/12/2023,88283.61,Unrestricted Shared Services,Bond Surety Fee Payable - AP
J. F. Drake State CC & TC,10015961,FedEx ,9/12/2023,10.45,Unrestricted Shared Services,Freight - OOS
J. F. Drake State CC & TC,10015962,Gulf States Distributors ,9/12/2023,29.99,Unrestricted Shared Services,Materials and Supplies - MS
J. F. Drake State CC & TC,10015963,Henderson Carolyn,9/12/2023,85,Unrestricted Shared Services,Overnight (non tax per diem)- IS
J. F. Drake State CC & TC,10015964,HESI - ELSEVIER ,9/12/2023,1800,Unrestricted Shared Services,Other - AP
J. F. Drake State CC & TC,10015965,HOAR Program Management LLC ,9/12/2023,47692.43,Unexpended Plant Shared Services,Engineering & Architectural Svc -PS
J. F. Drake State CC & TC,10015966,Huntsville Utilities ,9/12/2023,60.17,Unrestricted Shared Services,Gas & Heating Fuel - UC
J. F. Drake State CC & TC,10015966,Huntsville Utilities ,9/12/2023,871.66,Unrestricted Shared Services,Water & Sewer - UC
J. F. Drake State CC & TC,10015966,Huntsville Utilities ,9/12/2023,15277.92,Unrestricted Shared Services,Electricity - UC
J. F. Drake State CC & TC,10015967,Office Depot ,9/12/2023,100.86,Unrestricted Shared Services,Materials and Supplies - MS
J. F. Drake State CC & TC,10015968,Parkway Scrubs Inc ,9/12/2023,2968.95,Unrestricted Shared Services,Materials and Supplies - MS
J. F. Drake State CC & TC,10015969,Safety Kleen Systems Inc ,9/12/2023,686.06,Unrestricted Shared Services,Waste Disposal - UC
J. F. Drake State CC & TC,10015970,WEDC Foundation Inc ,9/12/2023,2500,Unrestricted Shared Services,Advertising & Promotions - OOS
J. F. Drake State CC & TC,10015971,Xerox Corporation ,9/12/2023,25.62,Unrestricted Shared Services,Maintenance & Repairs  - OOS
J. F. Drake State CC & TC,10015971,Xerox Corporation ,9/12/2023,40.89,Unrestricted Shared Services,Technology - non capitalized - MS
J. F. Drake State CC & TC,10015987,Dynamic Security Inc ,9/19/2023,3733.5,Unrestricted Shared Services,Other Contractual Services - PS
J. F. Drake State CC & TC,10015988,Huntsville Emergency Medical Services Inc ,9/19/2023,105,Unrestricted Shared Services,Graduation Expense
J. F. Drake State CC & TC,10015989,Koorsen Fire & Security ,9/19/2023,1957.5,Unrestricted Shared Services,Maintenance & Repairs  - OOS
J. F. Drake State CC & TC,10015990,LogoBranders Inc ,9/19/2023,689.69,Unrestricted Shared Services,Advertising & Promotions - OOS
J. F. Drake State CC & TC,10015991,PODS Enterprises Inc ,9/19/2023,1176.9,Unexpended Plant Shared Services,Short-Term Equipment Rentals - OOS
J. F. Drake State CC & TC,10015992,Red Sage Communications Inc ,9/19/2023,4479.9,Unrestricted Shared Services,Other Contractual Services - PS
J. F. Drake State CC & TC,10015993,RP Media ,9/19/2023,4945.35,Unrestricted Shared Services,Advertising & Promotions - OOS
J. F. Drake State CC & TC,10015994,Rydin Decals ,9/19/2023,572.64,Unrestricted Shared Services,Materials and Supplies - MS
J. F. Drake State CC & TC,10015995,The Webster Tree Company Inc. ,9/19/2023,8500,Unrestricted Shared Services,Other Contractual Services - PS
J. F. Drake State CC & TC,10016000,Accreditation Commission For Ed In Nursing Inc. (ACEN) ,9/27/2023,4175,Unrestricted Shared Services,Accreditation Expense - PS
J. F. Drake State CC & TC,10016001,Castle Branch Inc. ,9/27/2023,945,Unrestricted Shared Services,Other - AP
J. F. Drake State CC & TC,10016002,Chamber of Commerce Huntsville/Madison County ,9/27/2023,475,Unrestricted Shared Services,Advertising & Promotions - OOS
J. F. Drake State CC & TC,10016003,Dynamic Security Inc ,9/27/2023,7373.66,Unrestricted Shared Services,Other Contractual Services - PS
J. F. Drake State CC & TC,10016004,FedEx ,9/27/2023,7.18,Unrestricted Shared Services,Freight - OOS
J. F. Drake State CC & TC,10016005,Fite Construction Co LLC ,9/27/2023,285671.35,Unexpended Plant Shared Services2,Construction in Progress - CE
J. F. Drake State CC & TC,10016006,Goodloe Lardell,9/27/2023,106.02,Unrestricted Shared Services,Other Travel Expenses - OS
J. F. Drake State CC & TC,10016006,Goodloe Lardell,9/27/2023,333,Unrestricted Shared Services,Conus (meals) - OS
J. F. Drake State CC & TC,10016007,Gulf States Distributors ,9/27/2023,333.9,Unrestricted Shared Services,Materials and Supplies - MS
J. F. Drake State CC & TC,10016008,Koorsen Fire & Security ,9/27/2023,959.94,Unrestricted Shared Services,Other Contractual Services - PS
J. F. Drake State CC & TC,10016009,Owen Daniel,9/27/2023,92.25,Unrestricted Shared Services,Conus (meals) - IS
J. F. Drake State CC & TC,10016010,President's Round Table ,9/27/2023,1900,Unrestricted Shared Services,Registration Fees- OS
J. F. Drake State CC & TC,10016011,SiteOne Landscaping LLC ,9/27/2023,430.01,Unrestricted Shared Services,Materials and Supplies - MS
J. F. Drake State CC & TC,10016012,Wells Printing Company Inc ,9/27/2023,605.5,Unrestricted Shared Services,Printing and Binding - OOS
J. F. Drake State CC & TC,10016012,Wells Printing Company Inc ,9/27/2023,3496.96,Unrestricted Shared Services,Materials and Supplies - MS
J. F. Drake State CC & TC,10016023,Cook's Pest Control ,9/29/2023,364,Unrestricted Shared Services,Other Contractual Services - PS
J. F. Drake State CC & TC,10016024,LSI Research Inc. ,9/29/2023,36516,Unexpended Plant Shared Services,Other Contractual Services - PS
J. F. Drake State CC & TC,10016025,New Life Outreach International ,9/29/2023,1150,Unrestricted Shared Services,Other Contractual Services - PS
J. F. Drake State CC & TC,30016908,Bueno Javier,10/6/2022,500,GA-AL LSAMP NSF HRD 1305041 X9-X0,Participant Costs-Stipends
J. F. Drake State CC & TC,30016909,Bush Demetria,10/6/2022,500,GA-AL LSAMP NSF HRD 1305041 X9-X0,Participant Costs-Stipends
J. F. Drake State CC & TC,30016910,Jefferson Asia,10/6/2022,500,GA-AL LSAMP NSF HRD 1305041 X9-X0,Participant Costs-Stipends
J. F. Drake State CC & TC,30016911,Tate Sharde,10/6/2022,500,GA-AL LSAMP NSF HRD 1305041 X9-X0,Participant Costs-Stipends
J. F. Drake State CC & TC,30016912,Cengage Learning Inc. ,10/6/2022,1391.9,Title III (Activity 1),Books (Non-Library)
J. F. Drake State CC & TC,30016913,Hair Queen Beauty LLC ,10/6/2022,599.9,Title III (Activity 1),Materials and Supplies - MS
J. F. Drake State CC & TC,30016914,Holston Gases Inc ,10/6/2022,134.5,Title III (Activity 1),Materials and Supplies - MS
J. F. Drake State CC & TC,30016915,Jackson Painting ,10/6/2022,6700,Restricted State Grants Misc,Other Contractual Services - PS
J. F. Drake State CC & TC,30016916,LogoBranders Inc ,10/6/2022,1000.18,LPN Program Grant,Advertising & Promotions - OOS
J. F. Drake State CC & TC,30016917,McKesson Medical-Surgical Government Solutions Llc ,10/6/2022,1344.26,Title III (Activity 1),Materials and Supplies - MS
J. F. Drake State CC & TC,30016918,MSC Industrial Supply ,10/6/2022,6087,Spcl Pops Ind Workforce Initiatives,Materials and Supplies - MS
J. F. Drake State CC & TC,30016919,S&S Welding ,10/6/2022,27000,Spcl Pops Ind Workforce Initiatives,Other Contractual Services - PS
J. F. Drake State CC & TC,30016920,W W Grainger Inc ,10/6/2022,181.84,Restricted State Grants Misc,Equipment - non capitalized - MS
J. F. Drake State CC & TC,30016920,W W Grainger Inc ,10/6/2022,1071.11,Restricted State Grants Misc,Materials and Supplies - MS
J. F. Drake State CC & TC,30016921,Xerox Corporation ,10/6/2022,55.82,Title III (Activity 1),Maintenance & Repairs  - OOS
J. F. Drake State CC & TC,30016921,Xerox Corporation ,10/6/2022,83.99,Title III (Activity 1),Technology - non capitalized - MS
J. F. Drake State CC & TC,30016921,Xerox Corporation ,10/6/2022,209.28,Title III (Activity 6),Maintenance & Repairs  - OOS
J. F. Drake State CC & TC,30016924,Kingsbury Marina,10/13/2022,213.82,Restricted State Grants Misc,Other Travel Expenses - OS
J. F. Drake State CC & TC,30016925,Mayer Levi,10/13/2022,42,Title III (Activity 1),Other Travel Expenses - OS
J. F. Drake State CC & TC,30016926,McKesson Medical-Surgical Government Solutions Llc ,10/13/2022,276,Title III (Activity 1),Materials and Supplies - MS
J. F. Drake State CC & TC,30016927,Morrison Bruce,10/13/2022,85.5,Title III (Activity 5),Conus (meals) - IS
J. F. Drake State CC & TC,30016928,OCELOT ,10/13/2022,3780,Title III (Activity 5),Subscriptions - OOS
J. F. Drake State CC & TC,30016929,S&S Welding ,10/13/2022,2000,Restricted State Grants Misc,Other Contractual Services - PS
J. F. Drake State CC & TC,30016930,Terrell Technical Services Inc ,10/13/2022,1500,CRRSAA - HBCU and Strengthening II,Other Professional Fees - PS
J. F. Drake State CC & TC,30016931,TouchNet Information Systems Inc ,10/13/2022,250,Title III (Activity 6),Taxes & Licenses - OOS
J. F. Drake State CC & TC,30016934,Amtec Solutions Group Inc ,10/20/2022,11803.1,Restricted State Grants Misc,Materials and Supplies - MS
J. F. Drake State CC & TC,30016935,CDW LLC ,10/20/2022,3573.5,ARP HEERF III - HBCU,Materials and Supplies - MS
J. F. Drake State CC & TC,30016936,MSC Industrial Supply ,10/20/2022,2039,Spcl Pops Ind Workforce Initiatives,Materials and Supplies - MS
J. F. Drake State CC & TC,30016937,RJ Young Company ,10/20/2022,1396.99,CRRSAA - HBCU and Strengthening II,Materials and Supplies - MS
J. F. Drake State CC & TC,30016937,RJ Young Company ,10/20/2022,14808.92,CRRSAA - HBCU and Strengthening II,Technology - non capitalized - MS
J. F. Drake State CC & TC,30016937,RJ Young Company ,10/20/2022,18190,CRRSAA - HBCU and Strengthening II,Other Non-Capital Costs
J. F. Drake State CC & TC,30016937,RJ Young Company ,10/20/2022,70000,CRRSAA - HBCU and Strengthening II,Furniture and Equip $5K - $25K - CE
J. F. Drake State CC & TC,30016937,RJ Young Company ,10/20/2022,153641.43,CRRSAA - HBCU and Strengthening II,Equipment - non capitalized - MS
J. F. Drake State CC & TC,30016938,Strickland Paper Company Inc ,10/20/2022,1778.8,Title III (Activity A Prog Admin),Materials and Supplies - MS
J. F. Drake State CC & TC,30016939,Tate Sharde,10/24/2022,1000,GA-AL LSAMP NSF HRD 1305041 X9-X0,Participant Costs-Stipends
J. F. Drake State CC & TC,30016940,ACCS Human Resources Management Association ,10/27/2022,225,Title III (Activity 6),Registration Fees- IS
J. F. Drake State CC & TC,30016940,ACCS Human Resources Management Association ,10/27/2022,250,Title III (Activity 6),Memberships - PS
J. F. Drake State CC & TC,30016941,Calhoun Community College ,10/27/2022,3034.26,AE-State Regular 2XX1-2XX2,Grants State - AR
J. F. Drake State CC & TC,30016942,Carolina Biological Supply Co ,10/27/2022,205.2,Title III (Activity 1),Materials and Supplies - MS
J. F. Drake State CC & TC,30016943,Swaim Richard,10/27/2022,78.75,Title III (Activity 1),Non-Overnight Meals Tax per diem-FB
J. F. Drake State CC & TC,30017326,ACCS Instructional Officers Association ,11/3/2022,300,Title III (Activity 1),Memberships - PS
J. F. Drake State CC & TC,30017327,Alabama Community College Association ,11/3/2022,1000,Title III (Activity 1),Memberships - PS
J. F. Drake State CC & TC,30017328,Chance Kathryn,11/3/2022,218,Title III (Activity 6),Conus (meals) - IS
J. F. Drake State CC & TC,30017328,Chance Kathryn,11/3/2022,871.23,Title III (Activity 6),Lodging - IS
J. F. Drake State CC & TC,30017329,Custom Guide ,11/3/2022,2040,Ready to Work 2XX1-2XX2,Computer Software(non capital) - MS
J. F. Drake State CC & TC,30017330,LogoBranders Inc ,11/3/2022,1539.17,Apple Community College Initiative,Advertising & Promotions - OOS
J. F. Drake State CC & TC,30017330,LogoBranders Inc ,11/3/2022,2172.07,LPN Program Grant,Advertising & Promotions - OOS
J. F. Drake State CC & TC,30017331,Middle Tennessee State University ,11/3/2022,119378,NASA MUREP Grant,Grants  Awards and Prizes - OOS
J. F. Drake State CC & TC,30017332,PODS Enterprises Inc ,11/3/2022,318,Future Act (Activity 1),Short-Term Equipment Rentals - OOS
J. F. Drake State CC & TC,30017333,Stericycle Inc ,11/3/2022,188.16,Future Act (Activity 1),Waste Disposal - UC
J. F. Drake State CC & TC,30017334,ABB Inc ,11/8/2022,5310,Restricted State Grants Misc,Professional Development - PS
J. F. Drake State CC & TC,30017335,Blackbaud Inc ,11/8/2022,600,Drake Foundation,Computer Software(non capital) - MS
J. F. Drake State CC & TC,30017335,Blackbaud Inc ,11/8/2022,10950.12,Title III (Activity A Institution),Computer Software(non capital) - MS
J. F. Drake State CC & TC,30017336,Innovative Educators Inc ,11/8/2022,9995,Title III (Activity 5),Computer Software(non capital) - MS
J. F. Drake State CC & TC,30017337,Lowe's Company ,11/8/2022,84.54,NASA Grant 2021-2022,Materials and Supplies - MS
J. F. Drake State CC & TC,30017338,Office Depot ,11/8/2022,227.48,Title III (Activity 6),Materials and Supplies - MS
J. F. Drake State CC & TC,30017339,Thomas Electric Inc ,11/8/2022,6180,Restricted State Grants Misc,Other Contractual Services - PS
J. F. Drake State CC & TC,30017339,Thomas Electric Inc ,11/8/2022,7423,Title III (Activity 3),Maintenance & Repairs  - OOS
J. F. Drake State CC & TC,30017340,Xerox Corporation ,11/8/2022,40,Title III (Activity 6),Maintenance & Repairs  - OOS
J. F. Drake State CC & TC,30017340,Xerox Corporation ,11/8/2022,122.61,Title III (Activity 1),Technology - non capitalized - MS
J. F. Drake State CC & TC,30017340,Xerox Corporation ,11/8/2022,268.23,Title III (Activity 1),Maintenance & Repairs  - OOS
J. F. Drake State CC & TC,30017341,Huntsville/Madison Co. Diversity Leadership Colloquim LLC ,11/9/2022,995,Title III (Activity 5),Professional Development - PS
J. F. Drake State CC & TC,30017342,LMS Metal Sales ,11/9/2022,9608.95,Title III (Activity 1),Materials and Supplies - MS
J. F. Drake State CC & TC,30017343,ProQuest ,11/9/2022,6768.02,Title III (Activity 2),Subscriptions - OOS
J. F. Drake State CC & TC,30017344,Jefferson Asia,11/14/2022,500,GA-AL LSAMP NSF HRD 1305041 X9-X0,Participant Costs-Stipends
J. F. Drake State CC & TC,30017345,Tate Sharde,11/14/2022,500,GA-AL LSAMP NSF HRD 1305041 X9-X0,Participant Costs-Stipends
J. F. Drake State CC & TC,30017346,CDW LLC ,11/16/2022,3925.38,Carl Perkins Reserve-SkillsOnWheels,Technology - non capitalized - MS
J. F. Drake State CC & TC,30017347,Ecampus.com ,11/16/2022,9963.86,Title III (Activity 2),Books - CE
J. F. Drake State CC & TC,30017348,Goverlan LLC ,11/16/2022,5508,CRRSAA - HBCU and Strengthening II,Computer Software(non capital) - MS
J. F. Drake State CC & TC,30017349,Hambrick Neoka,11/16/2022,273.25,Title III (Activity 6),Conus (meals) - IS
J. F. Drake State CC & TC,30017350,Howard Technology Solutions ,11/16/2022,664,Restricted State Grants Misc,Materials and Supplies - MS
J. F. Drake State CC & TC,30017350,Howard Technology Solutions ,11/16/2022,2541,Restricted State Grants Misc,Technology - non capitalized - MS
J. F. Drake State CC & TC,30017351,Lincoln Electric Company ,11/16/2022,8534.65,Title III (Activity 1),Materials and Supplies - MS
J. F. Drake State CC & TC,30017352,MSC Industrial Supply ,11/16/2022,1032.91,Carl Perkins Reserve-SkillsOnWheels,Technology - non capitalized - MS
J. F. Drake State CC & TC,30017353,Olinger Jennifer,11/16/2022,154.75,Title III (Activity 6),Conus (meals) - IS
J. F. Drake State CC & TC,30017354,Office Depot ,11/16/2022,121.74,Title III (Activity 1),Materials and Supplies - MS
J. F. Drake State CC & TC,30017355,Terrell Technical Services Inc ,11/16/2022,3400,CRRSAA - HBCU and Strengthening II,Other Professional Fees - PS
J. F. Drake State CC & TC,30017357,Howard Technology Solutions ,11/22/2022,20,Restricted State Grants Misc,Materials and Supplies - MS
J. F. Drake State CC & TC,30017358,Huntsville Times ,11/22/2022,58.35,Title III (Activity 2),Subscriptions - OOS
J. F. Drake State CC & TC,30017359,MSC Industrial Supply ,11/22/2022,355.8,ARC Grant,Materials and Supplies - MS
J. F. Drake State CC & TC,30017360,Office Depot ,11/22/2022,17.52,Title III (Activity 1),Materials and Supplies - MS
J. F. Drake State CC & TC,30017361,Pruitt Marquita,11/22/2022,75,Title III (Activity 1),Registration Fees- IS
J. F. Drake State CC & TC,30017362,Williams Kelly,11/22/2022,65,Title III (Activity 1),Registration Fees- IS
J. F. Drake State CC & TC,30017369,Holston Gases Inc ,12/1/2022,125,Title III (Activity 1),Materials and Supplies - MS
J. F. Drake State CC & TC,30017370,MSC Industrial Supply ,12/1/2022,1062.2,Spcl Pops Ind Workforce Initiatives,Materials and Supplies - MS
J. F. Drake State CC & TC,30017371,State of Louisiana - Southern University ,12/1/2022,25740.46,NASA MUREP Grant,Grants  Awards and Prizes - OOS
J. F. Drake State CC & TC,30017372,Stericycle Inc ,12/1/2022,94.08,Future Act (Activity 1),Waste Disposal - UC
J. F. Drake State CC & TC,30017373,Tate Tralandar,12/1/2022,65,Title III (Activity 1),Registration Fees- IS
J. F. Drake State CC & TC,30017374,Bush Demetria,12/6/2022,500,GA-AL LSAMP NSF HRD 1305041 X9-X0,Participant Costs-Stipends
J. F. Drake State CC & TC,30017375,Jefferson Asia,12/6/2022,500,GA-AL LSAMP NSF HRD 1305041 X9-X0,Participant Costs-Stipends
J. F. Drake State CC & TC,30017376,Tate Sharde,12/6/2022,500,GA-AL LSAMP NSF HRD 1305041 X9-X0,Participant Costs-Stipends
J. F. Drake State CC & TC,30017377,Holston Gases Inc ,12/8/2022,125,Title III (Activity 1),Materials and Supplies - MS
J. F. Drake State CC & TC,30017378,PODS Enterprises Inc ,12/8/2022,159,Future Act (Activity 1),Short-Term Equipment Rentals - OOS
J. F. Drake State CC & TC,30017379,Ward Mattavia,12/8/2022,102.25,Title III (Activity 5),Conus (meals) - IS
J. F. Drake State CC & TC,30017380,Xerox Corporation ,12/8/2022,40,Title III (Activity 6),Maintenance & Repairs  - OOS
J. F. Drake State CC & TC,30017380,Xerox Corporation ,12/8/2022,167.99,Title III (Activity 1),Technology - non capitalized - MS
J. F. Drake State CC & TC,30017380,Xerox Corporation ,12/8/2022,276.82,Title III (Activity 1),Maintenance & Repairs  - OOS
J. F. Drake State CC & TC,30017383,Herc Rentals Inc ,12/15/2022,3500,Restricted State Grants Misc,Short-Term Equipment Rentals - OOS
J. F. Drake State CC & TC,30017384,Inmotion LLC ,12/15/2022,27477.5,Restricted State Grants Misc,Other Contractual Services - PS
J. F. Drake State CC & TC,30017385,MSC Industrial Supply ,12/15/2022,1179,Spcl Pops Ind Workforce Initiatives,Materials and Supplies - MS
J. F. Drake State CC & TC,30017386,Wells Printing Company Inc ,12/15/2022,398,ARP - HEERF III Institutional,Printing and Binding - OOS
J. F. Drake State CC & TC,30017387,Alabama Two-Year College Library Association ,12/19/2022,100,Title III (Activity 2),Memberships - PS
J. F. Drake State CC & TC,30017388,Business Systems & Consultants Inc ,1/5/2023,5800,Title III (Activity 2),Service Contracts on Equipment -OOS
J. F. Drake State CC & TC,30017389,Holston Gases Inc ,1/5/2023,125,Title III (Activity 1),Materials and Supplies - MS
J. F. Drake State CC & TC,30017390,Mr Rooter Plumbing ,1/5/2023,2450,Title III (Activity 3),Maintenance & Repairs  - OOS
J. F. Drake State CC & TC,30017391,PODS Enterprises Inc ,1/5/2023,159,Future Act (Activity 1),Short-Term Equipment Rentals - OOS
J. F. Drake State CC & TC,30017392,Stericycle Inc ,1/5/2023,94.08,Future Act (Activity 1),Waste Disposal - UC
J. F. Drake State CC & TC,30017393,Xerox Corporation ,1/5/2023,40,Title III (Activity 6),Maintenance & Repairs  - OOS
J. F. Drake State CC & TC,30017393,Xerox Corporation ,1/5/2023,190.43,Title III (Activity 1),Maintenance & Repairs  - OOS
J. F. Drake State CC & TC,30017393,Xerox Corporation ,1/5/2023,200.73,Title III (Activity 1),Technology - non capitalized - MS
J. F. Drake State CC & TC,30017394,Phillips Corporation ,1/10/2023,114903,ARP - HEERF III Institutional,Furniture and Equip > $25K - CE
J. F. Drake State CC & TC,30017395,Bell Angela,1/13/2023,186.75,Title III (Activity 5),Conus (meals) - OS
J. F. Drake State CC & TC,30017396,Council For Advance & Support Of Ed ,1/13/2023,1130,Title III (Activity A Institution),Memberships - PS
J. F. Drake State CC & TC,30017397,Henderson Carolyn,1/13/2023,119.95,Title III (Activity 1),Other Travel Expenses - OS
J. F. Drake State CC & TC,30017397,Henderson Carolyn,1/13/2023,186.75,Title III (Activity 1),Conus (meals) - OS
J. F. Drake State CC & TC,30017398,National Association of HBCU Title III Administrators ,1/13/2023,300,Title III (Activity A Prog Admin),Memberships - PS
J. F. Drake State CC & TC,30017399,Staples Business Advantage ,1/13/2023,630.14,CRRSAA - HBCU and Strengthening II,Materials and Supplies - MS
J. F. Drake State CC & TC,30017400,Taylor Kacey,1/13/2023,118.25,Title III (Activity 1),Conus (meals) - IS
J. F. Drake State CC & TC,30017401,LSI Research Inc. ,1/19/2023,9965.21,Restricted State Grants Misc,Furniture and Equip $5K - $25K - CE
J. F. Drake State CC & TC,30017401,LSI Research Inc. ,1/19/2023,54000,ARP HEERF III - HBCU,Other Contractual Services - PS
J. F. Drake State CC & TC,30017404,Alabama Community College System Instructional Administrator ,1/24/2023,300,Title III (Activity 1),Memberships - PS
J. F. Drake State CC & TC,30017405,Ecampus.com ,1/24/2023,3515.65,Dual Enrollment  Sch. 2XX1-2XX2,Books (Non-Library)
J. F. Drake State CC & TC,30017406,GoEngineer Inc ,1/24/2023,1252,Restricted State Grants Misc,Computer Software(non capital) - MS
J. F. Drake State CC & TC,30017407,Mr Rooter Plumbing ,1/24/2023,3877,Title III (Activity 3),Maintenance & Repairs  - OOS
J. F. Drake State CC & TC,30017408,MSC Industrial Supply ,1/24/2023,1358,Spcl Pops Ind Workforce Initiatives,Materials and Supplies - MS
J. F. Drake State CC & TC,30017409,Bush Demetria,1/26/2023,500,GA-AL LSAMP NSF HRD 1305041 X9-X0,Participant Costs-Stipends
J. F. Drake State CC & TC,30017410,Jefferson Asia,1/26/2023,500,GA-AL LSAMP NSF HRD 1305041 X9-X0,Participant Costs-Stipends
J. F. Drake State CC & TC,30017411,Tate Sharde,1/26/2023,500,GA-AL LSAMP NSF HRD 1305041 X9-X0,Participant Costs-Stipends
J. F. Drake State CC & TC,30017412,Brown TaDallious,1/26/2023,90,Restricted State Grants Misc,Participant Costs-Stipends
J. F. Drake State CC & TC,30017413,Harris Momekiana,1/26/2023,90,Restricted State Grants Misc,Participant Costs-Stipends
J. F. Drake State CC & TC,30017414,Hoang Jimmy,1/26/2023,360,Restricted State Grants Misc,Participant Costs-Stipends
J. F. Drake State CC & TC,30017415,Lovell Jonathan,1/26/2023,360,Restricted State Grants Misc,Participant Costs-Stipends
J. F. Drake State CC & TC,30017416,Perry Jermaine,1/26/2023,345,Restricted State Grants Misc,Participant Costs-Stipends
J. F. Drake State CC & TC,30017417,Sharp Cody,1/26/2023,338,Restricted State Grants Misc,Participant Costs-Stipends
J. F. Drake State CC & TC,30017418,Tolbert Eddie,1/26/2023,353,Restricted State Grants Misc,Participant Costs-Stipends
J. F. Drake State CC & TC,30017531,AACC ,1/30/2023,2188,Title III (Activity 1),Memberships - PS
J. F. Drake State CC & TC,30017532,ACCS Financial Managers Association ,2/1/2023,500,Title III (Activity 6),Memberships - PS
J. F. Drake State CC & TC,30017533,Alabama Association for Institutional Research ,2/1/2023,100,Title III (Activity 6),Memberships - PS
J. F. Drake State CC & TC,30017533,Alabama Association for Institutional Research ,2/1/2023,130,Title III (Activity 6),Registration Fees- IS
J. F. Drake State CC & TC,30017534,BadgePass Inc ,2/1/2023,254.81,Title III (Activity 4),Materials and Supplies - MS
J. F. Drake State CC & TC,30017535,Carolina Biological Supply Co ,2/1/2023,2793.25,Title III (Activity 1),Materials and Supplies - MS
J. F. Drake State CC & TC,30017536,CDW LLC ,2/1/2023,666.94,Title III (Activity 4),Materials and Supplies - MS
J. F. Drake State CC & TC,30017537,ConsuLab Educatech Inc ,2/1/2023,371,Title III (Activity 1),Materials and Supplies - MS
J. F. Drake State CC & TC,30017537,ConsuLab Educatech Inc ,2/1/2023,35680,Title III (Activity 1),Furniture and Equip > $25K - CE
J. F. Drake State CC & TC,30017538,Ecampus.com ,2/1/2023,7733.23,Dual Enrollment  Sch. 2XX1-2XX2,Books (Non-Library)
J. F. Drake State CC & TC,30017539,Goodloe Lardell,2/1/2023,3000,Auto Mfg WF Dev 2XX1-2XX2,Participant Costs-Stipends
J. F. Drake State CC & TC,30017540,Mark Moore Creates LLC ,2/1/2023,300,Restricted State Grants Misc,Other Professional Fees - PS
J. F. Drake State CC & TC,30017541,Mayer Levi,2/1/2023,94.33,Title III (Activity 1),Other Travel Expenses - OS
J. F. Drake State CC & TC,30017541,Mayer Levi,2/1/2023,159,Title III (Activity 1),Conus (meals) - OS
J. F. Drake State CC & TC,30017542,McKesson Medical-Surgical Government Solutions Llc ,2/1/2023,3406.25,Title III (Activity 1),Materials and Supplies - MS
J. F. Drake State CC & TC,30017543,Office Depot ,2/1/2023,90.76,Title III (Activity 6),Materials and Supplies - MS
J. F. Drake State CC & TC,30017544,Stericycle Inc ,2/1/2023,98.45,Future Act (Activity 1),Waste Disposal - UC
J. F. Drake State CC & TC,30017545,Xerox Corporation ,2/1/2023,40,Title III (Activity 6),Maintenance & Repairs  - OOS
J. F. Drake State CC & TC,30017545,Xerox Corporation ,2/1/2023,160.3,Title III (Activity 1),Technology - non capitalized - MS
J. F. Drake State CC & TC,30017545,Xerox Corporation ,2/1/2023,217.57,Title III (Activity 1),Maintenance & Repairs  - OOS
J. F. Drake State CC & TC,30017548,Carolina Biological Supply Co ,2/7/2023,14.2,Title III (Activity 1),Materials and Supplies - MS
J. F. Drake State CC & TC,30017549,CDW LLC ,2/7/2023,33500,Title III (Activity 4),Computer Software(non capital) - MS
J. F. Drake State CC & TC,30017550,Conditioned Air Solutions LLC ,2/7/2023,3364.61,Title III (Activity 3),Maintenance & Repairs  - OOS
J. F. Drake State CC & TC,30017551,McKesson Medical-Surgical Government Solutions Llc ,2/7/2023,10164.55,Title III (Activity 1),Materials and Supplies - MS
J. F. Drake State CC & TC,30017552,Nola Van Peursem Architects PC ,2/7/2023,3094.8,Title III (Activity 3),Engineering & Architectural Svc -PS
J. F. Drake State CC & TC,30017553,PODS Enterprises Inc ,2/7/2023,159,Future Act (Activity 1),Short-Term Equipment Rentals - OOS
J. F. Drake State CC & TC,30017554,The Burmax Co. Inc. ,2/7/2023,1793.95,Dual Enrollment  Sch. 2XX1-2XX2,Books (Non-Library)
J. F. Drake State CC & TC,30017555,Alabama Community College Association ,2/9/2023,200,Title III (Activity 1),Registration Fees- IS
J. F. Drake State CC & TC,30017555,Alabama Community College Association ,2/9/2023,450,Title III (Activity 5),Registration Fees- IS
J. F. Drake State CC & TC,30017556,Cool Stuff by Austin ,2/9/2023,400,NASA MUREP Grant,Other Professional Fees - PS
J. F. Drake State CC & TC,30017557,Ecampus.com ,2/9/2023,4082.82,Dual Enrollment  Sch. 2XX1-2XX2,Books (Non-Library)
J. F. Drake State CC & TC,30017558,LogoBranders Inc ,2/9/2023,1821.18,NASA MUREP Grant,Materials and Supplies - MS
J. F. Drake State CC & TC,30017559,McKesson Medical-Surgical Government Solutions Llc ,2/9/2023,-707.09,LPN Program Grant,Materials and Supplies - MS
J. F. Drake State CC & TC,30017559,McKesson Medical-Surgical Government Solutions Llc ,2/9/2023,659.78,Title III (Activity 1),Materials and Supplies - MS
J. F. Drake State CC & TC,30017559,McKesson Medical-Surgical Government Solutions Llc ,2/9/2023,4577.85,Equip-Supt Patient Care Tech Pgm,Equipment - non capitalized - MS
J. F. Drake State CC & TC,30017564,American Library Association ,2/16/2023,425,Title III (Activity 2),Memberships - PS
J. F. Drake State CC & TC,30017565,ACCS Financial Managers Association ,2/16/2023,250,Title III (Activity 6),Registration Fees- IS
J. F. Drake State CC & TC,30017566,ACCS Human Resources Management Association ,2/16/2023,200,Title III (Activity 6),Registration Fees- IS
J. F. Drake State CC & TC,30017567,Anthology Inc of NY ,2/16/2023,19394.82,Title III (Activity 6),Computer Software(non capital) - MS
J. F. Drake State CC & TC,30017568,AspirEDU Inc. ,2/16/2023,788.56,Title III (Activity 5),Computer Software(non capital) - MS
J. F. Drake State CC & TC,30017569,Holston Gases Inc ,2/16/2023,125,Title III (Activity 1),Materials and Supplies - MS
J. F. Drake State CC & TC,30017570,Holston Gases Inc ,2/16/2023,1934.95,Title III (Activity 1),Materials and Supplies - MS
J. F. Drake State CC & TC,30017571,Huntsville Times ,2/16/2023,49.65,Title III (Activity 2),Subscriptions - OOS
J. F. Drake State CC & TC,30017572,Bush Demetria,2/21/2023,500,GA-AL LSAMP NSF HRD 1305041 X9-X0,Participant Costs-Stipends
J. F. Drake State CC & TC,30017573,Jefferson Asia,2/21/2023,500,GA-AL LSAMP NSF HRD 1305041 X9-X0,Participant Costs-Stipends
J. F. Drake State CC & TC,30017574,Tate Sharde,2/21/2023,500,GA-AL LSAMP NSF HRD 1305041 X9-X0,Participant Costs-Stipends
J. F. Drake State CC & TC,30017575,Bell Angela,2/22/2023,300,Title III (Activity 6),Overnight (non tax per diem)- IS
J. F. Drake State CC & TC,30017576,Bevel Joseph,2/22/2023,397.5,Mazda Toyota Grant (Pass-Through),Other Travel Expenses - OS
J. F. Drake State CC & TC,30017577,Carolina Biological Supply Co ,2/22/2023,2180.05,Title III (Activity 1),Materials and Supplies - MS
J. F. Drake State CC & TC,30017578,CDW LLC ,2/22/2023,933.6,Title III (Activity 1),Materials and Supplies - MS
J. F. Drake State CC & TC,30017579,Cool Stuff by Austin ,2/22/2023,400,NASA MUREP Grant,Other Contractual Services - PS
J. F. Drake State CC & TC,30017580,Ecampus.com ,2/22/2023,977.81,Dual Enrollment  Sch. 2XX1-2XX2,Books (Non-Library)
J. F. Drake State CC & TC,30017581,Green Tiffany,2/22/2023,300,Title III (Activity 6),Overnight (non tax per diem)- IS
J. F. Drake State CC & TC,30017582,Holston Gases Inc ,2/22/2023,1028.8,Title III (Activity 1),Materials and Supplies - MS
J. F. Drake State CC & TC,30017582,Holston Gases Inc ,2/22/2023,1506.92,Title III (Activity 1),Materials and Supplies - MS
J. F. Drake State CC & TC,30017583,Howard Technology Solutions ,2/22/2023,5550,NASA MUREP Grant,Materials and Supplies - MS
J. F. Drake State CC & TC,30017584,McKesson Medical-Surgical Government Solutions Llc ,2/22/2023,3444.07,FY23 Stand-Alone LPN Grant,Materials and Supplies - MS
J. F. Drake State CC & TC,30017585,MSC Industrial Supply ,2/22/2023,3646,Spcl Pops Ind Workforce Initiatives,Materials and Supplies - MS
J. F. Drake State CC & TC,30017586,Office Depot ,2/22/2023,38.55,Future Act (Activity 1),Materials and Supplies - MS
J. F. Drake State CC & TC,30017586,Office Depot ,2/22/2023,817.08,FY23 Stand-Alone LPN Grant,Materials and Supplies - MS
J. F. Drake State CC & TC,30017587,Phillips Corporation ,2/22/2023,77095.92,STEAM-CNC Vertical Machining,Furniture and Equip > $25K - CE
J. F. Drake State CC & TC,30017588,Rafferty Kory,2/22/2023,840.27,Mazda Toyota Grant (Pass-Through),Other Travel Expenses - OS
J. F. Drake State CC & TC,30017589,Ward Mattavia,2/22/2023,300,Title III (Activity 6),Overnight (non tax per diem)- IS
J. F. Drake State CC & TC,30017594,ACCS Facility and Safety Association ,3/1/2023,250,Title III (Activity 3),Memberships - PS
J. F. Drake State CC & TC,30017595,Carolina Biological Supply Co ,3/1/2023,389.25,Title III (Activity 1),Materials and Supplies - MS
J. F. Drake State CC & TC,30017596,Council for Alabama Resource Development ,3/1/2023,200,Title III (Activity A Institution),Registration Fees- IS
J. F. Drake State CC & TC,30017597,Howard Technology Solutions ,3/1/2023,80325,NTIA Grant,Wireless Phones - UC
J. F. Drake State CC & TC,30017597,Howard Technology Solutions ,3/1/2023,157675,NTIA Grant,Materials and Supplies - MS
J. F. Drake State CC & TC,30017598,LogoBranders Inc ,3/1/2023,2281.92,NASA MUREP Grant,Materials and Supplies - MS
J. F. Drake State CC & TC,30017599,McKesson Medical-Surgical Government Solutions Llc ,3/1/2023,231.11,FY23 Stand-Alone LPN Grant,Materials and Supplies - MS
J. F. Drake State CC & TC,30017600,Office Depot ,3/1/2023,6.36,Future Act (Activity 1),Materials and Supplies - MS
J. F. Drake State CC & TC,30017600,Office Depot ,3/1/2023,144.13,FY23 Stand-Alone LPN Grant,Materials and Supplies - MS
J. F. Drake State CC & TC,30017600,Office Depot ,3/1/2023,244.49,Title III (Activity 1),Materials and Supplies - MS
J. F. Drake State CC & TC,30017601,Stericycle Inc ,3/1/2023,98.45,Future Act (Activity 1),Waste Disposal - UC
J. F. Drake State CC & TC,30017602,Synergetics DCS Inc. ,3/1/2023,62991,CRRSAA - HBCU and Strengthening II,Other Non-Capital Costs
J. F. Drake State CC & TC,30017603,Thomas Electric Inc ,3/1/2023,6592,Title III (Activity 3),Maintenance & Repairs  - OOS
J. F. Drake State CC & TC,30017604,Xerox Corporation ,3/1/2023,40,Title III (Activity 6),Maintenance & Repairs  - OOS
J. F. Drake State CC & TC,30017604,Xerox Corporation ,3/1/2023,193.22,Title III (Activity 1),Maintenance & Repairs  - OOS
J. F. Drake State CC & TC,30017604,Xerox Corporation ,3/1/2023,216.52,Title III (Activity 1),Technology - non capitalized - MS
J. F. Drake State CC & TC,30017605,Jim Cooper Construction Company Inc ,3/2/2023,279069.15,ARP HEERF III - HBCU,Construction in Progress - CE
J. F. Drake State CC & TC,30017606,EBSCO Industries Inc ,3/7/2023,7171,Title III (Activity 2),Subscriptions - OOS
J. F. Drake State CC & TC,30017607,McKesson Medical-Surgical Government Solutions Llc ,3/7/2023,353.94,FY23 Stand-Alone LPN Grant,Materials and Supplies - MS
J. F. Drake State CC & TC,30017607,McKesson Medical-Surgical Government Solutions Llc ,3/7/2023,451.16,Future Act (Activity 1),Materials and Supplies - MS
J. F. Drake State CC & TC,30017608,Xerox Corporation ,3/7/2023,58.41,Title III (Activity 1),Maintenance & Repairs  - OOS
J. F. Drake State CC & TC,30017617,Harris Katrina,3/13/2023,74.88,Title III (Activity 6),Conus (meals) - IS
J. F. Drake State CC & TC,30017618,ACCS Facility and Safety Association ,3/14/2023,150,Title III (Activity 3),Registration Fees- IS
J. F. Drake State CC & TC,30017619,Chance Kathryn,3/14/2023,38.25,Title III (Activity 6),Conus (meals) - IS
J. F. Drake State CC & TC,30017620,Driskill ChrisAnn,3/14/2023,75,Title III (Activity A Institution),Other Travel Expenses - OS
J. F. Drake State CC & TC,30017620,Driskill ChrisAnn,3/14/2023,121.5,Title III (Activity A Institution),Conus (meals) - OS
J. F. Drake State CC & TC,30017621,Ecampus.com ,3/14/2023,1448.64,Dual Enrollment  Sch. 2XX1-2XX2,Books (Non-Library)
J. F. Drake State CC & TC,30017622,Henderson Carolyn,3/14/2023,67.5,Title III (Activity 1),Conus (meals) - IS
J. F. Drake State CC & TC,30017623,McKesson Medical-Surgical Government Solutions Llc ,3/14/2023,373.4,FY23 Stand-Alone LPN Grant,Materials and Supplies - MS
J. F. Drake State CC & TC,30017624,Office Depot ,3/14/2023,33.8,Title III (Activity 5),Materials and Supplies - MS
J. F. Drake State CC & TC,30017624,Office Depot ,3/14/2023,348.76,Future Act (Activity 1),Materials and Supplies - MS
J. F. Drake State CC & TC,30017625,Technical and Educational Training Aids Inc ,3/14/2023,9175,Auto Mfg WF Dev 2XX1-2XX2,Equipment - non capitalized - MS
J. F. Drake State CC & TC,30017634,Carolina Biological Supply Co ,3/22/2023,419.95,Title III (Activity 1),Materials and Supplies - MS
J. F. Drake State CC & TC,30017635,CDW LLC ,3/22/2023,255.09,Title III (Activity 1),Materials and Supplies - MS
J. F. Drake State CC & TC,30017636,Dunlap Contracting Inc ,3/22/2023,83600,Title III (Activity 3),Construction in Progress - CE
J. F. Drake State CC & TC,30017637,Ecampus.com ,3/22/2023,193.68,Dual Enrollment  Sch. 2XX1-2XX2,Books (Non-Library)
J. F. Drake State CC & TC,30017638,Howard Technology Solutions ,3/22/2023,1566,Meta Comm. Action Grant(Facebook),Materials and Supplies - MS
J. F. Drake State CC & TC,30017638,Howard Technology Solutions ,3/22/2023,99960,NTIA Grant,Materials and Supplies - MS
J. F. Drake State CC & TC,30017638,Howard Technology Solutions ,3/22/2023,133875,NTIA Grant,Wireless Phones - UC
J. F. Drake State CC & TC,30017639,Mainstay Inc. ,3/22/2023,14400,Title III (Activity 5),Computer Software(non capital) - MS
J. F. Drake State CC & TC,30017640,Office Depot ,3/22/2023,101.96,Title III (Activity 5),Materials and Supplies - MS
J. F. Drake State CC & TC,30017641,Snap-On Incorporated ,3/22/2023,2951.31,Title III (Activity 1),Materials and Supplies - MS
J. F. Drake State CC & TC,30017641,Snap-On Incorporated ,3/22/2023,37631.09,Title III (Activity 1),Furniture and Equip > $25K - CE
J. F. Drake State CC & TC,30017643,Aramark Services Inc ,3/24/2023,3018.44,NASA MUREP Grant,Culinary Consumables
J. F. Drake State CC & TC,30017644,Hottinger Bruel & Kjaer Inc ,3/24/2023,774.9,Restricted State Grants Misc,Computer Software(non capital) - MS
J. F. Drake State CC & TC,30017644,Hottinger Bruel & Kjaer Inc ,3/24/2023,17198.02,Restricted State Grants Misc,Materials and Supplies - MS
J. F. Drake State CC & TC,30017645,Jefferson Asia,3/29/2023,500,GA-AL LSAMP NSF HRD 1305041 X9-X0,Participant Costs-Stipends
J. F. Drake State CC & TC,30017646,Tate Sharde,3/29/2023,500,GA-AL LSAMP NSF HRD 1305041 X9-X0,Participant Costs-Stipends
J. F. Drake State CC & TC,30017647,Alabama Deans of Student Affairs Association ,3/29/2023,30,Title III (Activity 5),Registration Fees- IS
J. F. Drake State CC & TC,30017647,Alabama Deans of Student Affairs Association ,3/29/2023,275,Title III (Activity 5),Memberships - PS
J. F. Drake State CC & TC,30017648,Bell Angela,3/29/2023,87,Title III (Activity 5),Conus (meals) - IS
J. F. Drake State CC & TC,30017649,CDW LLC ,3/29/2023,582.46,Title III (Activity 4),Materials and Supplies - MS
J. F. Drake State CC & TC,30017650,ESCO Institute ,3/29/2023,360,CRRSAA - HEERF II Institutional,Testing Expense
J. F. Drake State CC & TC,30017651,Holston Gases Inc ,3/29/2023,195,Title III (Activity 1),Materials and Supplies - MS
J. F. Drake State CC & TC,30017652,Jim Cooper Construction Company Inc ,3/29/2023,601917.99,ARP HEERF III - HBCU,Construction in Progress - CE
J. F. Drake State CC & TC,30017653,Lowe's Company ,3/29/2023,206.95,ARP HEERF III - HBCU,Materials and Supplies - MS
J. F. Drake State CC & TC,30017653,Lowe's Company ,3/29/2023,3499.98,Title III (Activity 1),Materials and Supplies - MS
J. F. Drake State CC & TC,30017654,LSI Research Inc. ,3/29/2023,54000,ARP HEERF III - HBCU,Other Contractual Services - PS
J. F. Drake State CC & TC,30017655,McKesson Medical-Surgical Government Solutions Llc ,3/29/2023,589.04,FY23 Stand-Alone LPN Grant,Materials and Supplies - MS
J. F. Drake State CC & TC,30017655,McKesson Medical-Surgical Government Solutions Llc ,3/29/2023,5344.06,LPN Program Grant,Materials and Supplies - MS
J. F. Drake State CC & TC,30017656,Bell Angela,3/31/2023,99,Title III (Activity 5),Conus (meals) - OS
J. F. Drake State CC & TC,30017657,Cool Stuff by Austin ,3/31/2023,200,NASA MUREP Grant,Other Contractual Services - PS
J. F. Drake State CC & TC,30017658,Infobase Holdings Inc. ,3/31/2023,3639.6,Title III (Activity 2),Subscriptions - OOS
J. F. Drake State CC & TC,30017668,Hottinger Bruel & Kjaer Inc ,4/5/2023,10580.85,Restricted State Grants Misc,Short-Term Equipment Rentals - OOS
J. F. Drake State CC & TC,30017669,Mayer Levi,4/5/2023,71.12,NASA MUREP Grant,Culinary Consumables
J. F. Drake State CC & TC,30017670,PODS Enterprises Inc ,4/5/2023,159,Future Act (Activity 1),Short-Term Equipment Rentals - OOS
J. F. Drake State CC & TC,30017671,Stericycle Inc ,4/5/2023,98.45,Future Act (Activity 1),Waste Disposal - UC
J. F. Drake State CC & TC,30017672,Strickland Paper Company Inc ,4/5/2023,1778.8,Title III (Activity A Prog Admin),Materials and Supplies - MS
J. F. Drake State CC & TC,30017673,The University of Texas at Austin ,4/5/2023,4700,Title III (Activity 6),Subscriptions - OOS
J. F. Drake State CC & TC,30017674,Werle Enterprises LLC ,4/5/2023,799,Title III (Activity 6),Service Contracts on Equipment -OOS
J. F. Drake State CC & TC,30017675,Xerox Corporation ,4/5/2023,40,Title III (Activity 6),Maintenance & Repairs  - OOS
J. F. Drake State CC & TC,30017675,Xerox Corporation ,4/5/2023,193.76,Title III (Activity 1),Technology - non capitalized - MS
J. F. Drake State CC & TC,30017675,Xerox Corporation ,4/5/2023,200.92,Title III (Activity 1),Maintenance & Repairs  - OOS
J. F. Drake State CC & TC,30017974,Jefferson Asia,4/11/2023,500,GA-AL LSAMP NSF HRD 1305041 X9-X0,Participant Costs-Stipends
J. F. Drake State CC & TC,30017975,Tate Sharde,4/11/2023,500,GA-AL LSAMP NSF HRD 1305041 X9-X0,Participant Costs-Stipends
J. F. Drake State CC & TC,30017976,Davis Cilyah,4/11/2023,60,Restricted State Grants Misc,Participant Costs-Stipends
J. F. Drake State CC & TC,30017978,Hoang Jimmy,4/11/2023,98,Restricted State Grants Misc,Participant Costs-Stipends
J. F. Drake State CC & TC,30017979,Lovell Jonathan,4/11/2023,113,Restricted State Grants Misc,Participant Costs-Stipends
J. F. Drake State CC & TC,30017980,McReynolds Spencer,4/11/2023,98,Restricted State Grants Misc,Participant Costs-Stipends
J. F. Drake State CC & TC,30017981,Perry Jermaine,4/11/2023,90,Restricted State Grants Misc,Participant Costs-Stipends
J. F. Drake State CC & TC,30017982,Sharp Cody,4/11/2023,105,Restricted State Grants Misc,Participant Costs-Stipends
J. F. Drake State CC & TC,30017983,Tate Sharde,4/11/2023,98,Restricted State Grants Misc,Participant Costs-Stipends
J. F. Drake State CC & TC,30017984,Tolbert Eddie,4/11/2023,105,Restricted State Grants Misc,Participant Costs-Stipends
J. F. Drake State CC & TC,30017985,AACUBO ,4/12/2023,500,Title III (Activity 6),Memberships - PS
J. F. Drake State CC & TC,30017985,AACUBO ,4/12/2023,700,Title III (Activity 6),Registration Fees- IS
J. F. Drake State CC & TC,30017986,ACCS Human Resources Management Association ,4/12/2023,225,Title III (Activity 6),Registration Fees- IS
J. F. Drake State CC & TC,30017987,Chance Kathryn,4/12/2023,147.25,Title III (Activity 6),Conus (meals) - IS
J. F. Drake State CC & TC,30017988,Holston Gases Inc ,4/12/2023,967.43,Title III (Activity 1),Materials and Supplies - MS
J. F. Drake State CC & TC,30017989,Huntsville City Schools ,4/12/2023,280,NASA MUREP Grant,Other Contractual Services - PS
J. F. Drake State CC & TC,30017990,Learning Labs Inc ,4/12/2023,8295,Career Tech Instruc Suppl 2XX5-2XX6,Furniture and Equip $5K - $25K - CE
J. F. Drake State CC & TC,30017991,PODS Enterprises Inc ,4/12/2023,159,Future Act (Activity 1),Short-Term Equipment Rentals - OOS
J. F. Drake State CC & TC,30017992,Shotts Lesley,4/12/2023,69.5,Title III (Activity 6),Conus (meals) - OS
J. F. Drake State CC & TC,30017992,Shotts Lesley,4/12/2023,123,Title III (Activity 6),Other Travel Expenses - OS
J. F. Drake State CC & TC,30017993,Tri- State Metals Co Inc ,4/12/2023,24900.59,Title III (Activity 1),Materials and Supplies - MS
J. F. Drake State CC & TC,30017994,Davis Cilyah,4/14/2023,45,Restricted State Grants Misc,Participant Costs-Stipends
J. F. Drake State CC & TC,30017995,Ellis Dustin,4/14/2023,53,Restricted State Grants Misc,Participant Costs-Stipends
J. F. Drake State CC & TC,30017996,Hoang Jimmy,4/14/2023,53,Restricted State Grants Misc,Participant Costs-Stipends
J. F. Drake State CC & TC,30017997,King Treshawn,4/14/2023,53,Restricted State Grants Misc,Participant Costs-Stipends
J. F. Drake State CC & TC,30017998,Lovell Jonathan,4/14/2023,53,Restricted State Grants Misc,Participant Costs-Stipends
J. F. Drake State CC & TC,30018000,Sharp Cody,4/14/2023,53,Restricted State Grants Misc,Participant Costs-Stipends
J. F. Drake State CC & TC,30018001,Tate Sharde,4/14/2023,60,Restricted State Grants Misc,Participant Costs-Stipends
J. F. Drake State CC & TC,30018002,Tolbert Eddie,4/14/2023,53,Restricted State Grants Misc,Participant Costs-Stipends
J. F. Drake State CC & TC,30018003,Carolina Biological Supply Co ,4/17/2023,6444,Title III (Activity 1),Furniture and Equip $5K - $25K - CE
J. F. Drake State CC & TC,30018004,Kingsbury Marina,4/17/2023,526.48,Restricted State Grants Misc,Other Travel Expenses - OS
J. F. Drake State CC & TC,30018005,Alabama A & M University ,4/19/2023,430,NASA MUREP Grant,Commercial Transportation - IS
J. F. Drake State CC & TC,30018006,Holston Gases Inc ,4/19/2023,195,Title III (Activity 1),Materials and Supplies - MS
J. F. Drake State CC & TC,30018007,McKesson Medical-Surgical Government Solutions Llc ,4/19/2023,1740.43,FY23 Stand-Alone LPN Grant,Materials and Supplies - MS
J. F. Drake State CC & TC,30018007,McKesson Medical-Surgical Government Solutions Llc ,4/19/2023,3895.41,LPN Program Grant,Materials and Supplies - MS
J. F. Drake State CC & TC,30018007,McKesson Medical-Surgical Government Solutions Llc ,4/19/2023,28277.01,Equip-Supt Patient Care Tech Pgm,Equipment - non capitalized - MS
J. F. Drake State CC & TC,30018008,Bulluck Bruce,4/25/2023,147.25,Title III (Activity 3),Conus (meals) - IS
J. F. Drake State CC & TC,30018009,Chance Kathryn,4/25/2023,5.5,Title III (Activity 6),Other Travel Expenses - IS
J. F. Drake State CC & TC,30018009,Chance Kathryn,4/25/2023,199.75,Title III (Activity 6),Conus (meals) - IS
J. F. Drake State CC & TC,30018010,Henderson Carolyn,4/25/2023,72,Title III (Activity 1),Conus (meals) - OS
J. F. Drake State CC & TC,30018011,Jefferson Asia,4/25/2023,81.76,GA-AL LSAMP NSF HRD 1305041 X9-X0,Materials and Supplies - MS
J. F. Drake State CC & TC,30018012,Jim Cooper Construction Company Inc ,4/25/2023,638070.33,ARP HEERF III - HBCU,Construction in Progress - CE
J. F. Drake State CC & TC,30018013,Russell Mindi,4/25/2023,207.25,AE-State Regular 2XX2-2XX3,Conus (meals) - OS
J. F. Drake State CC & TC,30018013,Russell Mindi,4/25/2023,781.15,AE-State Regular 2XX2-2XX3,Lodging - OS
J. F. Drake State CC & TC,30018014,Sam's Club ,4/25/2023,14.64,Title III (Activity 1),Materials and Supplies - MS
J. F. Drake State CC & TC,30018015,Shotts Lesley,4/25/2023,15,Title III (Activity 6),Other Travel Expenses - OS
J. F. Drake State CC & TC,30018015,Shotts Lesley,4/25/2023,147.5,Title III (Activity 6),Conus (meals) - OS
J. F. Drake State CC & TC,30018016,Synergetics DCS Inc. ,4/25/2023,130666,ARP HEERF III - HBCU,Computer Software(non capital) - MS
J. F. Drake State CC & TC,30018017,Trane US Inc ,4/25/2023,194901,ARP HEERF III - HBCU,Building Alterations - CE
J. F. Drake State CC & TC,30018018,Watermark Insights LLC ,4/25/2023,39239.88,Title III (Activity 6),Computer Software(non capital) - MS
J. F. Drake State CC & TC,30018020,Stericycle Inc ,5/2/2023,98.45,Future Act (Activity 1),Waste Disposal - UC
J. F. Drake State CC & TC,30018021,ACCS Information Services Association ,5/3/2023,275,Title III (Activity 4),Registration Fees- IS
J. F. Drake State CC & TC,30018022,BadgePass Inc ,5/3/2023,326.7,Title III (Activity 4),Materials and Supplies - MS
J. F. Drake State CC & TC,30018023,Carolina Biological Supply Co ,5/3/2023,420,Title III (Activity 1),Materials and Supplies - MS
J. F. Drake State CC & TC,30018024,CDW LLC ,5/3/2023,422.28,Title III (Activity 1),Materials and Supplies - MS
J. F. Drake State CC & TC,30018025,Lowe's Company ,5/3/2023,198.07,Restricted State Grants Misc,Materials and Supplies - MS
J. F. Drake State CC & TC,30018025,Lowe's Company ,5/3/2023,205.08,Title III (Activity 5),Materials and Supplies - MS
J. F. Drake State CC & TC,30018025,Lowe's Company ,5/3/2023,234.86,ARP HEERF III - HBCU,Materials and Supplies - MS
J. F. Drake State CC & TC,30018026,McKesson Medical-Surgical Government Solutions Llc ,5/3/2023,194.4,FY23 Stand-Alone LPN Grant,Materials and Supplies - MS
J. F. Drake State CC & TC,30018027,National Assoc of College and University Business Officers ,5/3/2023,1682,Title III (Activity 6),Memberships - PS
J. F. Drake State CC & TC,30018028,ACCS Instructional Officers Association ,5/9/2023,150,Title III (Activity 1),Registration Fees- IS
J. F. Drake State CC & TC,30018029,Association of American Colleges and Universities AAC&U ,5/9/2023,2000,Title III (Activity 1),Memberships - PS
J. F. Drake State CC & TC,30018030,Bell Angela,5/9/2023,136,Title III (Activity 6),Conus (meals) - IS
J. F. Drake State CC & TC,30018031,CDW LLC ,5/9/2023,104.66,Title III (Activity 4),Materials and Supplies - MS
J. F. Drake State CC & TC,30018032,Clark Tammie,5/9/2023,23.25,GA-AL LSAMP NSF HRD 1305041 X9-X0,Other Travel Expenses - IS
J. F. Drake State CC & TC,30018033,Holston Gases Inc ,5/9/2023,195,Title III (Activity 1),Materials and Supplies - MS
J. F. Drake State CC & TC,30018034,Middle Tennessee State University ,5/9/2023,13869.79,NASA MUREP Grant,Grants  Awards and Prizes - OOS
J. F. Drake State CC & TC,30018035,Office Depot ,5/9/2023,255.54,NASA MUREP Grant,Materials and Supplies - MS
J. F. Drake State CC & TC,30018036,PODS Enterprises Inc ,5/9/2023,159,Future Act (Activity 1),Short-Term Equipment Rentals - OOS
J. F. Drake State CC & TC,30018037,Xerox Corporation ,5/9/2023,40,Title III (Activity 6),Maintenance & Repairs  - OOS
J. F. Drake State CC & TC,30018037,Xerox Corporation ,5/9/2023,254.57,Title III (Activity 1),Technology - non capitalized - MS
J. F. Drake State CC & TC,30018037,Xerox Corporation ,5/9/2023,254.96,Title III (Activity 1),Maintenance & Repairs  - OOS
J. F. Drake State CC & TC,30018038,ACCS Information Services Association ,5/17/2023,200,Title III (Activity 4),Memberships - PS
J. F. Drake State CC & TC,30018039,Cool Stuff by Austin ,5/17/2023,400,NASA MUREP Grant,Other Contractual Services - PS
J. F. Drake State CC & TC,30018040,Mae Jemison High School ,5/17/2023,301.5,NASA MUREP Grant,Other Contractual Services - PS
J. F. Drake State CC & TC,30018041,McKesson Medical-Surgical Government Solutions Llc ,5/17/2023,27.6,Title III (Activity 1),Materials and Supplies - MS
J. F. Drake State CC & TC,30018042,Shotts Lesley,5/17/2023,243.66,Title III (Activity 6),Mileage - IS
J. F. Drake State CC & TC,30018042,Shotts Lesley,5/17/2023,400,Title III (Activity 6),Overnight (non tax per diem)- IS
J. F. Drake State CC & TC,30018043,Bevel Joseph,5/22/2023,137.75,Carl Perkins Career & Tech X1-X2,Other Travel Expenses - IS
J. F. Drake State CC & TC,30018044,Burruss Lauren,5/22/2023,137.75,Carl Perkins Career & Tech X1-X2,Other Travel Expenses - IS
J. F. Drake State CC & TC,30018045,Little Bertha,5/22/2023,187.77,Carl Perkins Career & Tech X1-X2,Other Travel Expenses - IS
J. F. Drake State CC & TC,30018046,nSide Inc ,5/22/2023,348347.22,CRRSAA - HBCU and Strengthening II,Improvements - Other - CE
J. F. Drake State CC & TC,30018047,Peeples-Rice Alethea,5/22/2023,137.75,Carl Perkins Career & Tech X1-X2,Other Travel Expenses - IS
J. F. Drake State CC & TC,30018048,Pruitt Marquita,5/22/2023,137.75,Carl Perkins Career & Tech X1-X2,Other Travel Expenses - IS
J. F. Drake State CC & TC,30018049,Rafferty Kory,5/22/2023,137.75,Carl Perkins Career & Tech X1-X2,Other Travel Expenses - IS
J. F. Drake State CC & TC,30018050,Sales Lashun,5/22/2023,137.75,Carl Perkins Career & Tech X1-X2,Other Travel Expenses - IS
J. F. Drake State CC & TC,30018051,Swaim Richard,5/22/2023,137.75,Carl Perkins Career & Tech X1-X2,Other Travel Expenses - IS
J. F. Drake State CC & TC,30018052,Tate Tralandar,5/22/2023,137.75,Carl Perkins Career & Tech X1-X2,Other Travel Expenses - IS
J. F. Drake State CC & TC,30018053,Williams Kelly,5/22/2023,137.75,Carl Perkins Career & Tech X1-X2,Other Travel Expenses - IS
J. F. Drake State CC & TC,30018054,American Welding Society ,5/24/2023,455,Title III (Activity 1),Memberships - PS
J. F. Drake State CC & TC,30018055,Ecampus.com ,5/24/2023,7352.26,Title III (Activity 2),Books - CE
J. F. Drake State CC & TC,30018056,Kingsbury Marina,5/24/2023,34.5,Restricted State Grants Misc,Conus (meals) - OS
J. F. Drake State CC & TC,30018056,Kingsbury Marina,5/24/2023,366.13,Restricted State Grants Misc,Other Travel Expenses - OS
J. F. Drake State CC & TC,30018057,Leadership Greater Huntsville Inc. ,5/24/2023,3500,Title III (Activity A Institution),Registration Fees- IS
J. F. Drake State CC & TC,30018058,Mayer Levi,5/24/2023,300,Title III (Activity 1),Overnight (non tax per diem)- IS
J. F. Drake State CC & TC,30018059,Ecampus.com ,6/1/2023,473.09,Title III (Activity 2),Books - CE
J. F. Drake State CC & TC,30018059,Ecampus.com ,6/1/2023,716.6,Dual Enrollment  Sch. 2XX1-2XX2,Books (Non-Library)
J. F. Drake State CC & TC,30018060,Innovative Educators Inc ,6/1/2023,9995,Title III (Activity 5),Computer Software(non capital) - MS
J. F. Drake State CC & TC,30018061,Office Depot ,6/1/2023,304.98,Dual Enrollment  Sch. 2XX1-2XX2,Materials and Supplies - MS
J. F. Drake State CC & TC,30018062,Safety Kleen Systems Inc ,6/1/2023,130.15,Title III (Activity 1),Materials and Supplies - MS
J. F. Drake State CC & TC,30018063,Stericycle Inc ,6/1/2023,98.45,Future Act (Activity 1),Waste Disposal - UC
J. F. Drake State CC & TC,30018064,Ward Mattavia,6/1/2023,71.68,Title III (Activity 6),Lodging - IS
J. F. Drake State CC & TC,30018064,Ward Mattavia,6/1/2023,88.5,Title III (Activity 6),Conus (meals) - IS
J. F. Drake State CC & TC,30018064,Ward Mattavia,6/1/2023,170,Title III (Activity 6),Overnight (non tax per diem)- IS
J. F. Drake State CC & TC,30018065,Ecampus.com ,6/8/2023,2560.62,Dual Enrollment  Sch. 2XX1-2XX2,Books (Non-Library)
J. F. Drake State CC & TC,30018066,Holston Gases Inc ,6/8/2023,12567.8,Title III (Activity 1),Materials and Supplies - MS
J. F. Drake State CC & TC,30018067,Jim Cooper Construction Company Inc ,6/8/2023,1316634.65,ARP HEERF III - HBCU,Construction in Progress - CE
J. F. Drake State CC & TC,30018068,LogoBranders Inc ,6/8/2023,2779.35,NASA MUREP Grant,Materials and Supplies - MS
J. F. Drake State CC & TC,30018069,PODS Enterprises Inc ,6/8/2023,159,Future Act (Activity 1),Short-Term Equipment Rentals - OOS
J. F. Drake State CC & TC,30018070,The Burmax Co. Inc. ,6/8/2023,10161.84,Carl Perkins Career & Tech X1-X2,Materials and Supplies - MS
J. F. Drake State CC & TC,30018071,Ecampus.com ,6/15/2023,2393.53,Dual Enrollment  Sch. 2XX1-2XX2,Books (Non-Library)
J. F. Drake State CC & TC,30018072,Graybar Electric Co Inc. ,6/15/2023,586.5,Title III (Activity 3),Maintenance & Repairs  - OOS
J. F. Drake State CC & TC,30018073,Office Depot ,6/15/2023,289.61,NASA MUREP Grant,Materials and Supplies - MS
J. F. Drake State CC & TC,30018074,Raymond Alice,6/15/2023,119.5,LPN Program Grant,Conus (meals) - OS
J. F. Drake State CC & TC,30018074,Raymond Alice,6/15/2023,391.35,LPN Program Grant,Other Travel Expenses - OS
J. F. Drake State CC & TC,30018075,Redstone Federal Credit Union ,6/15/2023,500,Title III (Activity 6),Short-Term Building Rentals - OOS
J. F. Drake State CC & TC,30018076,Swaim Richard,6/15/2023,85,Title III (Activity 1),Conus (meals) - OS
J. F. Drake State CC & TC,30018077,Xerox Corporation ,6/15/2023,40,Title III (Activity 6),Maintenance & Repairs  - OOS
J. F. Drake State CC & TC,30018077,Xerox Corporation ,6/15/2023,193.48,Title III (Activity 1),Technology - non capitalized - MS
J. F. Drake State CC & TC,30018077,Xerox Corporation ,6/15/2023,233.67,Title III (Activity 1),Maintenance & Repairs  - OOS
J. F. Drake State CC & TC,30018163,ALACRAO ,6/21/2023,100,Title III (Activity 6),Memberships - PS
J. F. Drake State CC & TC,30018163,ALACRAO ,6/21/2023,600,Title III (Activity 6),Registration Fees- IS
J. F. Drake State CC & TC,30018164,SHI International Corp. ,6/21/2023,5988,Title III (Activity 6),Computer Software(non capital) - MS
J. F. Drake State CC & TC,30018165,Anderton Billy,6/22/2023,500,NASA MUREP Grant,Participant Costs-Stipends
J. F. Drake State CC & TC,30018166,Borom Andrea,6/22/2023,500,NASA MUREP Grant,Participant Costs-Stipends
J. F. Drake State CC & TC,30018167,Brand Jeremiah,6/22/2023,500,NASA MUREP Grant,Participant Costs-Stipends
J. F. Drake State CC & TC,30018168,Brown Lakesha,6/22/2023,500,NASA MUREP Grant,Participant Costs-Stipends
J. F. Drake State CC & TC,30018169,Campbell Jon,6/22/2023,500,NASA MUREP Grant,Participant Costs-Stipends
J. F. Drake State CC & TC,30018170,Everyday Learning Homeschool LLC ,6/22/2023,500,NASA MUREP Grant,Participant Costs-Stipends
J. F. Drake State CC & TC,30018171,Fambro DeKresha,6/22/2023,500,NASA MUREP Grant,Participant Costs-Stipends
J. F. Drake State CC & TC,30018172,Frost Smith Emily,6/22/2023,500,NASA MUREP Grant,Participant Costs-Stipends
J. F. Drake State CC & TC,30018173,Goldston Julie,6/22/2023,500,NASA MUREP Grant,Participant Costs-Stipends
J. F. Drake State CC & TC,30018174,Henry Thomasa,6/22/2023,500,NASA MUREP Grant,Participant Costs-Stipends
J. F. Drake State CC & TC,30018175,Hudson Kimberly,6/22/2023,500,NASA MUREP Grant,Participant Costs-Stipends
J. F. Drake State CC & TC,30018176,King Christine,6/22/2023,500,NASA MUREP Grant,Participant Costs-Stipends
J. F. Drake State CC & TC,30018177,Maldonado-Vazquez Linda,6/22/2023,500,NASA MUREP Grant,Participant Costs-Stipends
J. F. Drake State CC & TC,30018178,Marowski Melissa,6/22/2023,500,NASA MUREP Grant,Participant Costs-Stipends
J. F. Drake State CC & TC,30018179,Mulack Judy,6/22/2023,500,NASA MUREP Grant,Participant Costs-Stipends
J. F. Drake State CC & TC,30018180,Pierce Eldred,6/22/2023,500,NASA MUREP Grant,Participant Costs-Stipends
J. F. Drake State CC & TC,30018181,Simons Tammy,6/22/2023,500,NASA MUREP Grant,Participant Costs-Stipends
J. F. Drake State CC & TC,30018182,Willis Jacqueline,6/22/2023,400,NASA MUREP Grant,Participant Costs-Stipends
J. F. Drake State CC & TC,30018183,Yocom Daniel,6/22/2023,500,NASA MUREP Grant,Participant Costs-Stipends
J. F. Drake State CC & TC,30018189,Acklin Kaitlyn,6/27/2023,204.55,NASA MUREP Grant,Participant Costs-Stipends
J. F. Drake State CC & TC,30018190,Akinsoto Teniayo,6/27/2023,250,NASA MUREP Grant,Participant Costs-Stipends
J. F. Drake State CC & TC,30018191,Allen Emory,6/27/2023,250,NASA MUREP Grant,Participant Costs-Stipends
J. F. Drake State CC & TC,30018192,Allen Shia,6/27/2023,227.27,NASA MUREP Grant,Participant Costs-Stipends
J. F. Drake State CC & TC,30018193,Bailey Christian,6/27/2023,227.27,NASA MUREP Grant,Participant Costs-Stipends
J. F. Drake State CC & TC,30018194,Beaubrun Samuel,6/27/2023,159.09,NASA MUREP Grant,Participant Costs-Stipends
J. F. Drake State CC & TC,30018195,Davis Mckenna,6/27/2023,250,NASA MUREP Grant,Participant Costs-Stipends
J. F. Drake State CC & TC,30018196,Dublin Bruklyn,6/27/2023,250,NASA MUREP Grant,Participant Costs-Stipends
J. F. Drake State CC & TC,30018197,Halliburton Cornelius,6/27/2023,250,NASA MUREP Grant,Participant Costs-Stipends
J. F. Drake State CC & TC,30018198,Hammonds Keira,6/27/2023,250,NASA MUREP Grant,Participant Costs-Stipends
J. F. Drake State CC & TC,30018199,Harvey Zy'Keria,6/27/2023,250,NASA MUREP Grant,Participant Costs-Stipends
J. F. Drake State CC & TC,30018200,Hendricks Micah,6/27/2023,227.27,NASA MUREP Grant,Participant Costs-Stipends
J. F. Drake State CC & TC,30018201,Jacobs-El Azahri,6/27/2023,250,NASA MUREP Grant,Participant Costs-Stipends
J. F. Drake State CC & TC,30018202,Jacobs-El Aznee',6/27/2023,227.27,NASA MUREP Grant,Participant Costs-Stipends
J. F. Drake State CC & TC,30018203,Jones William,6/27/2023,250,NASA MUREP Grant,Participant Costs-Stipends
J. F. Drake State CC & TC,30018204,Jones Zemyria,6/27/2023,250,NASA MUREP Grant,Participant Costs-Stipends
J. F. Drake State CC & TC,30018205,Lawson Leah,6/27/2023,227.27,NASA MUREP Grant,Participant Costs-Stipends
J. F. Drake State CC & TC,30018206,Marbury Evan,6/27/2023,250,NASA MUREP Grant,Participant Costs-Stipends
J. F. Drake State CC & TC,30018207,McHugh Sophia,6/27/2023,250,NASA MUREP Grant,Participant Costs-Stipends
J. F. Drake State CC & TC,30018208,Michel Jolyn,6/27/2023,250,NASA MUREP Grant,Participant Costs-Stipends
J. F. Drake State CC & TC,30018210,Perry Jermaine,6/27/2023,250,NASA MUREP Grant,Participant Costs-Stipends
J. F. Drake State CC & TC,30018211,Pinchon Bailey,6/27/2023,250,NASA MUREP Grant,Participant Costs-Stipends
J. F. Drake State CC & TC,30018212,Pinchon Zariah,6/27/2023,250,NASA MUREP Grant,Participant Costs-Stipends
J. F. Drake State CC & TC,30018213,Rice II Andre',6/27/2023,250,NASA MUREP Grant,Participant Costs-Stipends
J. F. Drake State CC & TC,30018214,Richardson Anna,6/27/2023,250,NASA MUREP Grant,Participant Costs-Stipends
J. F. Drake State CC & TC,30018215,Robinson Cadence,6/27/2023,250,NASA MUREP Grant,Participant Costs-Stipends
J. F. Drake State CC & TC,30018216,Shepherd Sean,6/27/2023,227.27,NASA MUREP Grant,Participant Costs-Stipends
J. F. Drake State CC & TC,30018217,Thakker Khush,6/27/2023,227.27,NASA MUREP Grant,Participant Costs-Stipends
J. F. Drake State CC & TC,30018218,Thomas Tyrelle,6/27/2023,181.82,NASA MUREP Grant,Participant Costs-Stipends
J. F. Drake State CC & TC,30018219,Vidal Ajanae,6/27/2023,250,NASA MUREP Grant,Participant Costs-Stipends
J. F. Drake State CC & TC,30018221,Whitfield-Carter Shamya,6/27/2023,250,NASA MUREP Grant,Participant Costs-Stipends
J. F. Drake State CC & TC,30018222,Williams Jalen,6/27/2023,250,NASA MUREP Grant,Participant Costs-Stipends
J. F. Drake State CC & TC,30018223,Willis Bradford,6/27/2023,250,NASA MUREP Grant,Participant Costs-Stipends
J. F. Drake State CC & TC,30018224,Wilson Ausjua,6/27/2023,250,NASA MUREP Grant,Participant Costs-Stipends
J. F. Drake State CC & TC,30018225,Wilson Zikayla,6/27/2023,250,NASA MUREP Grant,Participant Costs-Stipends
J. F. Drake State CC & TC,30018226,Ellis Dustin,6/27/2023,105,Restricted State Grants Misc,Participant Costs-Stipends
J. F. Drake State CC & TC,30018227,Perry Jermaine,6/27/2023,53,Restricted State Grants Misc,Participant Costs-Stipends
J. F. Drake State CC & TC,30018230,Amtec Solutions Group Inc ,6/28/2023,9221.62,Jacobs Frontiers Scholars Fund,Other Contractual Services - PS
J. F. Drake State CC & TC,30018231,Ecampus.com ,6/28/2023,480.72,Dual Enrollment  Sch. 2XX1-2XX2,Books (Non-Library)
J. F. Drake State CC & TC,30018232,OCELOT ,6/28/2023,3780,Title III (Activity 5),Subscriptions - OOS
J. F. Drake State CC & TC,30018233,Office Depot ,6/28/2023,209.12,Title III (Activity 6),Materials and Supplies - MS
J. F. Drake State CC & TC,30018234,SHI International Corp. ,6/28/2023,993.11,Title III (Activity 6),Internet - UC
J. F. Drake State CC & TC,30018235,Alexander Akeem,6/29/2023,153.5,Title III (Activity 6),Conus (meals) - IS
J. F. Drake State CC & TC,30018236,Burruss Lauren,6/29/2023,70,Title III (Activity 1),Other Travel Expenses - OS
J. F. Drake State CC & TC,30018236,Burruss Lauren,6/29/2023,157.25,Title III (Activity 1),Conus (meals) - OS
J. F. Drake State CC & TC,30018237,Harris Katrina,6/29/2023,153.5,Title III (Activity 6),Conus (meals) - IS
J. F. Drake State CC & TC,30018238,Davis Cilyah,7/6/2023,1460,NASA MUREP Grant,Participant Costs-Stipends
J. F. Drake State CC & TC,30018239,Ellis Dustin,7/6/2023,2920,NASA MUREP Grant,Participant Costs-Stipends
J. F. Drake State CC & TC,30018240,King Treshawn,7/6/2023,2190,NASA MUREP Grant,Participant Costs-Stipends
J. F. Drake State CC & TC,30018241,Lovell Jonathan,7/6/2023,2920,NASA MUREP Grant,Participant Costs-Stipends
J. F. Drake State CC & TC,30018242,Tate Sharde,7/6/2023,2920,NASA MUREP Grant,Participant Costs-Stipends
J. F. Drake State CC & TC,30018243,Bell Angela,7/7/2023,153.5,Title III (Activity 6),Conus (meals) - IS
J. F. Drake State CC & TC,30018244,C Spire ,7/7/2023,34000,NTIA Grant,Other Contractual Services - PS
J. F. Drake State CC & TC,30018244,C Spire ,7/7/2023,71797.7,NTIA Grant,Computer Software(non capital) - MS
J. F. Drake State CC & TC,30018244,C Spire ,7/7/2023,96043.4,NTIA Grant,Materials and Supplies - MS
J. F. Drake State CC & TC,30018244,C Spire ,7/7/2023,218064.41,NTIA Grant,Technology > $25K - CE
J. F. Drake State CC & TC,30018245,GradCast LLC ,7/7/2023,3900,Title III (Activity 6),Computer Software(non capital) - MS
J. F. Drake State CC & TC,30018246,Holston Gases Inc ,7/7/2023,195,Title III (Activity 1),Materials and Supplies - MS
J. F. Drake State CC & TC,30018247,North Alabama Engraving Stamp Company ,7/7/2023,34.95,Dual Enrollment  Sch. 2XX1-2XX2,Materials and Supplies - MS
J. F. Drake State CC & TC,30018248,OCLC Inc. ,7/7/2023,4107.85,Title III (Activity 2),Subscriptions - OOS
J. F. Drake State CC & TC,30018249,Parrish Tessa,7/7/2023,60,Title III (Activity A Prog Admin),Other Travel Expenses - OS
J. F. Drake State CC & TC,30018249,Parrish Tessa,7/7/2023,287,Title III (Activity A Prog Admin),Conus (meals) - OS
J. F. Drake State CC & TC,30018250,PODS Enterprises Inc ,7/7/2023,159,Future Act (Activity 1),Short-Term Equipment Rentals - OOS
J. F. Drake State CC & TC,30018251,Shotts Lesley,7/7/2023,73.91,Title III (Activity A Prog Admin),Other Travel Expenses - OS
J. F. Drake State CC & TC,30018251,Shotts Lesley,7/7/2023,287,Title III (Activity A Prog Admin),Conus (meals) - OS
J. F. Drake State CC & TC,30018252,Stericycle Inc ,7/7/2023,98.45,Future Act (Activity 1),Waste Disposal - UC
J. F. Drake State CC & TC,30018253,Ward Mattavia,7/7/2023,198.75,Title III (Activity 6),Conus (meals) - OS
J. F. Drake State CC & TC,30018254,Xerox Corporation ,7/7/2023,40,Title III (Activity 6),Maintenance & Repairs  - OOS
J. F. Drake State CC & TC,30018254,Xerox Corporation ,7/7/2023,236.38,Title III (Activity 1),Maintenance & Repairs  - OOS
J. F. Drake State CC & TC,30018254,Xerox Corporation ,7/7/2023,363.7,Title III (Activity 1),Technology - non capitalized - MS
J. F. Drake State CC & TC,30018258,Jim Cooper Construction Company Inc ,7/11/2023,910178.37,ARP HEERF III - HBCU,Construction in Progress - CE
J. F. Drake State CC & TC,30018259,Ware Victoria,7/14/2023,250,NASA MUREP Grant,Participant Costs-Stipends
J. F. Drake State CC & TC,30018260,Council for Alabama Resource Development ,7/14/2023,200,Title III (Activity A Institution),Registration Fees- IS
J. F. Drake State CC & TC,30018260,Council for Alabama Resource Development ,7/14/2023,300,Title III (Activity A Institution),Memberships - PS
J. F. Drake State CC & TC,30018261,Ecampus.com ,7/14/2023,1124.8,Dual Enrollment  Sch. 2XX1-2XX2,Books (Non-Library)
J. F. Drake State CC & TC,30018262,Harbin Glenn,7/14/2023,128.25,Title III (Activity 4),Conus (meals) - IS
J. F. Drake State CC & TC,30018263,Henderson Carolyn,7/14/2023,73.25,Title III (Activity 1),Other Travel Expenses - IS
J. F. Drake State CC & TC,30018263,Henderson Carolyn,7/14/2023,74.74,Title III (Activity 1),Other Travel Expenses - OS
J. F. Drake State CC & TC,30018263,Henderson Carolyn,7/14/2023,109.25,Title III (Activity 1),Conus (meals) - OS
J. F. Drake State CC & TC,30018263,Henderson Carolyn,7/14/2023,286.35,Title III (Activity 1),Lodging - IS
J. F. Drake State CC & TC,30018264,Holston Gases Inc ,7/14/2023,598,Title III (Activity 1),Materials and Supplies - MS
J. F. Drake State CC & TC,30018265,Holston Gases Inc ,7/14/2023,1875,Title III (Activity 1),Materials and Supplies - MS
J. F. Drake State CC & TC,30018266,LogoBranders Inc ,7/14/2023,1606.74,NASA MUREP Grant,Materials and Supplies - MS
J. F. Drake State CC & TC,30018267,Middle Tennessee State University ,7/14/2023,16086,NASA MUREP Grant,Grants  Awards and Prizes - OOS
J. F. Drake State CC & TC,30018268,Arlene Campbell Wimbley ,7/18/2023,7500,Booz Allen (Pass Through),Other Contractual Services - PS
J. F. Drake State CC & TC,30018269,Cool Stuff by Austin ,7/18/2023,1100,NASA MUREP Grant,Other Contractual Services - PS
J. F. Drake State CC & TC,30018270,Jim Cooper Construction Company Inc ,7/18/2023,43545.35,Title III (Activity 1),Construction in Progress - CE
J. F. Drake State CC & TC,30018271,Uline Inc ,7/18/2023,620.91,Career Tech Equipment - Automotive,Equipment - non capitalized - MS
J. F. Drake State CC & TC,30018272,Bibb Bonnie,7/24/2023,149.5,LPN Program Grant,Conus (meals) - OS
J. F. Drake State CC & TC,30018273,First Student Inc ,7/24/2023,464.81,NASA MUREP Grant,Commercial Transportation - IS
J. F. Drake State CC & TC,30018274,Jim Cooper Construction Company Inc ,7/24/2023,143386.77,Title III (Activity 1),Construction in Progress - CE
J. F. Drake State CC & TC,30018275,Watermark Insights LLC ,7/24/2023,34848.37,Title III (Activity 6),Computer Software(non capital) - MS
J. F. Drake State CC & TC,30018276,Bell Angela,7/27/2023,56.25,Title III (Activity 5),Conus (meals) - IS
J. F. Drake State CC & TC,30018277,Davis Mattie,7/27/2023,3334,OER-Open Educational Resource Grant,Participant Costs-Stipends
J. F. Drake State CC & TC,30018278,MSC Industrial Supply ,7/27/2023,114.92,STEAM-CNC Vertical Machining,Materials and Supplies - MS
J. F. Drake State CC & TC,30018279,Snap-On Incorporated ,7/27/2023,1911.6,Career Tech Equipment - Automotive,Materials and Supplies - MS
J. F. Drake State CC & TC,30018280,H.W. Wilson Co ,8/1/2023,175.5,Title III (Activity 2),Subscriptions - OOS
J. F. Drake State CC & TC,30018281,Henderson Carolyn,8/1/2023,128.25,Title III (Activity 1),Conus (meals) - OS
J. F. Drake State CC & TC,30018281,Henderson Carolyn,8/1/2023,185.6,Title III (Activity 1),Other Travel Expenses - OS
J. F. Drake State CC & TC,30018282,Holston Gases Inc ,8/1/2023,1011,Title III (Activity 1),Materials and Supplies - MS
J. F. Drake State CC & TC,30018283,Howard Technology Solutions ,8/1/2023,7398,Title III (Activity 4),Computer Software(non capital) - MS
J. F. Drake State CC & TC,30018284,Huntsville Times ,8/1/2023,45.65,Title III (Activity 2),Subscriptions - OOS
J. F. Drake State CC & TC,30018285,Innovative Interfaces Inc. ,8/1/2023,38506.66,Title III (Activity 2),Subscriptions - OOS
J. F. Drake State CC & TC,30018286,Lyrasis ,8/1/2023,730,Title III (Activity 2),Memberships - PS
J. F. Drake State CC & TC,30018287,MSC Industrial Supply ,8/1/2023,13036.06,STEAM-CNC Vertical Machining,Materials and Supplies - MS
J. F. Drake State CC & TC,30018288,Myers Associates Inc. ,8/1/2023,1645,Restricted State Grants Misc,Equipment - non capitalized - MS
J. F. Drake State CC & TC,30018290,Stericycle Inc ,8/1/2023,98.45,Future Act (Activity 1),Waste Disposal - UC
J. F. Drake State CC & TC,30018291,Wells Printing Company Inc ,8/1/2023,339,NASA MUREP Grant,Printing and Binding - OOS
J. F. Drake State CC & TC,30018292,Wheeler Eunice,8/1/2023,1666,OER-Open Educational Resource Grant,Participant Costs-Stipends
J. F. Drake State CC & TC,30018293,Davis Cilyah,8/2/2023,2920,NASA MUREP Grant,Participant Costs-Stipends
J. F. Drake State CC & TC,30018294,Ellis Dustin,8/2/2023,2920,NASA MUREP Grant,Participant Costs-Stipends
J. F. Drake State CC & TC,30018295,Lovell Jonathan,8/2/2023,2920,NASA MUREP Grant,Participant Costs-Stipends
J. F. Drake State CC & TC,30018296,Perry Jermaine,8/2/2023,2190,NASA MUREP Grant,Participant Costs-Stipends
J. F. Drake State CC & TC,30018297,Tate Sharde,8/2/2023,2920,NASA MUREP Grant,Participant Costs-Stipends
J. F. Drake State CC & TC,30018298,Holston Gases Inc ,8/3/2023,195,Title III (Activity 1),Materials and Supplies - MS
J. F. Drake State CC & TC,30018299,McKee Katelyn,8/3/2023,63.34,Title III (Activity 1),Other Travel Expenses - OS
J. F. Drake State CC & TC,30018299,McKee Katelyn,8/3/2023,83,Title III (Activity 1),Conus (meals) - OS
J. F. Drake State CC & TC,30018300,MSC Industrial Supply ,8/3/2023,5104.61,Title III (Activity 1),Equipment - non capitalized - MS
J. F. Drake State CC & TC,30018301,PODS Enterprises Inc ,8/3/2023,204,Future Act (Activity 1),Short-Term Equipment Rentals - OOS
J. F. Drake State CC & TC,30018302,Xerox Corporation ,8/3/2023,40,Title III (Activity 6),Maintenance & Repairs  - OOS
J. F. Drake State CC & TC,30018302,Xerox Corporation ,8/3/2023,236.62,Title III (Activity 1),Maintenance & Repairs  - OOS
J. F. Drake State CC & TC,30018302,Xerox Corporation ,8/3/2023,488.78,Title III (Activity 1),Technology - non capitalized - MS
J. F. Drake State CC & TC,30018303,Alabama Association of Chiefs of Police ,8/10/2023,100,Title III (Activity 6),Memberships - PS
J. F. Drake State CC & TC,30018304,I Squared R Element Co. Inc. ,8/10/2023,146.44,Restricted State Grants Misc,Materials and Supplies - MS
J. F. Drake State CC & TC,30018305,Jim Cooper Construction Company Inc ,8/10/2023,733772.13,ARP HEERF III - HBCU,Construction in Progress - CE
J. F. Drake State CC & TC,30018306,Kingsbury Marina,8/10/2023,100,NASA MUREP Grant,Registration Fees- OS
J. F. Drake State CC & TC,30018306,Kingsbury Marina,8/10/2023,131,NASA MUREP Grant,Conus (meals) - OS
J. F. Drake State CC & TC,30018306,Kingsbury Marina,8/10/2023,131.54,NASA MUREP Grant,Other Travel Expenses - OS
J. F. Drake State CC & TC,30018307,Lyft Inc ,8/10/2023,80.91,TRUIST Grant (Pass-Through),Other Contractual Services - PS
J. F. Drake State CC & TC,30018308,McMaster-Carr Supply ,8/10/2023,51.34,Restricted State Grants Misc,Materials and Supplies - MS
J. F. Drake State CC & TC,30018309,North Alabama Engraving Stamp Company ,8/10/2023,144.55,LPN Program Grant,Grants  Awards and Prizes - OOS
J. F. Drake State CC & TC,30018310,OMI Inc. ,8/10/2023,4377.77,Title III (Activity 1),Engineering & Architectural Svc -PS
J. F. Drake State CC & TC,30018311,Xerox Corporation ,8/10/2023,35.56,Title III (Activity 1),Maintenance & Repairs  - OOS
J. F. Drake State CC & TC,30018315,Adorned Affairs ,8/17/2023,1000,LPN Program Grant,Other Contractual Services - PS
J. F. Drake State CC & TC,30018316,Driskill ChrisAnn,8/17/2023,66.5,Title III (Activity A Institution),Conus (meals) - OS
J. F. Drake State CC & TC,30018316,Driskill ChrisAnn,8/17/2023,105,Title III (Activity A Institution),Other Travel Expenses - OS
J. F. Drake State CC & TC,30018316,Driskill ChrisAnn,8/17/2023,701.52,Title III (Activity A Institution),Lodging - OS
J. F. Drake State CC & TC,30018317,Ecampus.com ,8/17/2023,940.03,Dual Enrollment  Sch. 2XX1-2XX2,Books (Non-Library)
J. F. Drake State CC & TC,30018318,Howard Technology Solutions ,8/17/2023,2528,Title III (Activity 4),Computer Software(non capital) - MS
J. F. Drake State CC & TC,30018319,Jackson Brandon,8/17/2023,250,Title III (Activity 1),Other Contractual Services - PS
J. F. Drake State CC & TC,30018320,Lincoln Electric Company ,8/17/2023,1125,Title III (Activity 1),Materials and Supplies - MS
J. F. Drake State CC & TC,30018321,Mankins John,8/17/2023,1750.58,NASA MUREP Grant,Other Professional Fees - PS
J. F. Drake State CC & TC,30018322,MSC Industrial Supply ,8/17/2023,193.16,STEAM-CNC Vertical Machining,Materials and Supplies - MS
J. F. Drake State CC & TC,30018323,The University of Texas at Austin ,8/17/2023,875,Title III (Activity 1),Memberships - PS
J. F. Drake State CC & TC,30018324,W W Grainger Inc ,8/17/2023,68.23,Restricted State Grants Misc,Materials and Supplies - MS
J. F. Drake State CC & TC,30018325,Bell Angela,8/22/2023,88.5,Title III (Activity 5),Conus (meals) - IS
J. F. Drake State CC & TC,30018326,Davis Rebecca,8/22/2023,1200,FY23 Stand-Alone LPN Grant,Other Contractual Services - PS
J. F. Drake State CC & TC,30018327,Dekle Stephanie,8/22/2023,250,Title III (Activity 1),Other Contractual Services - PS
J. F. Drake State CC & TC,30018328,Office Depot ,8/22/2023,51.69,Title III (Activity 6),Materials and Supplies - MS
J. F. Drake State CC & TC,30018329,Conditioned Air Solutions LLC ,8/23/2023,4672.41,Title III (Activity 3),Maintenance & Repairs  - OOS
J. F. Drake State CC & TC,30018330,Ecampus.com ,8/23/2023,67.5,Dual Enrollment  Sch. 2XX1-2XX2,Books (Non-Library)
J. F. Drake State CC & TC,30018331,CDW LLC ,8/30/2023,2754.5,Title III (Activity 4),Materials and Supplies - MS
J. F. Drake State CC & TC,30018332,Cool Stuff by Austin ,8/30/2023,1200,NASA MUREP Grant,Other Contractual Services - PS
J. F. Drake State CC & TC,30018333,Ecampus.com ,8/30/2023,46.44,Dual Enrollment  Sch. 2XX1-2XX2,Books (Non-Library)
J. F. Drake State CC & TC,30018334,Hair Queen Beauty LLC ,8/30/2023,203.08,Title III (Activity 1),Materials and Supplies - MS
J. F. Drake State CC & TC,30018335,Jim Cooper Construction Company Inc ,8/30/2023,769554.87,ARP HEERF III - HBCU,Construction in Progress - CE
J. F. Drake State CC & TC,30018336,McKesson Medical-Surgical Government Solutions Llc ,8/30/2023,222.03,LPN Program Grant,Materials and Supplies - MS
J. F. Drake State CC & TC,30018337,Ecampus.com ,9/1/2023,99.3,Dual Enrollment  Sch. 2XX1-2XX2,Books (Non-Library)
J. F. Drake State CC & TC,30018338,Stericycle Inc ,9/1/2023,98.45,Future Act (Activity 1),Waste Disposal - UC
J. F. Drake State CC & TC,30018339,The Burmax Co. Inc. ,9/1/2023,2298.78,Title III (Activity 1),Materials and Supplies - MS
J. F. Drake State CC & TC,30018488,Camargo Carla,9/11/2023,240,Strada Education Network,Participant Costs-Other
J. F. Drake State CC & TC,30018489,Cunningham Kennedy,9/11/2023,240,Strada Education Network,Participant Costs-Other
J. F. Drake State CC & TC,30018490,Carolina Biological Supply Co ,9/12/2023,3372.97,Title III (Activity 1),Materials and Supplies - MS
J. F. Drake State CC & TC,30018491,Dell Marketing LP ,9/12/2023,31460,Title III (Activity 4),Materials and Supplies - MS
J. F. Drake State CC & TC,30018492,Dell Marketing LP ,9/12/2023,17803.65,ATT Grant,Equipment - non capitalized - MS
J. F. Drake State CC & TC,30018493,Ecampus.com ,9/12/2023,1264.37,Dual Enrollment  Sch. 2XX1-2XX2,Books (Non-Library)
J. F. Drake State CC & TC,30018494,HBCU Library Alliance ,9/12/2023,500,Title III (Activity 2),Memberships - PS
J. F. Drake State CC & TC,30018495,Holston Gases Inc ,9/12/2023,2036.61,Title III (Activity 1),Materials and Supplies - MS
J. F. Drake State CC & TC,30018496,Jim Cooper Construction Company Inc ,9/12/2023,114438.11,Title III (Activity 1),Construction in Progress - CE
J. F. Drake State CC & TC,30018497,Lyft Inc ,9/12/2023,429.19,TRUIST Grant (Pass-Through),Other Contractual Services - PS
J. F. Drake State CC & TC,30018498,McKesson Medical-Surgical Government Solutions Llc ,9/12/2023,295.86,LPN Program Grant,Materials and Supplies - MS
J. F. Drake State CC & TC,30018499,Middle Tennessee State University ,9/12/2023,111425.24,NASA MUREP Grant,Grants  Awards and Prizes - OOS
J. F. Drake State CC & TC,30018500,MSC Industrial Supply ,9/12/2023,911.12,STEAM-CNC Vertical Machining,Materials and Supplies - MS
J. F. Drake State CC & TC,30018500,MSC Industrial Supply ,9/12/2023,2552.51,Spcl Pops Ind Workforce Initiatives,Materials and Supplies - MS
J. F. Drake State CC & TC,30018501,Nola Van Peursem Architects PC ,9/12/2023,15103.01,Title III (Activity 1),Engineering & Architectural Svc -PS
J. F. Drake State CC & TC,30018502,Office Depot ,9/12/2023,104.8,Title III (Activity 6),Materials and Supplies - MS
J. F. Drake State CC & TC,30018502,Office Depot ,9/12/2023,737.49,Future Act (Activity 1),Materials and Supplies - MS
J. F. Drake State CC & TC,30018503,OMI Inc. ,9/12/2023,1031,Title III (Activity 1),Engineering & Architectural Svc -PS
J. F. Drake State CC & TC,30018504,Oti Ezinne,9/12/2023,227.27,NASA MUREP Grant,Participant Costs-Stipends
J. F. Drake State CC & TC,30018505,PODS Enterprises Inc ,9/12/2023,204,Future Act (Activity 1),Short-Term Equipment Rentals - OOS
J. F. Drake State CC & TC,30018506,Russell Mindi,9/12/2023,140.93,AE-State Regular 2XX2-2XX3,Group Health Insurance - FB
J. F. Drake State CC & TC,30018507,Xerox Corporation ,9/12/2023,40,Title III (Activity 6),Maintenance & Repairs  - OOS
J. F. Drake State CC & TC,30018507,Xerox Corporation ,9/12/2023,272.88,Title III (Activity 1),Technology - non capitalized - MS
J. F. Drake State CC & TC,30018507,Xerox Corporation ,9/12/2023,414.16,Title III (Activity 1),Maintenance & Repairs  - OOS
J. F. Drake State CC & TC,30018513,Ellis Dustin,9/15/2023,1460,NASA MUREP Grant,Participant Costs-Stipends
J. F. Drake State CC & TC,30018514,Lovell Jonathan,9/15/2023,2920,NASA MUREP Grant,Participant Costs-Stipends
J. F. Drake State CC & TC,30018515,Tate Sharde,9/15/2023,3650,NASA MUREP Grant,Participant Costs-Stipends
J. F. Drake State CC & TC,30018516,Driskill ChrisAnn,9/19/2023,48.5,Title III (Activity A Institution),Conus (meals) - IS
J. F. Drake State CC & TC,30018516,Driskill ChrisAnn,9/19/2023,242.44,Title III (Activity A Institution),Lodging - IS
J. F. Drake State CC & TC,30018517,Ecampus.com ,9/19/2023,171.14,Dual Enrollment  Sch. 2XX1-2XX2,Postage - OOS
J. F. Drake State CC & TC,30018517,Ecampus.com ,9/19/2023,12073.61,Dual Enrollment  Sch. 2XX1-2XX2,Books (Non-Library)
J. F. Drake State CC & TC,30018518,Middle Tennessee State University ,9/19/2023,9909,NASA MUREP Grant,Grants  Awards and Prizes - OOS
J. F. Drake State CC & TC,30018519,OMI Inc. ,9/19/2023,2049.25,Title III (Activity 3),Other Professional Fees - PS
J. F. Drake State CC & TC,30018520,Shotts Lesley,9/19/2023,112.78,Title III (Activity A Prog Admin),Other Travel Expenses - OS
J. F. Drake State CC & TC,30018520,Shotts Lesley,9/19/2023,170,Title III (Activity A Prog Admin),Conus (meals) - OS
J. F. Drake State CC & TC,30018520,Shotts Lesley,9/19/2023,657.45,Title III (Activity A Prog Admin),Lodging - OS
J. F. Drake State CC & TC,30018521,Strickland Paper Company Inc ,9/19/2023,1778.8,Title III (Activity A Prog Admin),Materials and Supplies - MS
J. F. Drake State CC & TC,30018522,W W Grainger Inc ,9/19/2023,4116.09,Spcl Pops Ind Workforce Initiatives,Materials and Supplies - MS
J. F. Drake State CC & TC,30018523,Wells Printing Company Inc ,9/19/2023,1465,FY23 Stand-Alone LPN Grant,Advertising & Promotions - OOS
J. F. Drake State CC & TC,30018528,ACCS Human Resources Management Association ,9/27/2023,225,Title III (Activity 6),Registration Fees- IS
J. F. Drake State CC & TC,30018529,Bell Angela,9/27/2023,270,Title III (Activity 6),Conus (meals) - OS
J. F. Drake State CC & TC,30018530,Gilliland Regina,9/27/2023,175.45,Title III (Activity 6),Other Travel Expenses - OS
J. F. Drake State CC & TC,30018530,Gilliland Regina,9/27/2023,196.5,Title III (Activity 6),Conus (meals) - OS
J. F. Drake State CC & TC,30018531,Henderson Carolyn,9/27/2023,150,Title III (Activity 1),Conus (meals) - OS
J. F. Drake State CC & TC,30018531,Henderson Carolyn,9/27/2023,292.88,Title III (Activity 1),Other Travel Expenses - OS
J. F. Drake State CC & TC,30018532,Jim Cooper Construction Company Inc ,9/27/2023,157037.11,Title III (Activity 1),Construction in Progress - CE
J. F. Drake State CC & TC,30018533,Kellum Marty,9/27/2023,250,Title III (Activity 1),Other Contractual Services - PS
J. F. Drake State CC & TC,30018534,Leadership Greater Huntsville Inc. ,9/27/2023,1600,Title III (Activity 6),Registration Fees- IS
J. F. Drake State CC & TC,30018535,Librarica LLC ,9/27/2023,1543.27,Title III (Activity 2),Subscriptions - OOS
J. F. Drake State CC & TC,30018536,Lucas Teresa,9/27/2023,250,Title III (Activity 1),Other Contractual Services - PS
J. F. Drake State CC & TC,30018537,Mayer Levi,9/27/2023,300,Title III (Activity 1),Overnight (non tax per diem)- IS
J. F. Drake State CC & TC,30018538,Mullins John,9/27/2023,470,Title III (Activity 1),Overnight (non tax per diem)- IS
J. F. Drake State CC & TC,30018539,Sodexo ,9/27/2023,1257.27,NASA MUREP Grant,Culinary Consumables
J. F. Drake State CC & TC,30018540,SPR Inc. ,9/27/2023,4916.45,Title III (Activity 4),Equipment - non capitalized - MS
J. F. Drake State CC & TC,30018540,SPR Inc. ,9/27/2023,5411.45,ATT Grant,Equipment - non capitalized - MS
J. F. Drake State CC & TC,30018541,Swain Don,9/27/2023,400,Title III (Activity 6),Overnight (non tax per diem)- IS
J. F. Drake State CC & TC,30018542,Wells Printing Company Inc ,9/27/2023,490.66,Spcl Pops Ind Workforce Initiatives,Advertising & Promotions - OOS
J. F. Drake State CC & TC,30018542,Wells Printing Company Inc ,9/27/2023,608.98,Title III (Activity 4),Materials and Supplies - MS
J. F. Drake State CC & TC,30018542,Wells Printing Company Inc ,9/27/2023,2555,LPN Program Grant,Advertising & Promotions - OOS
J. F. Drake State CC & TC,30018542,Wells Printing Company Inc ,9/27/2023,6792.7,Equip-Supt Patient Care Tech Pgm,Advertising & Promotions - OOS
J. F. Drake State CC & TC,30018544,Carolina Biological Supply Co ,9/29/2023,404.18,Title III (Activity 1),Materials and Supplies - MS
J. F. Drake State CC & TC,302774,Hambrick Taquina,3/15/2023,1633.72,Future Act (Activity 1),Payroll
J. F. Drake State CC & TC,900012857,Crawford Rosie,10/14/2022,413.66,Future Act (Activity 1),Payroll
J. F. Drake State CC & TC,900012858,Douglas Sanitha,10/14/2022,2020.57,Future Act (Activity 1),Payroll
J. F. Drake State CC & TC,900012859,Mahone Amy,10/14/2022,3118.92,Unrestricted Shared Services,Payroll
J. F. Drake State CC & TC,900012860,James Bobby,10/14/2022,350.02,Future Act (Activity 1),Payroll
J. F. Drake State CC & TC,900012863,Augustin Lysa,10/14/2022,910.26,AE-State Regular 2XX1-2XX2,Payroll
J. F. Drake State CC & TC,900012864,Harris Willie,10/14/2022,756,AE-State Regular 2XX1-2XX2,Payroll
J. F. Drake State CC & TC,900012865,Sonia Cynthia,10/14/2022,1103.44,Auto Mfg WF Dev 2XX1-2XX2,Payroll
J. F. Drake State CC & TC,900012866,Walker Anita,10/14/2022,896.55,AE-State Regular 2XX1-2XX2,Payroll
J. F. Drake State CC & TC,900012867,Bryant Larinda,10/14/2022,380,UAH/ADAMC Consortium,Payroll
J. F. Drake State CC & TC,900012868,Grubbs Jeleisa,10/14/2022,1147.5,NASA MUREP Grant,Payroll
J. F. Drake State CC & TC,900012869,Hinton Doris,10/14/2022,2524.84,Unrestricted Shared Services,Payroll
J. F. Drake State CC & TC,900012871,Zatowski Jeanette,10/14/2022,2545.6,NASA Grant 2021-2022,Payroll
J. F. Drake State CC & TC,900012872,Crosby Tomacenia,10/14/2022,1135.27,Title III (Activity 5),Payroll
J. F. Drake State CC & TC,900012873,Howard Rachel,10/14/2022,636.48,Title III (Activity 5),Payroll
J. F. Drake State CC & TC,900012874,Malone Terrell,10/14/2022,1591.5,Title III (Activity 5),Payroll
J. F. Drake State CC & TC,900012876,Crutcher Marcus,10/14/2022,1279.08,Unrestricted Shared Services,Payroll
J. F. Drake State CC & TC,900012880,Hoang Jimmy,10/14/2022,754.8,Unrestricted Shared Services,Payroll
J. F. Drake State CC & TC,900012881,Humphrey Jessie,10/14/2022,1765.72,Unrestricted Shared Services,Payroll
J. F. Drake State CC & TC,900012882,Jackson Terell,10/31/2022,4322.5,Unrestricted Shared Services,Payroll
J. F. Drake State CC & TC,900012883,Sims Patricia,10/31/2022,19079.42,Unrestricted Shared Services,Payroll
J. F. Drake State CC & TC,900012884,Bibb Bonnie,10/31/2022,5989.08,Unrestricted Shared Services,Payroll
J. F. Drake State CC & TC,900012885,Davis Mattie,10/31/2022,8763.12,Unrestricted Shared Services,Payroll
J. F. Drake State CC & TC,900012886,Ennis Tina,10/31/2022,6849.22,Unrestricted Shared Services,Payroll
J. F. Drake State CC & TC,900012887,Mbuguje Mukesha,10/31/2022,7985.44,Unrestricted Shared Services,Payroll
J. F. Drake State CC & TC,900012888,McClaflin Courtney,10/31/2022,5578.78,Unrestricted Shared Services,Payroll
J. F. Drake State CC & TC,900012889,McLaughlin Stephanie,10/31/2022,5847.22,Unrestricted Shared Services,Payroll
J. F. Drake State CC & TC,900012890,Sims Rebecca,10/31/2022,3797.42,Future Act (Activity 1),Payroll
J. F. Drake State CC & TC,900012891,Burruss Lauren,10/31/2022,127.28,Unrestricted Shared Services,Payroll
J. F. Drake State CC & TC,900012891,Burruss Lauren,10/31/2022,6719.22,Future Act (Activity 1),Payroll
J. F. Drake State CC & TC,900012892,Griffin Raven,10/31/2022,763.68,Unrestricted Shared Services,Payroll
J. F. Drake State CC & TC,900012893,Logan Amanda,10/31/2022,357.98,Unrestricted Shared Services,Payroll
J. F. Drake State CC & TC,900012894,Sullins Charles,10/31/2022,763.68,Unrestricted Shared Services,Payroll
J. F. Drake State CC & TC,900012895,Whitson Kimberly,10/31/2022,715.95,Unrestricted Shared Services,Payroll
J. F. Drake State CC & TC,900012896,Ward Thronzo,10/31/2022,1145.52,Unrestricted Shared Services,Payroll
J. F. Drake State CC & TC,900012897,Johnson Claudine,10/31/2022,763.68,Unrestricted Shared Services,Payroll
J. F. Drake State CC & TC,900012898,Barnes Nelson,10/31/2022,763.68,Unrestricted Shared Services,Payroll
J. F. Drake State CC & TC,900012899,Gregory Christopher,10/31/2022,715.95,Unrestricted Shared Services,Payroll
J. F. Drake State CC & TC,900012900,Perry Michael,10/31/2022,715.95,Unrestricted Shared Services,Payroll
J. F. Drake State CC & TC,900012901,Smothers Deloris,10/31/2022,1654.64,Unrestricted Shared Services,Payroll
J. F. Drake State CC & TC,900012902,Taylor Kacey,10/31/2022,160,GA-AL LSAMP NSF HRD 1305041 X9-X0,Payroll
J. F. Drake State CC & TC,900012902,Taylor Kacey,10/31/2022,6912.63,Unrestricted Shared Services,Payroll
J. F. Drake State CC & TC,900012903,Clark Tammie,10/31/2022,160,GA-AL LSAMP NSF HRD 1305041 X9-X0,Payroll
J. F. Drake State CC & TC,900012903,Clark Tammie,10/31/2022,4680.33,Unrestricted Shared Services,Payroll
J. F. Drake State CC & TC,900012904,Goodloe Lardell,10/31/2022,7546.67,Unrestricted Shared Services,Payroll
J. F. Drake State CC & TC,900012905,Cain Jordan,10/31/2022,1193.25,Unrestricted Shared Services,Payroll
J. F. Drake State CC & TC,900012906,Winchester Brandi,10/31/2022,4905.11,Unrestricted Shared Services,Payroll
J. F. Drake State CC & TC,900012907,Winn George,10/31/2022,6217.67,Unrestricted Shared Services,Payroll
J. F. Drake State CC & TC,900012908,Forbes Edwin,10/31/2022,5428.2,Unrestricted Shared Services,Payroll
J. F. Drake State CC & TC,900012909,Foster Rashanda,10/31/2022,1527.36,Unrestricted Shared Services,Payroll
J. F. Drake State CC & TC,900012910,Kessio Japheth,10/31/2022,763.68,Unrestricted Shared Services,Payroll
J. F. Drake State CC & TC,900012911,Milling John,10/31/2022,763.68,Unrestricted Shared Services,Payroll
J. F. Drake State CC & TC,900012912,Canady Charlotte,10/31/2022,1145.52,Unrestricted Shared Services,Payroll
J. F. Drake State CC & TC,900012913,Burns Kristina,10/31/2022,477.3,Unrestricted Shared Services,Payroll
J. F. Drake State CC & TC,900012914,London Laricca,10/31/2022,1909.2,Unrestricted Shared Services,Payroll
J. F. Drake State CC & TC,900012915,McCastle-Arutere Toye,10/31/2022,1670.55,Unrestricted Shared Services,Payroll
J. F. Drake State CC & TC,900012916,Wheeler Eunice,10/31/2022,1400,GA-AL LSAMP NSF HRD 1305041 X9-X0,Payroll
J. F. Drake State CC & TC,900012916,Wheeler Eunice,10/31/2022,6305.62,Unrestricted Shared Services,Payroll
J. F. Drake State CC & TC,900012917,Peeples-Rice Alethea,10/31/2022,4123.92,Unrestricted Shared Services,Payroll
J. F. Drake State CC & TC,900012918,Davis Angela,10/31/2022,636.4,Unrestricted Shared Services,Payroll
J. F. Drake State CC & TC,900012919,Wilson Tracey,10/31/2022,381.84,Unrestricted Shared Services,Payroll
J. F. Drake State CC & TC,900012920,Fury Lilia,10/31/2022,4018.22,AE-State Regular 2XX2-2XX3,Payroll
J. F. Drake State CC & TC,900012921,Pfeiffer Carl,10/31/2022,2425.5,AE-Federal Regular 2XX2-2XX3,Payroll
J. F. Drake State CC & TC,900012922,Russell Mindi,10/31/2022,159.88,AE-State Regular 2XX1-2XX2,Payroll
J. F. Drake State CC & TC,900012922,Russell Mindi,10/31/2022,5197.17,AE-State Regular 2XX2-2XX3,Payroll
J. F. Drake State CC & TC,900012923,Williams Cornelius,10/31/2022,477.3,Unrestricted Shared Services,Payroll
J. F. Drake State CC & TC,900012924,Dean William,10/31/2022,546.91,Unrestricted Shared Services,Payroll
J. F. Drake State CC & TC,900012925,Little Bertha,10/31/2022,5717.44,Unrestricted Shared Services,Payroll
J. F. Drake State CC & TC,900012926,Bridges Ulrekia,10/31/2022,636.4,Unrestricted Shared Services,Payroll
J. F. Drake State CC & TC,900012927,Pruitt Marquita,10/31/2022,3182,Unrestricted Shared Services,Payroll
J. F. Drake State CC & TC,900012928,Sales Lashun,10/31/2022,1781.92,Unrestricted Shared Services,Payroll
J. F. Drake State CC & TC,900012929,Sams Donna,10/31/2022,2163.76,Unrestricted Shared Services,Payroll
J. F. Drake State CC & TC,900012930,Tate Tralandar,10/31/2022,3054.72,Unrestricted Shared Services,Payroll
J. F. Drake State CC & TC,900012931,Williams Kelly,10/31/2022,6753.84,Unrestricted Shared Services,Payroll
J. F. Drake State CC & TC,900012932,McDaniel Darvin,10/31/2022,381.84,Unrestricted Shared Services,Payroll
J. F. Drake State CC & TC,900012933,Henry Casey,10/31/2022,6240.44,Unrestricted Shared Services,Payroll
J. F. Drake State CC & TC,900012934,Sealy Curtis,10/31/2022,636.4,Unrestricted Shared Services,Payroll
J. F. Drake State CC & TC,900012935,Snell Larry,10/31/2022,2418.32,Unrestricted Shared Services,Payroll
J. F. Drake State CC & TC,900012936,Williams Jeffrey,10/31/2022,5543.22,Unrestricted Shared Services,Payroll
J. F. Drake State CC & TC,900012937,Swaim Richard,10/31/2022,6240.44,Unrestricted Shared Services,Payroll
J. F. Drake State CC & TC,900012938,Bevel Joseph,10/31/2022,6244.72,Unrestricted Shared Services,Payroll
J. F. Drake State CC & TC,900012939,Johnson Jeremy,10/31/2022,1193.25,Unrestricted Shared Services,Payroll
J. F. Drake State CC & TC,900012940,Rafferty Kory,10/31/2022,5495.95,Unrestricted Shared Services,Payroll
J. F. Drake State CC & TC,900012941,Ray Karen,10/31/2022,6896.5,Unrestricted Shared Services,Payroll
J. F. Drake State CC & TC,900012942,Woodall Daylan,10/31/2022,3797.17,Unrestricted Shared Services,Payroll
J. F. Drake State CC & TC,900012943,Clark Taska,10/31/2022,4497.67,Unrestricted Shared Services,Payroll
J. F. Drake State CC & TC,900012944,Henderson Carolyn,10/31/2022,10813.92,Unrestricted Shared Services,Payroll
J. F. Drake State CC & TC,900012945,Mayer Levi,10/31/2022,7072.08,Unrestricted Shared Services,Payroll
J. F. Drake State CC & TC,900012946,Borden Dennis,10/31/2022,6196.11,Unrestricted Shared Services,Payroll
J. F. Drake State CC & TC,900012947,Clift Carla,10/31/2022,7416.44,Unrestricted Shared Services,Payroll
J. F. Drake State CC & TC,900012948,Bell Angela,10/31/2022,10647.25,Unrestricted Shared Services,Payroll
J. F. Drake State CC & TC,900012949,Langford Diana,10/31/2022,1909.2,Unrestricted Shared Services,Payroll
J. F. Drake State CC & TC,900012950,Pearce Regina,10/31/2022,4060.08,Title III (Activity 5),Payroll
J. F. Drake State CC & TC,900012951,Ward Mattavia,10/31/2022,5909.42,Unrestricted Shared Services,Payroll
J. F. Drake State CC & TC,900012952,Jones Donyale,10/31/2022,4235.33,Unrestricted Shared Services,Payroll
J. F. Drake State CC & TC,900012953,Green Tiffany,10/31/2022,4759.83,Unrestricted Shared Services,Payroll
J. F. Drake State CC & TC,900012954,Lawrence Kia,10/31/2022,1723.62,Unrestricted Shared Services,Payroll
J. F. Drake State CC & TC,900012954,Lawrence Kia,10/31/2022,1723.63,Title III (Activity 5),Payroll
J. F. Drake State CC & TC,900012955,Hambrick Neoka,10/31/2022,4322.5,Unrestricted Shared Services,Payroll
J. F. Drake State CC & TC,900012956,Morrison Bruce,10/31/2022,5372.75,Unrestricted Shared Services,Payroll
J. F. Drake State CC & TC,900012957,Olinger Jennifer,10/31/2022,8099,Unrestricted Shared Services,Payroll
J. F. Drake State CC & TC,900012958,Harlow Emily,10/31/2022,2309.75,Unrestricted Shared Services,Payroll
J. F. Drake State CC & TC,900012959,Drake Robert,10/31/2022,3009.92,Unrestricted Shared Services,Payroll
J. F. Drake State CC & TC,900012960,Townsend-Baker Jamee,10/31/2022,2267.73,Title III (Activity 5),Payroll
J. F. Drake State CC & TC,900012961,Alexander Akeem,10/31/2022,9282.67,Unrestricted Shared Services,Payroll
J. F. Drake State CC & TC,900012962,Chavers Audrey,10/31/2022,605.15,Title III (Activity A Prog Admin),Payroll
J. F. Drake State CC & TC,900012962,Chavers Audrey,10/31/2022,3717.35,Unrestricted Shared Services,Payroll
J. F. Drake State CC & TC,900012963,Driskill ChrisAnn,10/31/2022,318.13,Title III (Activity A Institution),Payroll
J. F. Drake State CC & TC,900012963,Driskill ChrisAnn,10/31/2022,3216.7,Unrestricted Shared Services,Payroll
J. F. Drake State CC & TC,900012964,Harris Katrina,10/31/2022,7985.5,Unrestricted Shared Services,Payroll
J. F. Drake State CC & TC,900012965,Patterson Christina,10/31/2022,3709.5,Unrestricted Shared Services,Payroll
J. F. Drake State CC & TC,900012966,Chance Kathryn,10/31/2022,4672.75,Unrestricted Shared Services,Payroll
J. F. Drake State CC & TC,900012967,Patton Tina,10/31/2022,2922.92,Unrestricted Shared Services,Payroll
J. F. Drake State CC & TC,900012968,Kingsbury Marina,10/31/2022,2976.35,NASA MUREP Grant,Payroll
J. F. Drake State CC & TC,900012968,Kingsbury Marina,10/31/2022,4107.05,Unrestricted Shared Services,Payroll
J. F. Drake State CC & TC,900012969,Parrish Tessa,10/31/2022,3885,Title III (Activity A Prog Admin),Payroll
J. F. Drake State CC & TC,900012970,Raymond Alice,10/31/2022,4732.25,Unrestricted Shared Services,Payroll
J. F. Drake State CC & TC,900012970,Raymond Alice,10/31/2022,6006.15,Title III (Activity 1),Payroll
J. F. Drake State CC & TC,900012971,Shotts Lesley,10/31/2022,809.9,Title III (Activity A Prog Admin),Payroll
J. F. Drake State CC & TC,900012971,Shotts Lesley,10/31/2022,7289.1,Unrestricted Shared Services,Payroll
J. F. Drake State CC & TC,900012972,Baker Elijah,10/31/2022,3643.48,Unrestricted Shared Services,Payroll
J. F. Drake State CC & TC,900012973,Moore Mark,10/31/2022,3193.87,Unrestricted Shared Services,Payroll
J. F. Drake State CC & TC,900012974,Clark Casey,10/31/2022,2922.33,Unrestricted Shared Services,Payroll
J. F. Drake State CC & TC,900012975,Harbin Glenn,10/31/2022,5197.17,Unrestricted Shared Services,Payroll
J. F. Drake State CC & TC,900012976,Harlow George,10/31/2022,3797.42,CRRSAA - HBCU and Strengthening II,Payroll
J. F. Drake State CC & TC,900012977,Hernandez Anthony,10/31/2022,2309.75,Unrestricted Shared Services,Payroll
J. F. Drake State CC & TC,900012978,Bruski Matthew,10/31/2022,3885,Unrestricted Shared Services,Payroll
J. F. Drake State CC & TC,900012979,Bulluck Bruce,10/31/2022,8612.42,Unrestricted Shared Services,Payroll
J. F. Drake State CC & TC,900012980,Hamlet Archie,10/31/2022,2222.5,Unrestricted Shared Services,Payroll
J. F. Drake State CC & TC,900012981,Hampton Darlene,10/31/2022,2835.5,Unrestricted Shared Services,Payroll
J. F. Drake State CC & TC,900012982,McCarty Demetrius,10/31/2022,2922.92,Unrestricted Shared Services,Payroll
J. F. Drake State CC & TC,900012983,Crawford Rosie,11/15/2022,668.22,Future Act (Activity 1),Payroll
J. F. Drake State CC & TC,900012984,Douglas Sanitha,11/15/2022,700.04,Future Act (Activity 1),Payroll
J. F. Drake State CC & TC,900012985,Mahone Amy,11/15/2022,2933.27,Unrestricted Shared Services,Payroll
J. F. Drake State CC & TC,900012986,James Bobby,11/15/2022,540.94,Future Act (Activity 1),Payroll
J. F. Drake State CC & TC,900012989,Cain Jordan,11/15/2022,922.78,Unrestricted Shared Services,Payroll
J. F. Drake State CC & TC,900012990,Augustin Lysa,11/15/2022,1003.62,AE-State Regular 2XX2-2XX3,Payroll
J. F. Drake State CC & TC,900012991,Harris Willie,11/15/2022,907.2,AE-State Regular 2XX2-2XX3,Payroll
J. F. Drake State CC & TC,900012992,Sonia Cynthia,11/15/2022,1103.44,Unrestricted Shared Services,Payroll
J. F. Drake State CC & TC,900012993,Walker Anita,11/15/2022,1087.53,AE-State Regular 2XX2-2XX3,Payroll
J. F. Drake State CC & TC,900012994,Grubbs Jeleisa,11/15/2022,1090.13,NASA MUREP Grant,Payroll
J. F. Drake State CC & TC,900012995,Hinton Doris,11/15/2022,2487.71,Unrestricted Shared Services,Payroll
